Workbook

Sheet Инструкция
E2: Код шаблона: INVEST.EE.FACT
G3: ="Версия " & GetVersion() -> Версия 1.4
B4: Инструкция по заполнению шаблона
C7: Технические требования: • макросы во время работы должны быть включены
C8: • на рабочем месте должен быть установлен MS Office 2003, 2007, 2010 x86 с полной версией MS Excel
C9: • макросы во время работы должны быть включены
C10: • для корректной работы шаблона требуется выбрать низкий уровень безопасности
C11: (В меню MS Excel 2003: Сервис ¦ Макрос ¦ Безопасность ¦ выбрать нижний пункт «Низкая безопасность» ¦ «OK»)
C12: (В MS Excel 2007 после открытия файла шаблона нажать на кнопку «Параметры…» в строке «Предупреждение системы безопасности», далее выбрать «Включить это содержимое» ¦ «OK»)
D13: Цвета ячеек:
D14: ● | E14: Голубой – ячейки, обязательные для заполнения;
D15: ● | E15: Желтый – ячейки, предназначенные для заполнения;
D16: ● | E16: Зеленый – ячейки с формулами/константами или заполняемые автоматически (например, при выборе организации из реестра).
D18: Пояснение к заполнению (необходимо нажать один раз).
C20: Шаблон может быть сохранен на любом этапе заполнения!
C21: • При сохранении шаблона осуществляется проверка на наличие и корректность (например, КПП – 9 цифр) обязательных параметров на листах.
C22: • Если какая-то ячейка не удовлетворяет условию проверки, на лист «Проверка» добавляется гиперссылка на данную ячейку и причина, по которой шаблон не будет загружен в хранилище данных.
C23: • В колонке «Статус ошибки» для каждого сообщения возможны 2 значения: ошибка и предупреждение.
C24: • При наличии сообщений со статусом «Ошибка» шаблон будет отклонён системой, сообщения со статусом «Предупреждение» носят информационный характер, и такой шаблон будет принят системой.
C25: Организационно-технические консультации:
C26: ФИО: | E26: Голубев Игорь Александрович, Булеков Олег Викторович
C27: телефон: | E27: (391) 265-63-83
C28: e-mail: | E28: krrec@mail.ru
C29: WEB-сайт: | E29: http://eias.ru/
C30: Комментарий | E30: -
C31: Дистрибутивы: | E31: Для устранения проблем с MS Excel (например, "Compile error in hidden module") воспользуйтесь пакетами библиотек:
C32: Дистрибутивы (ссылка): | E32: http://eias.ru/?page=show_distrs
C34: Консультации по методологии заполнения форм:
C35: ФИО: | E35: Максименко Евгений Борисович
C36: телефон: | E36: (391) 265-65-69
C37: e-mail: | E37: maximenko@krasrec.ru
C38: WEB-сайт: | E38: www.krasnoyarsk.eias.ru
C39: Комментарий | E39: -

Sheet Выбор субъекта РФ (hidden)
F2: 27
D3: Субъект РФ | F3: Красноярский край

Sheet Обновление
O2: =version -> Версия 1.4
C3: Инструкция по обновлению шаблона
C24: Если компьютер имеет подключение к Интернет, можно автоматически проверять наличие доступных обновлений. Выберите способ оповещения о наличии обновлений для шаблона:

Sheet modProv (hidden)

Sheet Лог обновления
A1: Дата/Время | B1: Сообщение | C1: Статус
A2: 4/17/2012 4:11:21 PM | B2: Проверка доступных обновлений... | C2: Информация
A3: 4/17/2012 4:11:22 PM | B3: Доступно обновление до версии 1.4 | C3: Информация
A4: 4/17/2012 4:11:22 PM | B4: Описание изменений: 1. добавление столбца Примечание на лист 'Ф.7.1' | C4: Информация
A5: 4/17/2012 4:11:22 PM | B5: Размер файла обновления: 378880 байт | C5: Информация
A6: 4/17/2012 4:11:24 PM | B6: Подготовка к обновлению... | C6: Информация
A7: 4/17/2012 4:11:26 PM | B7: Сохранение файла резервной копии: C:\Users\SERGEY.ENERGO\Documents\00..BKP.BKP..BKP..BKP.xls | C7: Информация
A8: 4/17/2012 4:11:36 PM | B8: Резервная копия создана: C:\Users\SERGEY.ENERGO\Documents\00..BKP.BKP..BKP..BKP.xls | C8: Информация
A9: 4/17/2012 4:11:36 PM | B9: Создание книги для установки обновлений... | C9: Информация
A10: 4/17/2012 4:11:46 PM | B10: Файл обновления загружен: C:\app\UPDATE.INVEST.EE.FACT.TO.1.4.64.xls | C10: Информация
A11: 4/17/2012 4:11:46 PM | B11: Файл обновления загружен: C:\app\UPDATE.INVEST.EE.FACT.TO.1.4.64.xls | C11: Информация
A12: 4/17/2012 4:12:31 PM | B12: Проверка доступных обновлений... | C12: Информация
A13: 4/17/2012 4:12:32 PM | B13: Версия шаблона 1.4 актуальна, обновление не требуется | C13: Информация
A14: 4/17/2012 4:22:44 PM | B14: Проверка доступных обновлений... | C14: Информация
A15: 4/17/2012 4:22:45 PM | B15: Версия шаблона 1.4 актуальна, обновление не требуется | C15: Информация
A16: 4/24/2012 4:37:41 PM | B16: Проверка доступных обновлений... | C16: Информация
A17: 4/24/2012 4:37:44 PM | B17: Версия шаблона 1.4 актуальна, обновление не требуется | C17: Информация
A18: 4/25/2012 8:47:06 AM | B18: Проверка доступных обновлений... | C18: Информация
A19: 4/25/2012 8:47:07 AM | B19: Версия шаблона 1.4 актуальна, обновление не требуется | C19: Информация
A20: 4/25/2012 9:34:52 AM | B20: Проверка доступных обновлений... | C20: Информация
A21: 4/25/2012 9:34:54 AM | B21: Версия шаблона 1.4 актуальна, обновление не требуется | C21: Информация
A22: 4/25/2012 11:10:19 AM | B22: Проверка доступных обновлений... | C22: Информация
A23: 4/25/2012 11:10:41 AM | B23: Нет доступных обновлений для шаблона с кодом INVEST.EE.FACT! | C23: Информация
A24: 4/25/2012 11:23:41 AM | B24: Проверка доступных обновлений... | C24: Информация
A25: 4/25/2012 11:24:03 AM | B25: Нет доступных обновлений для шаблона с кодом INVEST.EE.FACT! | C25: Информация
A26: 4/25/2012 11:37:00 AM | B26: Проверка доступных обновлений... | C26: Информация
A27: 4/25/2012 11:37:22 AM | B27: Нет доступных обновлений для шаблона с кодом INVEST.EE.FACT! | C27: Информация
A28: 4/25/2012 11:38:02 AM | B28: Проверка доступных обновлений... | C28: Информация
A29: 4/25/2012 11:38:27 AM | B29: Нет доступных обновлений для шаблона с кодом INVEST.EE.FACT! | C29: Информация
A30: 4/25/2012 11:47:59 AM | B30: Проверка доступных обновлений... | C30: Информация
A31: 4/25/2012 11:48:21 AM | B31: Нет доступных обновлений для шаблона с кодом INVEST.EE.FACT! | C31: Информация
A32: 4/25/2012 1:58:33 PM | B32: Проверка доступных обновлений... | C32: Информация
A33: 4/25/2012 1:58:55 PM | B33: Нет доступных обновлений для шаблона с кодом INVEST.EE.FACT! | C33: Информация
A34: 4/25/2012 2:21:22 PM | B34: Проверка доступных обновлений... | C34: Информация
A35: 4/25/2012 2:21:44 PM | B35: Нет доступных обновлений для шаблона с кодом INVEST.EE.FACT! | C35: Информация
A36: 4/27/2012 8:29:01 AM | B36: Проверка доступных обновлений... | C36: Информация
A37: 4/27/2012 8:29:02 AM | B37: Версия шаблона 1.4 актуальна, обновление не требуется | C37: Информация
A38: 5/2/2012 8:28:24 AM | B38: Проверка доступных обновлений... | C38: Информация
A39: 5/2/2012 8:28:47 AM | B39: Нет доступных обновлений для шаблона с кодом INVEST.EE.FACT! | C39: Информация
A40: 5/2/2012 10:40:35 AM | B40: Проверка доступных обновлений... | C40: Информация
A41: 5/2/2012 10:40:36 AM | B41: Версия шаблона 1.4 актуальна, обновление не требуется | C41: Информация
A42: 5/2/2012 2:13:47 PM | B42: Проверка доступных обновлений... | C42: Информация
A43: 5/2/2012 2:13:49 PM | B43: Версия шаблона 1.4 актуальна, обновление не требуется | C43: Информация
A44: 5/10/2012 1:48:28 PM | B44: Проверка доступных обновлений... | C44: Информация
A45: 5/10/2012 1:48:30 PM | B45: Версия шаблона 1.4 актуальна, обновление не требуется | C45: Информация
A46: 5/11/2012 1:50:44 PM | B46: Проверка доступных обновлений... | C46: Информация
A47: 5/11/2012 1:51:06 PM | B47: Нет доступных обновлений для шаблона с кодом INVEST.EE.FACT! | C47: Информация
A48: 5/11/2012 2:22:39 PM | B48: Проверка доступных обновлений... | C48: Информация
A49: 5/11/2012 2:23:01 PM | B49: Нет доступных обновлений для шаблона с кодом INVEST.EE.FACT! | C49: Информация
A50: 5/12/2012 8:50:36 AM | B50: Проверка доступных обновлений... | C50: Информация
A51: 5/12/2012 8:51:01 AM | B51: Нет доступных обновлений для шаблона с кодом INVEST.EE.FACT! | C51: Информация
A52: 5/15/2012 8:52:59 AM | B52: Проверка доступных обновлений... | C52: Информация
A53: 5/15/2012 8:53:22 AM | B53: Нет доступных обновлений для шаблона с кодом INVEST.EE.FACT! | C53: Информация
A54: 5/15/2012 8:54:23 AM | B54: Проверка доступных обновлений... | C54: Информация
A55: 5/15/2012 8:54:45 AM | B55: Нет доступных обновлений для шаблона с кодом INVEST.EE.FACT! | C55: Информация
A56: 5/15/2012 9:13:27 AM | B56: Проверка доступных обновлений... | C56: Информация
A57: 5/15/2012 9:13:49 AM | B57: Нет доступных обновлений для шаблона с кодом INVEST.EE.FACT! | C57: Информация
A58: 5/15/2012 10:01:43 AM | B58: Проверка доступных обновлений... | C58: Информация
A59: 5/15/2012 10:01:44 AM | B59: Версия шаблона 1.4 актуальна, обновление не требуется | C59: Информация
A60: 5/15/2012 1:30:52 PM | B60: Проверка доступных обновлений... | C60: Информация
A61: 5/15/2012 1:30:56 PM | B61: Версия шаблона 1.4 актуальна, обновление не требуется | C61: Информация
A62: 5/15/2012 1:37:39 PM | B62: Проверка доступных обновлений... | C62: Информация
A63: 5/15/2012 1:37:40 PM | B63: Версия шаблона 1.4 актуальна, обновление не требуется | C63: Информация
A64: 5/15/2012 4:14:16 PM | B64: Проверка доступных обновлений... | C64: Информация
A65: 5/15/2012 4:14:17 PM | B65: Версия шаблона 1.4 актуальна, обновление не требуется | C65: Информация
A66: 2/4/2013 9:57:34 AM | B66: Проверка доступных обновлений... | C66: Информация
A67: 2/4/2013 9:57:35 AM | B67: Версия шаблона 1.4 актуальна, обновление не требуется | C67: Информация
A68: 2/4/2013 10:02:24 AM | B68: Проверка доступных обновлений... | C68: Информация
A69: 2/4/2013 10:02:25 AM | B69: Версия шаблона 1.4 актуальна, обновление не требуется | C69: Информация
A70: 2/4/2013 10:03:34 AM | B70: Проверка доступных обновлений... | C70: Информация
A71: 2/4/2013 10:03:35 AM | B71: Версия шаблона 1.4 актуальна, обновление не требуется | C71: Информация
A72: 2/4/2013 10:18:39 AM | B72: Проверка доступных обновлений... | C72: Информация
A73: 2/4/2013 10:18:45 AM | B73: Нет доступных обновлений для шаблона с кодом INVEST.EE.FACT! | C73: Информация
A74: 2/4/2013 10:39:54 AM | B74: Проверка доступных обновлений... | C74: Информация
A75: 2/4/2013 10:40:16 AM | B75: Нет доступных обновлений для шаблона с кодом INVEST.EE.FACT! | C75: Информация
A76: 2/4/2013 10:41:00 AM | B76: Проверка доступных обновлений... | C76: Информация
A77: 2/4/2013 10:41:22 AM | B77: Нет доступных обновлений для шаблона с кодом INVEST.EE.FACT! | C77: Информация
A78: 2/4/2013 11:42:46 AM | B78: Проверка доступных обновлений... | C78: Информация
A79: 2/4/2013 11:43:08 AM | B79: Нет доступных обновлений для шаблона с кодом INVEST.EE.FACT! | C79: Информация
A80: 2/4/2013 1:56:53 PM | B80: Проверка доступных обновлений... | C80: Информация
A81: 2/4/2013 1:56:54 PM | B81: Версия шаблона 1.4 актуальна, обновление не требуется | C81: Информация
A82: 2/6/2013 8:44:42 AM | B82: Проверка доступных обновлений... | C82: Информация
A83: 2/6/2013 8:44:47 AM | B83: Версия шаблона 1.4 актуальна, обновление не требуется | C83: Информация
A84: 2/7/2013 8:18:14 AM | B84: Проверка доступных обновлений... | C84: Информация
A85: 2/7/2013 8:18:36 AM | B85: Нет доступных обновлений для шаблона с кодом INVEST.EE.FACT! | C85: Информация
A86: 2/7/2013 11:44:48 AM | B86: Проверка доступных обновлений... | C86: Информация
A87: 2/7/2013 11:45:09 AM | B87: Нет доступных обновлений для шаблона с кодом INVEST.EE.FACT! | C87: Информация
A88: 2/7/2013 4:36:13 PM | B88: Проверка доступных обновлений... | C88: Информация
A89: 2/7/2013 4:36:35 PM | B89: Нет доступных обновлений для шаблона с кодом INVEST.EE.FACT! | C89: Информация
A90: 2/11/2013 8:24:31 AM | B90: Проверка доступных обновлений... | C90: Информация
A91: 2/11/2013 8:24:54 AM | B91: Нет доступных обновлений для шаблона с кодом INVEST.EE.FACT! | C91: Информация
A92: 2/14/2013 11:38:20 AM | B92: Проверка доступных обновлений... | C92: Информация
A93: 2/14/2013 11:38:42 AM | B93: Нет доступных обновлений для шаблона с кодом INVEST.EE.FACT! | C93: Информация
A94: 6/24/2013 3:11:30 PM | B94: Проверка доступных обновлений... | C94: Информация
A95: 6/24/2013 3:11:52 PM | B95: Нет доступных обновлений для шаблона с кодом INVEST.EE.FACT! | C95: Информация
A96: 6/25/2013 3:54:07 PM | B96: Проверка доступных обновлений... | C96: Информация
A97: 6/25/2013 3:54:08 PM | B97: Версия шаблона 1.4 актуальна, обновление не требуется | C97: Информация
A98: 6/25/2013 4:11:21 PM | B98: Проверка доступных обновлений... | C98: Информация
A99: 6/25/2013 4:11:22 PM | B99: Версия шаблона 1.4 актуальна, обновление не требуется | C99: Информация
A100: 8/29/2013 10:15:42 AM | B100: Проверка доступных обновлений... | C100: Информация
A101: 8/29/2013 10:16:04 AM | B101: Нет доступных обновлений для шаблона с кодом INVEST.EE.FACT! | C101: Информация
A102: 10/21/2013 2:17:15 PM | B102: Проверка доступных обновлений... | C102: Информация
A103: 10/21/2013 2:17:16 PM | B103: Версия шаблона 1.4 актуальна, обновление не требуется | C103: Информация
A104: 12/17/2013 3:56:14 PM | B104: Проверка доступных обновлений... | C104: Информация
A105: 12/17/2013 3:56:18 PM | B105: Версия шаблона 1.4 актуальна, обновление не требуется | C105: Информация
A106: 12/17/2013 4:15:46 PM | B106: Проверка доступных обновлений... | C106: Информация
A107: 12/17/2013 4:15:47 PM | B107: Версия шаблона 1.4 актуальна, обновление не требуется | C107: Информация
A108: 12/17/2013 4:55:40 PM | B108: Проверка доступных обновлений... | C108: Информация
A109: 12/17/2013 4:55:41 PM | B109: Версия шаблона 1.4 актуальна, обновление не требуется | C109: Информация
A110: 12/18/2013 9:55:53 AM | B110: Проверка доступных обновлений... | C110: Информация
A111: 12/18/2013 9:56:15 AM | B111: Нет доступных обновлений для шаблона с кодом INVEST.EE.FACT! | C111: Информация
A112: 12/18/2013 10:19:32 AM | B112: Проверка доступных обновлений... | C112: Информация
A113: 12/18/2013 10:19:33 AM | B113: Версия шаблона 1.4 актуальна, обновление не требуется | C113: Информация
A114: 12/18/2013 11:08:46 AM | B114: Проверка доступных обновлений... | C114: Информация
A115: 12/18/2013 11:08:47 AM | B115: Версия шаблона 1.4 актуальна, обновление не требуется | C115: Информация
A116: 12/18/2013 11:30:16 AM | B116: Проверка доступных обновлений... | C116: Информация
A117: 12/18/2013 11:30:17 AM | B117: Версия шаблона 1.4 актуальна, обновление не требуется | C117: Информация
A118: 2/25/2014 9:00:49 AM | B118: Проверка доступных обновлений... | C118: Информация
A119: 2/25/2014 9:01:07 AM | B119: Нет доступных обновлений для шаблона с кодом INVEST.EE.FACT! | C119: Информация
A120: 4/29/2014 3:50:29 PM | B120: Проверка доступных обновлений... | C120: Информация
A121: 4/29/2014 3:50:34 PM | B121: Версия шаблона 1.4 актуальна, обновление не требуется | C121: Информация
A122: 4/29/2014 3:55:51 PM | B122: Проверка доступных обновлений... | C122: Информация
A123: 4/29/2014 3:55:56 PM | B123: Версия шаблона 1.4 актуальна, обновление не требуется | C123: Информация
A124: 4/30/2014 10:11:01 AM | B124: Проверка доступных обновлений... | C124: Информация
A125: 4/30/2014 10:11:05 AM | B125: Версия шаблона 1.4 актуальна, обновление не требуется | C125: Информация
A126: 5/5/2014 11:03:27 AM | B126: Проверка доступных обновлений... | C126: Информация
A127: 5/5/2014 11:03:28 AM | B127: Версия шаблона 1.4 актуальна, обновление не требуется | C127: Информация
A128: 5/7/2014 8:54:38 AM | B128: Проверка доступных обновлений... | C128: Информация
A129: 5/7/2014 8:54:39 AM | B129: Версия шаблона 1.4 актуальна, обновление не требуется | C129: Информация
A130: 5/8/2014 1:55:27 PM | B130: Проверка доступных обновлений... | C130: Информация
A131: 5/8/2014 1:55:28 PM | B131: Версия шаблона 1.4 актуальна, обновление не требуется | C131: Информация
A132: 6/9/2014 9:36:15 AM | B132: Проверка доступных обновлений... | C132: Информация
A133: 6/9/2014 9:36:16 AM | B133: Версия шаблона 1.4 актуальна, обновление не требуется | C133: Информация
A134: 6/16/2014 8:49:59 AM | B134: Проверка доступных обновлений... | C134: Информация
A135: 6/16/2014 8:50:21 AM | B135: Нет доступных обновлений для шаблона с кодом INVEST.EE.FACT! | C135: Информация
A136: 6/16/2014 9:24:57 AM | B136: Проверка доступных обновлений... | C136: Информация
A137: 6/16/2014 9:24:58 AM | B137: Версия шаблона 1.4 актуальна, обновление не требуется | C137: Информация
A138: 6/16/2014 11:20:19 AM | B138: Проверка доступных обновлений... | C138: Информация
A139: 6/16/2014 11:20:20 AM | B139: Версия шаблона 1.4 актуальна, обновление не требуется | C139: Информация
A140: 7/7/2014 4:16:40 PM | B140: Проверка доступных обновлений... | C140: Информация
A141: 7/7/2014 4:16:41 PM | B141: Версия шаблона 1.4 актуальна, обновление не требуется | C141: Информация
A142: 7/22/2014 3:47:09 PM | B142: Проверка доступных обновлений... | C142: Информация
A143: 7/22/2014 3:47:31 PM | B143: Нет доступных обновлений для шаблона с кодом INVEST.EE.FACT! | C143: Информация
A144: 7/23/2014 1:54:39 PM | B144: Проверка доступных обновлений... | C144: Информация
A145: 7/23/2014 1:54:40 PM | B145: Версия шаблона 1.4 актуальна, обновление не требуется | C145: Информация
A146: 8/13/2014 11:47:15 AM | B146: Проверка доступных обновлений... | C146: Информация
A147: 8/13/2014 11:47:21 AM | B147: Версия шаблона 1.4 актуальна, обновление не требуется | C147: Информация
A148: 10/23/2014 1:39:55 PM | B148: Проверка доступных обновлений... | C148: Информация
A149: 10/23/2014 1:40:17 PM | B149: Нет доступных обновлений для шаблона с кодом INVEST.EE.FACT! | C149: Информация
A150: 10/23/2014 2:52:02 PM | B150: Проверка доступных обновлений... | C150: Информация
A151: 10/23/2014 2:52:03 PM | B151: Версия шаблона 1.4 актуальна, обновление не требуется | C151: Информация
A152: 10/23/2014 3:06:24 PM | B152: Проверка доступных обновлений... | C152: Информация
A153: 10/23/2014 3:06:25 PM | B153: Версия шаблона 1.4 актуальна, обновление не требуется | C153: Информация
A154: 11/5/2014 11:18:17 AM | B154: Проверка доступных обновлений... | C154: Информация
A155: 11/5/2014 11:18:39 AM | B155: Нет доступных обновлений для шаблона с кодом INVEST.EE.FACT! | C155: Информация
A156: 11/6/2014 8:56:46 AM | B156: Проверка доступных обновлений... | C156: Информация
A157: 11/6/2014 8:57:08 AM | B157: Нет доступных обновлений для шаблона с кодом INVEST.EE.FACT! | C157: Информация
A158: 11/6/2014 11:11:33 AM | B158: Проверка доступных обновлений... | C158: Информация
A159: 11/6/2014 11:11:55 AM | B159: Нет доступных обновлений для шаблона с кодом INVEST.EE.FACT! | C159: Информация
A160: 11/28/2014 9:29:52 AM | B160: Проверка доступных обновлений... | C160: Информация
A161: 11/28/2014 9:30:14 AM | B161: Нет доступных обновлений для шаблона с кодом INVEST.EE.FACT! | C161: Информация
A162: 11/28/2014 10:38:53 AM | B162: Проверка доступных обновлений... | C162: Информация
A163: 11/28/2014 10:39:15 AM | B163: Нет доступных обновлений для шаблона с кодом INVEST.EE.FACT! | C163: Информация
A164: 2/11/2015 2:35:39 PM | B164: Проверка доступных обновлений... | C164: Информация
A165: 2/11/2015 2:35:40 PM | B165: Версия шаблона 1.4 актуальна, обновление не требуется | C165: Информация
A166: 2/12/2015 12:47:36 PM | B166: Проверка доступных обновлений... | C166: Информация
A167: 2/12/2015 12:47:58 PM | B167: Нет доступных обновлений для шаблона с кодом INVEST.EE.FACT! | C167: Информация
A168: 2/12/2015 2:02:22 PM | B168: Проверка доступных обновлений... | C168: Информация
A169: 2/12/2015 2:02:44 PM | B169: Нет доступных обновлений для шаблона с кодом INVEST.EE.FACT! | C169: Информация
A170: 2/12/2015 3:09:42 PM | B170: Проверка доступных обновлений... | C170: Информация
A171: 2/12/2015 3:10:04 PM | B171: Нет доступных обновлений для шаблона с кодом INVEST.EE.FACT! | C171: Информация
A172: 2/12/2015 3:24:47 PM | B172: Проверка доступных обновлений... | C172: Информация
A173: 2/12/2015 3:25:09 PM | B173: Нет доступных обновлений для шаблона с кодом INVEST.EE.FACT! | C173: Информация
A174: 2/12/2015 4:15:17 PM | B174: Проверка доступных обновлений... | C174: Информация
A175: 2/12/2015 4:15:39 PM | B175: Нет доступных обновлений для шаблона с кодом INVEST.EE.FACT! | C175: Информация
A176: 2/12/2015 4:28:52 PM | B176: Проверка доступных обновлений... | C176: Информация
A177: 2/12/2015 4:29:14 PM | B177: Нет доступных обновлений для шаблона с кодом INVEST.EE.FACT! | C177: Информация
A178: 5/7/2015 9:38:52 AM | B178: Проверка доступных обновлений... | C178: Информация
A179: 5/7/2015 9:39:00 AM | B179: Версия шаблона 1.4 актуальна, обновление не требуется | C179: Информация
A180: 5/7/2015 10:25:01 AM | B180: Проверка доступных обновлений... | C180: Информация
A181: 5/7/2015 10:25:02 AM | B181: Версия шаблона 1.4 актуальна, обновление не требуется | C181: Информация
A182: 5/7/2015 10:46:18 AM | B182: Проверка доступных обновлений... | C182: Информация
A183: 5/7/2015 10:46:19 AM | B183: Версия шаблона 1.4 актуальна, обновление не требуется | C183: Информация
A184: 5/12/2015 8:03:37 AM | B184: Проверка доступных обновлений... | C184: Информация
A185: 5/12/2015 8:04:00 AM | B185: Нет доступных обновлений для шаблона с кодом INVEST.EE.FACT! | C185: Информация
A186: 5/12/2015 10:30:51 AM | B186: Проверка доступных обновлений... | C186: Информация
A187: 5/12/2015 10:31:13 AM | B187: Нет доступных обновлений для шаблона с кодом INVEST.EE.FACT! | C187: Информация
A188: 5/12/2015 4:51:30 PM | B188: Проверка доступных обновлений... | C188: Информация
A189: 5/12/2015 4:51:52 PM | B189: Нет доступных обновлений для шаблона с кодом INVEST.EE.FACT! | C189: Информация
A190: 5/13/2015 8:23:57 AM | B190: Проверка доступных обновлений... | C190: Информация
A191: 5/13/2015 8:23:58 AM | B191: Версия шаблона 1.4 актуальна, обновление не требуется | C191: Информация
A192: 7/13/2015 1:34:33 PM | B192: Проверка доступных обновлений... | C192: Информация
A193: 7/13/2015 1:34:38 PM | B193: Версия шаблона 1.4 актуальна, обновление не требуется | C193: Информация
A194: 7/21/2015 7:04:54 PM | B194: Проверка доступных обновлений... | C194: Информация
A195: 7/21/2015 7:04:58 PM | B195: Версия шаблона 1.4 актуальна, обновление не требуется | C195: Информация
A196: 7/21/2015 7:19:03 PM | B196: Проверка доступных обновлений... | C196: Информация
A197: 7/21/2015 7:19:04 PM | B197: Версия шаблона 1.4 актуальна, обновление не требуется | C197: Информация
A198: 8/3/2015 2:16:01 PM | B198: Проверка доступных обновлений... | C198: Информация
A199: 8/3/2015 2:16:03 PM | B199: Версия шаблона 1.4 актуальна, обновление не требуется | C199: Информация
A200: 8/4/2015 2:03:02 PM | B200: Проверка доступных обновлений... | C200: Информация
... 79 more rows

Sheet Титульный
G3: =version -> Версия 1.4
D5: Инвестиционные проекты
E8: Субъект РФ | F8: Красноярский край
E10: Тип данных | F10: Факт
E12: Год начала реализации инвестиционной программы | F12: 2012
E14: Период реализации | F14: 5 лет
E16: Отчетный период | F16: 2016 | G16: Год
F17: IV квартал | G17: Квартал
F18: Дата последнего обновления реестра организаций: 24.01.2017 9:22:37
E19: Наименование организации | F19: ООО "Красноярский жилищно-коммунальный комплекс"
E21: ИНН | F21: 2466114215
E22: КПП | F22: 246750001
E24: Вид деятельности | F24: Сетевая компания
E26: Проекты, финансируемые полностью или частично за счет средств федерального бюджета, и/или включенные в федеральные целевые программы. | F26: Нет
E27: Объекты выдачи мощности ТЭС, ГЭС, АЭС. | F27: Нет
E28: Генерирующие объекты мощностью свыше 100 МВт. | F28: Нет
E29: Проекты, имеющие федеральное значение (объекты энергоснабжения Олимпиады в г. Сочи, саммита АТЭС в г. Владивосток, ВСТО и др.). | F29: Нет
E30: Проекты сметной стоимостью свыше 3 млрд. руб. (в текущих ценах с НДС). | F30: Нет
E31: Объекты, предусмотренные Генеральной схемой размещения объектов электроэнергетики до 2020 года. | F31: Нет
E33: Адрес организации
A34: L8.1 | B34: Юридический адрес | E34: Юридический адрес: | F34: Россия, 660049, г. Красноярск ул. Парижской коммуны, 41
A35: L8.2 | B35: Почтовый адрес | E35: Почтовый адрес: | F35: Россия, 660049, г. Красноярск ул. Парижской коммуны, 41
E37: Руководитель
A38: L9.1 | B38: Руководитель.ФИО | E38: Фамилия, имя, отчество: | F38: Гончеров Олег Васильевич
A39: L9.2 | B39: Руководитель.Телефон | E39: Контактный телефон: | F39: 8-391-252-87-79
E41: Главный бухгалтер
A42: L10.1 | B42: Гл.бухгалтер.ФИО | E42: Фамилия, имя, отчество: | F42: Балашова Елена Владимировна
A43: L10.2 | B43: Гл.бухгалтер.Телефон | E43: Контактный телефон: | F43: 8-391-252-87-12
E45: Должностное лицо, ответственное за составление формы
A46: L11.1 | B46: Ответственный.ФИО | E46: Фамилия, имя, отчество: | F46: Князев Олег Викторович; Русецкий Александр Николаевич
A47: L11.2 | B47: Ответственный.Должность | E47: Должность: | F47: Начальник УКС; Зам. главного энергетика
A48: L11.3 | B48: Ответственный.Телефон | E48: Контактный телефон: | F48: 8-391-226-78-91; 8-391-226-74-90
A49: L11.4 | B49: Ответственный. E-Mail | E49: e-mail: | F49: KniazevOV@sibgenco.ru; rusetskiy@kraskom.com

Sheet Список листов
B2: Лист | C2: Заголовок листа | D2: Ссылка
B3: Ф.7.1 | C3: =Ф.7.1!D12 -> Отчет об исполнении инвестиционной программы, млн. рублей с НДС (представляется ежеквартально) | D3: Перейти на лист
B4: Ф.7.2 | C4: =Ф.7.2!D12 -> Отчет об исполнении основных этапов работ по реализации инвестиционной программы компании в 2016 году (представляется ежеквартально) | D4: Перейти на лист
B5: Ф.8 | C5: =Ф.8!D12 -> Отчет об источниках финансирования инвестиционных программ, млн. рублей (представляется ежеквартально) | D5: Перейти на лист
B6: Ф.9 | C6: =Ф.9!D12 -> Отчет о вводах/выводах объектов (представляется ежеквартально) | D6: Перейти на лист
B7: Ф.10 | C7: =Ф.10!D12 -> Отчет о ходе реализации проектов (заполняется для наиболее значимых проектов *) (представляется ежеквартально) | D7: Перейти на лист
B8: Ф.11.1 | C8: =Ф.11.1!D12 -> Отчет об исполнении сетевых графиков строительства проектов (представляется ежеквартально) | D8: Перейти на лист
B9: Ф.11.2 | C9: Контрольные этапы реализации инвестиционного проекта | D9: Перейти на лист
B10: Ф.12 | C10: =Ф.12!D12 -> Форма представления показателей финансовой отчетности (представляется ежеквартально) | D10: Перейти на лист
B11: Ф.13 | C11: =Ф.13!D13 -> Отчет о техническом состоянии объекта (представляется ежеквартально) | D11: Перейти на лист

Sheet Ф.7.1
L1: 2 | M1: 2 | N1: 3 | O1: 3 | P1: 4 | Q1: 4
C6: Список листов | AA6: Приложение № 7.1 к Приказу Минэнерго России от 24.03.2010 № 114
AA7: Утверждаю руководитель организации
AA9: (подпись)
AA10: "___" _____________ 20__ года
AA11: М.П.
D12: Отчет об исполнении инвестиционной программы, млн. рублей с НДС (представляется ежеквартально)
D13: =org & ", Факт за " & otchet_god & " г. " & kvartal -> ООО "Красноярский жилищно-коммунальный комплекс", Факт за 2016 г. IV квартал
D15: № п/п | E15: Наименование объекта | F15: Примечание | G15: Остаток стоимости на начало года * | H15: ="Объем финансирования ("& otchet_god &" год)" -> Объем финансирования (2016 год) | R15: Освоено (закрыто актами выполненных работ), млн. рублей | T15: Введено (оформлено актами ввода в эксплуатацию), млн. рублей | V15: Осталось профинанси- ровать по ре- зультатам отчетного периода * | W15: Отклонение *** | AA15: Причины отклонений
H16: Всего | J16: I кв. | L16: II кв. | N16: III кв. | P16: IV кв. | W16: млн. рублей | X16: % | Y16: в том числе за счет
H17: План ** | I17: Факт *** | J17: План | K17: Факт | L17: План | M17: Факт | N17: План | O17: Факт | P17: План | Q17: Факт | R17: Всего *** | S17: за отчетный период | T17: Всего *** | U17: за отчетный период | Y17: уточнения стоимости по результатам утвержденной ПСД | Z17: уточнения стоимости по результатам закупочных процедур
D18: 1 | E18: 2 | F18: 3 | G18: 4 | H18: 5 | I18: 6 | J18: 7 | K18: 8 | L18: 9 | M18: 10 | N18: 11 | O18: 12 | P18: 13 | Q18: 14 | R18: 15 | S18: 16 | T18: 17 | U18: 18 | V18: 19 | W18: 20 | X18: 21 | Y18: 22 | Z18: 23 | AA18: 24
E19: ВСЕГО | G19: =nerr(G20+G159) -> 34.758 | H19: 34.758 | I19: 0 | J19: 0 | K19: 0 | L19: 0 | M19: 0 | N19: 0 | O19: 0 | P19: 34.758 | Q19: 0 | R19: 0 | S19: 0 | T19: 0 | U19: 0 | V19: 34.758 | W19: 34.758 | X19: =nerr(W19/H19*100) -> 100 | Y19: =nerr(Y20+Y159) -> 0 | Z19: =nerr(Z20+Z159) -> 0
D20: 1 | E20: Техническое перевооружение и реконструкция | G20: =G21+G62+G109+G112+G115+G118 -> 34.758 | H20: 34.758 | I20: 0 | J20: 0 | K20: 0 | L20: 0 | M20: 0 | N20: 0 | O20: 0 | P20: 34.758 | Q20: 0 | R20: 0 | S20: 0 | T20: 0 | U20: 0 | V20: 34.758 | W20: 34.758 | X20: 100 | Y20: =Y21+Y62+Y109+Y112+Y115+Y118 -> 0 | Z20: =Z21+Z62+Z109+Z112+Z115+Z118 -> 0
C21: + | D21: 1.1 | E21: Реконструкция | G21: =G22+G49+G59 -> 0 | H21: 0 | I21: 0 | J21: 0 | K21: 0 | L21: 0 | M21: 0 | N21: 0 | O21: 0 | P21: 0 | Q21: 0 | R21: 0 | S21: 0 | T21: 0 | U21: 0 | V21: 0 | W21: 0 | X21: 0 | Y21: =Y22+Y49+Y59 -> 0 | Z21: =Z22+Z49+Z59 -> 0
C22: + | D22: 1.1.1 | E22: Электрические линии | G22: =G23+G36 -> 0 | H22: 0 | I22: 0 | J22: 0 | K22: 0 | L22: 0 | M22: 0 | N22: 0 | O22: 0 | P22: 0 | Q22: 0 | R22: 0 | S22: 0 | T22: 0 | U22: 0 | V22: 0 | W22: 0 | X22: 0 | Y22: =Y23+Y36 -> 0 | Z22: =Z23+Z36 -> 0
C23: + | D23: 1.1.1.1 | E23: Воздушные линии | G23: =G24+G27+G30+G33 -> 0 | H23: 0 | I23: 0 | J23: 0 | K23: 0 | L23: 0 | M23: 0 | N23: 0 | O23: 0 | P23: 0 | Q23: 0 | R23: 0 | S23: 0 | T23: 0 | U23: 0 | V23: 0 | W23: 0 | X23: 0 | Y23: =Y24+Y27+Y30+Y33 -> 0 | Z23: =Z24+Z27+Z30+Z33 -> 0
C24: + | D24: 1.1.1.1.1 | E24: ВЛЭП 110-220 кВ (ВН) | G24: =nerr(SUM(G25:G26)-G25) -> 0 | H24: 0 | I24: 0 | J24: 0 | K24: 0 | L24: 0 | M24: 0 | N24: 0 | O24: 0 | P24: 0 | Q24: 0 | R24: 0 | S24: 0 | T24: 0 | U24: 0 | V24: 0 | W24: 0 | X24: 0 | Y24: =nerr(SUM(Y25:Y26)-Y25) -> 0 | Z24: =nerr(SUM(Z25:Z26)-Z25) -> 0
D25: 1.1.1.1.1.0 | H25: =nerr(J25+L25+N25+P25) -> 0 | I25: =nerr(K25+M25+O25+Q25) -> 0 | W25: =H25-I25 -> 0 | X25: 0
E26: Добавить
C27: + | D27: 1.1.1.1.2 | E27: ВЛЭП 35 кВ (СН1) | G27: =nerr(SUM(G28:G29)-G28) -> 0 | H27: 0 | I27: 0 | J27: 0 | K27: 0 | L27: 0 | M27: 0 | N27: 0 | O27: 0 | P27: 0 | Q27: 0 | R27: 0 | S27: 0 | T27: 0 | U27: 0 | V27: 0 | W27: 0 | X27: =nerr(W27/H27*100) -> 0 | Y27: =nerr(SUM(Y28:Y29)-Y28) -> 0 | Z27: =nerr(SUM(Z28:Z29)-Z28) -> 0
D28: 1.1.1.1.2.0 | H28: =nerr(J28+L28+N28+P28) -> 0 | I28: =nerr(K28+M28+O28+Q28) -> 0 | W28: =H28-I28 -> 0 | X28: =nerr(W28/H28*100) -> 0
E29: Добавить
C30: + | D30: 1.1.1.1.3 | E30: ВЛЭП 1-20 кВ (СН2) | G30: =nerr(SUM(G31:G32)-G31) -> 0 | H30: 0 | I30: 0 | J30: 0 | K30: 0 | L30: 0 | M30: 0 | N30: 0 | O30: 0 | P30: 0 | Q30: 0 | R30: 0 | S30: 0 | T30: 0 | U30: 0 | V30: 0 | W30: 0 | X30: =nerr(W30/H30*100) -> 0 | Y30: =nerr(SUM(Y31:Y32)-Y31) -> 0 | Z30: =nerr(SUM(Z31:Z32)-Z31) -> 0
D31: 1.1.1.1.3.0 | H31: =nerr(J31+L31+N31+P31) -> 0 | I31: =nerr(K31+M31+O31+Q31) -> 0 | W31: =H31-I31 -> 0 | X31: =nerr(W31/H31*100) -> 0
E32: Добавить
C33: + | D33: 1.1.1.1.4 | E33: ВЛЭП 0,4 кВ (НН) | G33: =nerr(SUM(G34:G35)-G34) -> 0 | H33: 0 | I33: 0 | J33: 0 | K33: 0 | L33: 0 | M33: 0 | N33: 0 | O33: 0 | P33: 0 | Q33: 0 | R33: 0 | S33: 0 | T33: 0 | U33: 0 | V33: 0 | W33: 0 | X33: =nerr(W33/H33*100) -> 0 | Y33: =nerr(SUM(Y34:Y35)-Y34) -> 0 | Z33: =nerr(SUM(Z34:Z35)-Z34) -> 0
D34: 1.1.1.1.4.0 | H34: =nerr(J34+L34+N34+P34) -> 0 | I34: =nerr(K34+M34+O34+Q34) -> 0 | W34: =H34-I34 -> 0 | X34: =nerr(W34/H34*100) -> 0
E35: Добавить
C36: + | D36: 1.1.1.2 | E36: Кабельные линии | G36: =G37+G40+G43+G46 -> 0 | H36: 0 | I36: 0 | J36: 0 | K36: 0 | L36: 0 | M36: 0 | N36: 0 | O36: 0 | P36: 0 | Q36: 0 | R36: 0 | S36: 0 | T36: 0 | U36: 0 | V36: 0 | W36: 0 | X36: =nerr(W36/H36*100) -> 0 | Y36: =Y37+Y40+Y43+Y46 -> 0 | Z36: =Z37+Z40+Z43+Z46 -> 0
C37: + | D37: 1.1.1.2.1 | E37: КЛЭП 110 кВ (ВН) | G37: =nerr(SUM(G38:G39)-G38) -> 0 | H37: 0 | I37: 0 | J37: 0 | K37: 0 | L37: 0 | M37: 0 | N37: 0 | O37: 0 | P37: 0 | Q37: 0 | R37: 0 | S37: 0 | T37: 0 | U37: 0 | V37: 0 | W37: 0 | X37: =nerr(W37/H37*100) -> 0 | Y37: =nerr(SUM(Y38:Y39)-Y38) -> 0 | Z37: =nerr(SUM(Z38:Z39)-Z38) -> 0
D38: 1.1.1.2.1.0 | H38: =nerr(J38+L38+N38+P38) -> 0 | I38: =nerr(K38+M38+O38+Q38) -> 0 | W38: =H38-I38 -> 0 | X38: =nerr(W38/H38*100) -> 0
E39: Добавить
C40: + | D40: 1.1.1.2.2 | E40: КЛЭП 20-35 кВ (СН1) | G40: =nerr(SUM(G41:G42)-G41) -> 0 | H40: 0 | I40: 0 | J40: 0 | K40: 0 | L40: 0 | M40: 0 | N40: 0 | O40: 0 | P40: 0 | Q40: 0 | R40: 0 | S40: 0 | T40: 0 | U40: 0 | V40: 0 | W40: 0 | X40: =nerr(W40/H40*100) -> 0 | Y40: =nerr(SUM(Y41:Y42)-Y41) -> 0 | Z40: =nerr(SUM(Z41:Z42)-Z41) -> 0
D41: 1.1.1.2.2.0 | H41: =nerr(J41+L41+N41+P41) -> 0 | I41: =nerr(K41+M41+O41+Q41) -> 0 | W41: =H41-I41 -> 0 | X41: =nerr(W41/H41*100) -> 0
E42: Добавить
C43: + | D43: 1.1.1.2.3 | E43: КЛЭП 3-10 кВ (СН2) | G43: =nerr(SUM(G44:G45)-G44) -> 0 | H43: 0 | I43: 0 | J43: 0 | K43: 0 | L43: 0 | M43: 0 | N43: 0 | O43: 0 | P43: 0 | Q43: 0 | R43: 0 | S43: 0 | T43: 0 | U43: 0 | V43: 0 | W43: 0 | X43: =nerr(W43/H43*100) -> 0 | Y43: =nerr(SUM(Y44:Y45)-Y44) -> 0 | Z43: =nerr(SUM(Z44:Z45)-Z44) -> 0
D44: 1.1.1.2.3.0 | H44: =nerr(J44+L44+N44+P44) -> 0 | I44: =nerr(K44+M44+O44+Q44) -> 0 | W44: =H44-I44 -> 0 | X44: =nerr(W44/H44*100) -> 0
E45: Добавить
C46: + | D46: 1.1.1.2.4 | E46: КЛЭП до 1 кВ (НН) | G46: =nerr(SUM(G47:G48)-G47) -> 0 | H46: 0 | I46: 0 | J46: 0 | K46: 0 | L46: 0 | M46: 0 | N46: 0 | O46: 0 | P46: 0 | Q46: 0 | R46: 0 | S46: 0 | T46: 0 | U46: 0 | V46: 0 | W46: 0 | X46: =nerr(W46/H46*100) -> 0 | Y46: =nerr(SUM(Y47:Y48)-Y47) -> 0 | Z46: =nerr(SUM(Z47:Z48)-Z47) -> 0
D47: 1.1.1.2.4.0 | H47: =nerr(J47+L47+N47+P47) -> 0 | I47: =nerr(K47+M47+O47+Q47) -> 0 | W47: =H47-I47 -> 0 | X47: =nerr(W47/H47*100) -> 0
E48: Добавить
C49: + | D49: 1.1.2 | E49: Подстанции | G49: =G50+G53+G56 -> 0 | H49: 0 | I49: 0 | J49: 0 | K49: 0 | L49: 0 | M49: 0 | N49: 0 | O49: 0 | P49: 0 | Q49: 0 | R49: 0 | S49: 0 | T49: 0 | U49: 0 | V49: 0 | W49: 0 | X49: =nerr(W49/H49*100) -> 0 | Y49: =Y50+Y53+Y56 -> 0 | Z49: =Z50+Z53+Z56 -> 0
C50: + | D50: 1.1.2.1 | E50: Уровень входящего напряжения ВН | G50: =nerr(SUM(G51:G52)-G51) -> 0 | H50: 0 | I50: 0 | J50: 0 | K50: 0 | L50: 0 | M50: 0 | N50: 0 | O50: 0 | P50: 0 | Q50: 0 | R50: 0 | S50: 0 | T50: 0 | U50: 0 | V50: 0 | W50: 0 | X50: =nerr(W50/H50*100) -> 0 | Y50: =nerr(SUM(Y51:Y52)-Y51) -> 0 | Z50: =nerr(SUM(Z51:Z52)-Z51) -> 0
D51: 1.1.2.1.0 | H51: =nerr(J51+L51+N51+P51) -> 0 | I51: =nerr(K51+M51+O51+Q51) -> 0 | W51: =H51-I51 -> 0 | X51: =nerr(W51/H51*100) -> 0
E52: Добавить
C53: + | D53: 1.1.2.2 | E53: Уровень входящего напряжения СН1 | G53: =nerr(SUM(G54:G55)-G54) -> 0 | H53: 0 | I53: 0 | J53: 0 | K53: 0 | L53: 0 | M53: 0 | N53: 0 | O53: 0 | P53: 0 | Q53: 0 | R53: 0 | S53: 0 | T53: 0 | U53: 0 | V53: 0 | W53: 0 | X53: =nerr(W53/H53*100) -> 0 | Y53: =nerr(SUM(Y54:Y55)-Y54) -> 0 | Z53: =nerr(SUM(Z54:Z55)-Z54) -> 0
D54: 1.1.2.2.0 | H54: =nerr(J54+L54+N54+P54) -> 0 | I54: =nerr(K54+M54+O54+Q54) -> 0 | W54: =H54-I54 -> 0 | X54: =nerr(W54/H54*100) -> 0
E55: Добавить
C56: + | D56: 1.1.2.3 | E56: Уровень входящего напряжения СН2 | G56: =nerr(SUM(G57:G58)-G57) -> 0 | H56: 0 | I56: 0 | J56: 0 | K56: 0 | L56: 0 | M56: 0 | N56: 0 | O56: 0 | P56: 0 | Q56: 0 | R56: 0 | S56: 0 | T56: 0 | U56: 0 | V56: 0 | W56: 0 | X56: =nerr(W56/H56*100) -> 0 | Y56: =nerr(SUM(Y57:Y58)-Y57) -> 0 | Z56: =nerr(SUM(Z57:Z58)-Z57) -> 0
D57: 1.1.2.3.0 | H57: =nerr(J57+L57+N57+P57) -> 0 | I57: =nerr(K57+M57+O57+Q57) -> 0 | W57: =H57-I57 -> 0 | X57: =nerr(W57/H57*100) -> 0
E58: Добавить
C59: + | D59: 1.1.3 | E59: Прочие электросетевые объекты | G59: =nerr(SUM(G60:G61)-G60) -> 0 | H59: 0 | I59: 0 | J59: 0 | K59: 0 | L59: 0 | M59: 0 | N59: 0 | O59: 0 | P59: 0 | Q59: 0 | R59: 0 | S59: 0 | T59: 0 | U59: 0 | V59: 0 | W59: 0 | X59: =nerr(W59/H59*100) -> 0 | Y59: =nerr(SUM(Y60:Y61)-Y60) -> 0 | Z59: =nerr(SUM(Z60:Z61)-Z60) -> 0
D60: 1.1.3.0 | H60: =nerr(J60+L60+N60+P60) -> 0 | I60: =nerr(K60+M60+O60+Q60) -> 0 | W60: =H60-I60 -> 0 | X60: =nerr(W60/H60*100) -> 0
E61: Добавить
C62: + | D62: 1.2 | E62: Энергосбережение и повышение энергетической эффективности | G62: =G63+G90+G106 -> 34.758 | H62: 34.758 | I62: 0 | J62: 0 | K62: 0 | L62: 0 | M62: 0 | N62: 0 | O62: 0 | P62: 34.758 | Q62: 0 | R62: 0 | S62: 0 | T62: 0 | U62: 0 | V62: 34.758 | W62: 34.758 | X62: =nerr(W62/H62*100) -> 100 | Y62: =Y63+Y90+Y106 -> 0 | Z62: =Z63+Z90+Z106 -> 0
C63: + | D63: 1.2.1 | E63: Электрические линии | G63: =G64+G77 -> 0 | H63: 0 | I63: 0 | J63: 0 | K63: 0 | L63: 0 | M63: 0 | N63: 0 | O63: 0 | P63: 0 | Q63: 0 | R63: 0 | S63: 0 | T63: 0 | U63: 0 | V63: 0 | W63: 0 | X63: =nerr(W63/H63*100) -> 0 | Y63: =Y64+Y77 -> 0 | Z63: =Z64+Z77 -> 0
C64: + | D64: 1.2.1.1 | E64: Воздушные линии | G64: =G65+G68+G71+G74 -> 0 | H64: 0 | I64: 0 | J64: 0 | K64: 0 | L64: 0 | M64: 0 | N64: 0 | O64: 0 | P64: 0 | Q64: 0 | R64: 0 | S64: 0 | T64: 0 | U64: 0 | V64: 0 | W64: 0 | X64: =nerr(W64/H64*100) -> 0 | Y64: =Y65+Y68+Y71+Y74 -> 0 | Z64: =Z65+Z68+Z71+Z74 -> 0
C65: + | D65: 1.2.1.1.1 | E65: ВЛЭП 110-220 кВ (ВН) | G65: =nerr(SUM(G66:G67)-G66) -> 0 | H65: 0 | I65: 0 | J65: 0 | K65: 0 | L65: 0 | M65: 0 | N65: 0 | O65: 0 | P65: 0 | Q65: 0 | R65: 0 | S65: 0 | T65: 0 | U65: 0 | V65: 0 | W65: =nerr(SUM(W66:W67)-W66) -> 0 | X65: =nerr(W65/H65*100) -> 0 | Y65: =nerr(SUM(Y66:Y67)-Y66) -> 0 | Z65: =nerr(SUM(Z66:Z67)-Z66) -> 0
D66: 1.2.1.1.1.0 | H66: =nerr(J66+L66+N66+P66) -> 0 | I66: =nerr(K66+M66+O66+Q66) -> 0 | W66: =H66-I66 -> 0 | X66: =nerr(W66/H66*100) -> 0
E67: Добавить
C68: + | D68: 1.2.1.1.2 | E68: ВЛЭП 35 кВ (СН1) | G68: =nerr(SUM(G69:G70)-G69) -> 0 | H68: 0 | I68: 0 | J68: 0 | K68: 0 | L68: 0 | M68: 0 | N68: 0 | O68: 0 | P68: 0 | Q68: 0 | R68: 0 | S68: 0 | T68: 0 | U68: 0 | V68: 0 | W68: 0 | X68: =nerr(W68/H68*100) -> 0 | Y68: =nerr(SUM(Y69:Y70)-Y69) -> 0 | Z68: =nerr(SUM(Z69:Z70)-Z69) -> 0
D69: 1.2.1.1.2.0 | H69: =nerr(J69+L69+N69+P69) -> 0 | I69: =nerr(K69+M69+O69+Q69) -> 0 | W69: =H69-I69 -> 0 | X69: =nerr(W69/H69*100) -> 0
E70: Добавить
C71: + | D71: 1.2.1.1.3 | E71: ВЛЭП 1-20 кВ (СН2) | G71: =nerr(SUM(G72:G73)-G72) -> 0 | H71: 0 | I71: 0 | J71: 0 | K71: 0 | L71: 0 | M71: 0 | N71: 0 | O71: 0 | P71: 0 | Q71: 0 | R71: 0 | S71: 0 | T71: 0 | U71: 0 | V71: 0 | W71: 0 | X71: =nerr(W71/H71*100) -> 0 | Y71: =nerr(SUM(Y72:Y73)-Y72) -> 0 | Z71: =nerr(SUM(Z72:Z73)-Z72) -> 0
D72: 1.2.1.1.3.0 | H72: =nerr(J72+L72+N72+P72) -> 0 | I72: =nerr(K72+M72+O72+Q72) -> 0 | W72: =H72-I72 -> 0 | X72: =nerr(W72/H72*100) -> 0
E73: Добавить
C74: + | D74: 1.2.1.1.4 | E74: ВЛЭП 0,4 кВ (НН) | G74: =nerr(SUM(G75:G76)-G75) -> 0 | H74: 0 | I74: 0 | J74: 0 | K74: 0 | L74: 0 | M74: 0 | N74: 0 | O74: 0 | P74: 0 | Q74: 0 | R74: 0 | S74: 0 | T74: 0 | U74: 0 | V74: 0 | W74: 0 | X74: =nerr(W74/H74*100) -> 0 | Y74: =nerr(SUM(Y75:Y76)-Y75) -> 0 | Z74: =nerr(SUM(Z75:Z76)-Z75) -> 0
D75: 1.2.1.1.4.0 | H75: =nerr(J75+L75+N75+P75) -> 0 | I75: =nerr(K75+M75+O75+Q75) -> 0 | W75: =H75-I75 -> 0 | X75: =nerr(W75/H75*100) -> 0
E76: Добавить
C77: + | D77: 1.2.1.2 | E77: Кабельные линии | G77: =G78+G81+G84+G87 -> 0 | H77: 0 | I77: 0 | J77: 0 | K77: 0 | L77: 0 | M77: 0 | N77: 0 | O77: 0 | P77: 0 | Q77: 0 | R77: 0 | S77: 0 | T77: 0 | U77: 0 | V77: 0 | W77: 0 | X77: =nerr(W77/H77*100) -> 0 | Y77: =Y78+Y81+Y84+Y87 -> 0 | Z77: =Z78+Z81+Z84+Z87 -> 0
C78: + | D78: 1.2.1.2.1 | E78: КЛЭП 110 кВ (ВН) | G78: =nerr(SUM(G79:G80)-G79) -> 0 | H78: 0 | I78: 0 | J78: 0 | K78: 0 | L78: 0 | M78: 0 | N78: 0 | O78: 0 | P78: 0 | Q78: 0 | R78: 0 | S78: 0 | T78: 0 | U78: 0 | V78: 0 | W78: 0 | X78: =nerr(W78/H78*100) -> 0 | Y78: =nerr(SUM(Y79:Y80)-Y79) -> 0 | Z78: =nerr(SUM(Z79:Z80)-Z79) -> 0
D79: 1.2.1.2.1.0 | H79: =nerr(J79+L79+N79+P79) -> 0 | I79: =nerr(K79+M79+O79+Q79) -> 0 | W79: =H79-I79 -> 0 | X79: =nerr(W79/H79*100) -> 0
E80: Добавить
C81: + | D81: 1.2.1.2.2 | E81: КЛЭП 20-35 кВ (СН1) | G81: =nerr(SUM(G82:G83)-G82) -> 0 | H81: 0 | I81: 0 | J81: 0 | K81: 0 | L81: 0 | M81: 0 | N81: 0 | O81: 0 | P81: 0 | Q81: 0 | R81: 0 | S81: 0 | T81: 0 | U81: 0 | V81: 0 | W81: 0 | X81: =nerr(W81/H81*100) -> 0 | Y81: =nerr(SUM(Y82:Y83)-Y82) -> 0 | Z81: =nerr(SUM(Z82:Z83)-Z82) -> 0
D82: 1.2.1.2.2.0 | H82: =nerr(J82+L82+N82+P82) -> 0 | I82: =nerr(K82+M82+O82+Q82) -> 0 | W82: =H82-I82 -> 0 | X82: =nerr(W82/H82*100) -> 0
E83: Добавить
C84: + | D84: 1.2.1.2.3 | E84: КЛЭП 3-10 кВ (СН2) | G84: =nerr(SUM(G85:G86)-G85) -> 0 | H84: 0 | I84: 0 | J84: 0 | K84: 0 | L84: 0 | M84: 0 | N84: 0 | O84: 0 | P84: 0 | Q84: 0 | R84: 0 | S84: 0 | T84: 0 | U84: 0 | V84: 0 | W84: 0 | X84: =nerr(W84/H84*100) -> 0 | Y84: =nerr(SUM(Y85:Y86)-Y85) -> 0 | Z84: =nerr(SUM(Z85:Z86)-Z85) -> 0
D85: 1.2.1.2.3.0 | E85: Замена двух кабельных линий электропередачи марки АСБ напряжением 6 кВ, сечением 3х120кв.мм от главного распределительного устройства 6 кВ, находящегося на территории ТЭЦ-1, до распределительной подстанции №128, находящейся по ул. 26 Бакинских комиссаров, 50а, на кабельные линии электропередачи марки АСБ большего сечения, с установкой двух приборов учета электрической энергии | H85: =nerr(J85+L85+N85+P85) -> 0 | I85: =nerr(K85+M85+O85+Q85) -> 0 | W85: =H85-I85 -> 0 | X85: =nerr(W85/H85*100) -> 0
E86: Добавить
C87: + | D87: 1.2.1.2.4 | E87: КЛЭП до 1 кВ (НН) | G87: =nerr(SUM(G88:G89)-G88) -> 0 | H87: 0 | I87: 0 | J87: 0 | K87: 0 | L87: 0 | M87: 0 | N87: 0 | O87: 0 | P87: 0 | Q87: 0 | R87: 0 | S87: 0 | T87: 0 | U87: 0 | V87: 0 | W87: 0 | X87: =nerr(W87/H87*100) -> 0 | Y87: =nerr(SUM(Y88:Y89)-Y88) -> 0 | Z87: =nerr(SUM(Z88:Z89)-Z88) -> 0
D88: 1.2.1.2.4.0 | H88: =nerr(J88+L88+N88+P88) -> 0 | I88: =nerr(K88+M88+O88+Q88) -> 0 | W88: =H88-I88 -> 0 | X88: =nerr(W88/H88*100) -> 0
E89: Добавить
C90: + | D90: 1.2.2 | E90: Подстанции | G90: =G91+G94+G97 -> 34.758 | H90: 34.758 | I90: 0 | J90: 0 | K90: 0 | L90: 0 | M90: 0 | N90: 0 | O90: 0 | P90: 34.758 | Q90: 0 | R90: 0 | S90: 0 | T90: 0 | U90: 0 | V90: 34.758 | W90: 34.758 | X90: =nerr(W90/H90*100) -> 100 | Y90: =Y91+Y94+Y97 -> 0 | Z90: =Z91+Z94+Z97 -> 0
C91: + | D91: 1.2.2.1 | E91: Уровень входящего напряжения ВН | G91: =nerr(SUM(G92:G93)-G92) -> 0 | H91: 0 | I91: 0 | J91: 0 | K91: 0 | L91: 0 | M91: 0 | N91: 0 | O91: 0 | P91: 0 | Q91: 0 | R91: 0 | S91: 0 | T91: 0 | U91: 0 | V91: 0 | W91: 0 | X91: =nerr(W91/H91*100) -> 0 | Y91: =nerr(SUM(Y92:Y93)-Y92) -> 0 | Z91: =nerr(SUM(Z92:Z93)-Z92) -> 0
D92: 1.2.2.1.0 | H92: =nerr(J92+L92+N92+P92) -> 0 | I92: =nerr(K92+M92+O92+Q92) -> 0 | W92: =H92-I92 -> 0 | X92: =nerr(W92/H92*100) -> 0
E93: Добавить
C94: + | D94: 1.2.2.2 | E94: Уровень входящего напряжения СН1 | G94: =nerr(SUM(G95:G96)-G95) -> 0 | H94: 0 | I94: 0 | J94: 0 | K94: 0 | L94: 0 | M94: 0 | N94: 0 | O94: 0 | P94: 0 | Q94: 0 | R94: 0 | S94: 0 | T94: 0 | U94: 0 | V94: 0 | W94: 0 | X94: =nerr(W94/H94*100) -> 0 | Y94: =nerr(SUM(Y95:Y96)-Y95) -> 0 | Z94: =nerr(SUM(Z95:Z96)-Z95) -> 0
D95: 1.2.2.2.0 | H95: =nerr(J95+L95+N95+P95) -> 0 | I95: =nerr(K95+M95+O95+Q95) -> 0 | W95: =H95-I95 -> 0 | X95: =nerr(W95/H95*100) -> 0
E96: Добавить
C97: + | D97: 1.2.2.3 | E97: Уровень входящего напряжения СН2 | G97: =nerr(SUM(G98:G105)-G98) -> 34.758 | H97: 34.758 | I97: 0 | J97: 0 | K97: 0 | L97: 0 | M97: 0 | N97: 0 | O97: 0 | P97: 34.758 | Q97: 0 | R97: 0 | S97: 0 | T97: 0 | U97: 0 | V97: 34.758 | W97: 34.758 | X97: =nerr(W97/H97*100) -> 100 | Y97: =nerr(SUM(Y98:Y105)-Y98) -> 0 | Z97: =nerr(SUM(Z98:Z105)-Z98) -> 0
D98: 1.2.2.3.0 | H98: =nerr(J98+L98+N98+P98) -> 0 | I98: 0 | W98: =H98-I98 -> 0 | X98: 0
C99: Удалить | D99: 1.2.2.3.1 | E99: Модернизация оборудования трансформаторной подстанции № 685, находящейся по ул. Глинки, 13г | G99: 3.593 | H99: =nerr(J99+L99+N99+P99) -> 3.593 | I99: 0 | J99: 0 | K99: 0 | L99: 0 | M99: 0 | N99: 0 | O99: 0 | P99: =G99 -> 3.593 | Q99: 0 | R99: =K99+M99+O99+Q99 -> 0 | S99: =Q99 -> 0 | T99: =K99+M99+O99+Q99 -> 0 | U99: =S99 -> 0 | V99: =H99-I99 -> 3.593 | W99: 3.593 | X99: 100 | AC99: 45
C100: Удалить | D100: 1.2.2.3.2 | E100: Модернизация оборудования трансформаторной подстанции № 783, находящейся по ул. Парковая, 10 а | G100: 6.952 | H100: 6.952 | I100: 0 | J100: 0 | K100: 0 | L100: 0 | M100: 0 | N100: 0 | O100: 0 | P100: =G100 -> 6.952 | Q100: 0 | R100: 0 | S100: 0 | T100: 0 | U100: 0 | V100: 6.952 | W100: 6.952 | X100: 100 | AC100: 46
C101: Удалить | D101: 1.2.2.3.3 | E101: Модернизация распределительного устройства напряжением 6 кВ в распределительной подстанции № 127, находящейся по ул. Пограничников, 7 д | G101: 9.637 | H101: 9.637 | I101: 0 | J101: 0 | K101: 0 | L101: 0 | M101: 0 | N101: 0 | O101: 0 | P101: 9.637 | Q101: 0 | R101: 0 | S101: 0 | T101: 0 | U101: 0 | V101: 9.637 | W101: =H101-I101 -> 9.637 | X101: =nerr(W101/H101*100) -> 100 | AC101: 50
C102: Удалить | D102: 1.2.2.3.4 | E102: Модернизация оборудования трансформаторной подстанции № 508, находящейся по ул. Армейская, 21 г | G102: 7.39 | H102: 7.39 | I102: 0 | J102: 0 | K102: 0 | L102: 0 | M102: 0 | N102: 0 | O102: 0 | P102: 7.39 | Q102: 0 | R102: 0 | S102: 0 | T102: 0 | U102: 0 | V102: 7.39 | W102: 7.39 | X102: 100 | AC102: 51
C103: Удалить | D103: 1.2.2.3.5 | E103: Модернизация оборудования трансформаторной подстанции № 686, находящейся по ул. Глинки, 7г | G103: 3.593 | H103: =nerr(J103+L103+N103+P103) -> 3.593 | I103: =nerr(K103+M103+O103+Q103) -> 0 | J103: 0 | K103: 0 | L103: 0 | M103: 0 | N103: 0 | O103: 0 | P103: 3.593 | Q103: 0 | R103: =K103+M103+O103+Q103 -> 0 | S103: =Q103 -> 0 | T103: =K103+M103+O103+Q103 -> 0 | U103: =S103 -> 0 | V103: =H103-I103 -> 3.593 | W103: 3.593 | X103: 100 | AC103: 52
C104: Удалить | D104: 1.2.2.3.6 | E104: Модернизация оборудования трансформаторной подстанции № 581, находящейся по ул. Малиновского, 4г | G104: 3.593 | H104: =nerr(J104+L104+N104+P104) -> 3.593 | I104: =nerr(K104+M104+O104+Q104) -> 0 | J104: 0 | K104: 0 | L104: 0 | M104: 0 | N104: 0 | O104: 0 | P104: 3.593 | Q104: 0 | R104: =K104+M104+O104+Q104 -> 0 | S104: =Q104 -> 0 | T104: =K104+M104+O104+Q104 -> 0 | U104: =S104 -> 0 | V104: =H104-I104 -> 3.593 | W104: 3.593 | X104: 100 | AC104: 53
E105: Добавить
C106: + | D106: 1.2.3 | E106: Прочие электросетевые объекты | G106: =nerr(SUM(G107:G108)-G107) -> 0 | H106: 0 | I106: 0 | J106: 0 | K106: 0 | L106: 0 | M106: 0 | N106: 0 | O106: 0 | P106: 0 | Q106: 0 | R106: 0 | S106: 0 | T106: 0 | U106: 0 | V106: 0 | W106: 0 | X106: =nerr(W106/H106*100) -> 0 | Y106: =nerr(SUM(Y107:Y108)-Y107) -> 0 | Z106: =nerr(SUM(Z107:Z108)-Z107) -> 0
D107: 1.2.3.0 | H107: =nerr(J107+L107+N107+P107) -> 0 | I107: =nerr(K107+M107+O107+Q107) -> 0 | W107: =H107-I107 -> 0 | X107: =nerr(W107/H107*100) -> 0
E108: Добавить
C109: + | D109: 1.3 | E109: Создание систем противоаварийной и режимной автоматики | G109: =nerr(SUM(G110:G111)-G110) -> 0 | H109: 0 | I109: 0 | J109: 0 | K109: 0 | L109: 0 | M109: 0 | N109: 0 | O109: 0 | P109: 0 | Q109: 0 | R109: 0 | S109: 0 | T109: 0 | U109: 0 | V109: 0 | W109: 0 | X109: =nerr(W109/H109*100) -> 0 | Y109: =nerr(SUM(Y110:Y111)-Y110) -> 0 | Z109: =nerr(SUM(Z110:Z111)-Z110) -> 0
D110: 1.3.0 | H110: =nerr(J110+L110+N110+P110) -> 0 | I110: =nerr(K110+M110+O110+Q110) -> 0 | W110: =H110-I110 -> 0 | X110: =nerr(W110/H110*100) -> 0
E111: Добавить
C112: + | D112: 1.4 | E112: Создание систем телемеханики и связи | G112: =nerr(SUM(G113:G114)-G113) -> 0 | H112: 0 | I112: 0 | J112: 0 | K112: 0 | L112: 0 | M112: 0 | N112: 0 | O112: 0 | P112: 0 | Q112: 0 | R112: 0 | S112: 0 | T112: 0 | U112: 0 | V112: 0 | W112: 0 | X112: =nerr(W112/H112*100) -> 0 | Y112: =nerr(SUM(Y113:Y114)-Y113) -> 0 | Z112: =nerr(SUM(Z113:Z114)-Z113) -> 0
D113: 1.4.0 | H113: =nerr(J113+L113+N113+P113) -> 0 | I113: =nerr(K113+M113+O113+Q113) -> 0 | J113: 0 | K113: 0 | R113: 0 | S113: 0 | T113: 0 | U113: 0 | V113: =G113-K113 -> 0 | W113: =H113-I113 -> 0 | X113: =nerr(W113/H113*100) -> 0
E114: Добавить
C115: + | D115: 1.5 | E115: Установка устройств регулирования напряжения и компенсации реактивной мощности | G115: =nerr(SUM(G116:G117)-G116) -> 0 | H115: 0 | I115: 0 | J115: 0 | K115: 0 | L115: 0 | M115: 0 | N115: 0 | O115: 0 | P115: 0 | Q115: 0 | R115: 0 | S115: 0 | T115: 0 | U115: 0 | V115: 0 | W115: 0 | X115: =nerr(W115/H115*100) -> 0 | Y115: =nerr(SUM(Y116:Y117)-Y116) -> 0 | Z115: =nerr(SUM(Z116:Z117)-Z116) -> 0
D116: 1.5.0 | H116: =nerr(J116+L116+N116+P116) -> 0 | I116: =nerr(K116+M116+O116+Q116) -> 0 | W116: =H116-I116 -> 0 | X116: =nerr(W116/H116*100) -> 0
E117: Добавить
C118: + | D118: 1.6 | E118: Исполнение договоров технологического присоединения | G118: =G119+G146+G156 -> 0 | H118: 0 | I118: 0 | J118: 0 | K118: 0 | L118: 0 | M118: 0 | N118: 0 | O118: 0 | P118: 0 | Q118: 0 | R118: 0 | S118: 0 | T118: 0 | U118: 0 | V118: 0 | W118: =W119+W146+W156 -> 0 | X118: =nerr(W118/H118*100) -> 0 | Y118: =Y119+Y146+Y156 -> 0 | Z118: =Z119+Z146+Z156 -> 0
C119: + | D119: 1.6.1 | E119: Электрические линии | G119: =G120+G133 -> 0 | H119: 0 | I119: 0 | J119: 0 | K119: 0 | L119: 0 | M119: 0 | N119: 0 | O119: 0 | P119: 0 | Q119: 0 | R119: 0 | S119: 0 | T119: 0 | U119: 0 | V119: 0 | W119: =W120+W133 -> 0 | X119: =nerr(W119/H119*100) -> 0 | Y119: =Y120+Y133 -> 0 | Z119: =Z120+Z133 -> 0
C120: + | D120: 1.6.1.1 | E120: Воздушные линии | G120: =G121+G124+G127+G130 -> 0 | H120: 0 | I120: 0 | J120: 0 | K120: 0 | L120: 0 | M120: 0 | N120: 0 | O120: 0 | P120: 0 | Q120: 0 | R120: 0 | S120: 0 | T120: 0 | U120: 0 | V120: 0 | W120: =W121+W124+W127+W130 -> 0 | X120: =nerr(W120/H120*100) -> 0 | Y120: =Y121+Y124+Y127+Y130 -> 0 | Z120: =Z121+Z124+Z127+Z130 -> 0
C121: + | D121: 1.6.1.1.1 | E121: ВЛЭП 110-220 кВ (ВН) | G121: =nerr(SUM(G122:G123)-G122) -> 0 | H121: 0 | I121: 0 | J121: 0 | K121: 0 | L121: 0 | M121: 0 | N121: 0 | O121: 0 | P121: 0 | Q121: 0 | R121: 0 | S121: 0 | T121: 0 | U121: 0 | V121: 0 | W121: =nerr(SUM(W122:W123)-W122) -> 0 | X121: =nerr(W121/H121*100) -> 0 | Y121: =nerr(SUM(Y122:Y123)-Y122) -> 0 | Z121: =nerr(SUM(Z122:Z123)-Z122) -> 0
D122: 1.6.1.1.1.0 | H122: =nerr(J122+L122+N122+P122) -> 0 | I122: =nerr(K122+M122+O122+Q122) -> 0 | W122: =H122-I122 -> 0 | X122: =nerr(W122/H122*100) -> 0
E123: Добавить
C124: + | D124: 1.6.1.1.2 | E124: ВЛЭП 35 кВ (СН1) | G124: =nerr(SUM(G125:G126)-G125) -> 0 | H124: 0 | I124: 0 | J124: 0 | K124: 0 | L124: 0 | M124: 0 | N124: 0 | O124: 0 | P124: 0 | Q124: 0 | R124: 0 | S124: 0 | T124: 0 | U124: 0 | V124: 0 | W124: 0 | X124: =nerr(W124/H124*100) -> 0 | Y124: =nerr(SUM(Y125:Y126)-Y125) -> 0 | Z124: =nerr(SUM(Z125:Z126)-Z125) -> 0
D125: 1.6.1.1.2.0 | H125: =nerr(J125+L125+N125+P125) -> 0 | I125: =nerr(K125+M125+O125+Q125) -> 0 | W125: =H125-I125 -> 0 | X125: =nerr(W125/H125*100) -> 0
E126: Добавить
C127: + | D127: 1.6.1.1.3 | E127: ВЛЭП 1-20 кВ (СН2) | G127: =nerr(SUM(G128:G129)-G128) -> 0 | H127: 0 | I127: 0 | J127: 0 | K127: 0 | L127: 0 | M127: 0 | N127: 0 | O127: 0 | P127: 0 | Q127: 0 | R127: 0 | S127: 0 | T127: 0 | U127: 0 | V127: 0 | W127: 0 | X127: =nerr(W127/H127*100) -> 0 | Y127: =nerr(SUM(Y128:Y129)-Y128) -> 0 | Z127: =nerr(SUM(Z128:Z129)-Z128) -> 0
D128: 1.6.1.1.3.0 | H128: =nerr(J128+L128+N128+P128) -> 0 | I128: =nerr(K128+M128+O128+Q128) -> 0 | W128: =H128-I128 -> 0 | X128: =nerr(W128/H128*100) -> 0
E129: Добавить
C130: + | D130: 1.6.1.1.4 | E130: ВЛЭП 0,4 кВ (НН) | G130: =nerr(SUM(G131:G132)-G131) -> 0 | H130: 0 | I130: 0 | J130: 0 | K130: 0 | L130: 0 | M130: 0 | N130: 0 | O130: 0 | P130: 0 | Q130: 0 | R130: 0 | S130: 0 | T130: 0 | U130: 0 | V130: 0 | W130: 0 | X130: =nerr(W130/H130*100) -> 0 | Y130: =nerr(SUM(Y131:Y132)-Y131) -> 0 | Z130: =nerr(SUM(Z131:Z132)-Z131) -> 0
D131: 1.6.1.1.4.0 | H131: =nerr(J131+L131+N131+P131) -> 0 | I131: =nerr(K131+M131+O131+Q131) -> 0 | W131: =H131-I131 -> 0 | X131: =nerr(W131/H131*100) -> 0
E132: Добавить
C133: + | D133: 1.6.1.2 | E133: Кабельные линии | G133: =G134+G137+G140+G143 -> 0 | H133: 0 | I133: 0 | J133: 0 | K133: 0 | L133: 0 | M133: 0 | N133: 0 | O133: 0 | P133: 0 | Q133: 0 | R133: 0 | S133: 0 | T133: 0 | U133: 0 | V133: 0 | W133: 0 | X133: =nerr(W133/H133*100) -> 0 | Y133: =Y134+Y137+Y140+Y143 -> 0 | Z133: =Z134+Z137+Z140+Z143 -> 0
C134: + | D134: 1.6.1.2.1 | E134: КЛЭП 110 кВ (ВН) | G134: =nerr(SUM(G135:G136)-G135) -> 0 | H134: 0 | I134: 0 | J134: 0 | K134: 0 | L134: 0 | M134: 0 | N134: 0 | O134: 0 | P134: 0 | Q134: 0 | R134: 0 | S134: 0 | T134: 0 | U134: 0 | V134: 0 | W134: 0 | X134: =nerr(W134/H134*100) -> 0 | Y134: =nerr(SUM(Y135:Y136)-Y135) -> 0 | Z134: =nerr(SUM(Z135:Z136)-Z135) -> 0
D135: 1.6.1.2.1.0 | H135: =nerr(J135+L135+N135+P135) -> 0 | I135: =nerr(K135+M135+O135+Q135) -> 0 | W135: =H135-I135 -> 0 | X135: =nerr(W135/H135*100) -> 0
E136: Добавить
C137: + | D137: 1.6.1.2.2 | E137: КЛЭП 20-35 кВ (СН1) | G137: =nerr(SUM(G138:G139)-G138) -> 0 | H137: 0 | I137: 0 | J137: 0 | K137: 0 | L137: 0 | M137: 0 | N137: 0 | O137: 0 | P137: 0 | Q137: 0 | R137: 0 | S137: 0 | T137: 0 | U137: 0 | V137: 0 | W137: 0 | X137: =nerr(W137/H137*100) -> 0 | Y137: =nerr(SUM(Y138:Y139)-Y138) -> 0 | Z137: =nerr(SUM(Z138:Z139)-Z138) -> 0
D138: 1.6.1.2.2.0 | H138: =nerr(J138+L138+N138+P138) -> 0 | I138: =nerr(K138+M138+O138+Q138) -> 0 | W138: =H138-I138 -> 0 | X138: =nerr(W138/H138*100) -> 0
E139: Добавить
C140: + | D140: 1.6.1.2.3 | E140: КЛЭП 3-10 кВ (СН2) | G140: =nerr(SUM(G141:G142)-G141) -> 0 | H140: 0 | I140: 0 | J140: 0 | K140: 0 | L140: 0 | M140: 0 | N140: 0 | O140: 0 | P140: 0 | Q140: 0 | R140: 0 | S140: 0 | T140: 0 | U140: 0 | V140: 0 | W140: 0 | X140: =nerr(W140/H140*100) -> 0 | Y140: =nerr(SUM(Y141:Y142)-Y141) -> 0 | Z140: =nerr(SUM(Z141:Z142)-Z141) -> 0
D141: 1.6.1.2.3.0 | H141: =nerr(J141+L141+N141+P141) -> 0 | I141: =nerr(K141+M141+O141+Q141) -> 0 | W141: =H141-I141 -> 0 | X141: =nerr(W141/H141*100) -> 0
E142: Добавить
C143: + | D143: 1.6.1.2.4 | E143: КЛЭП до 1 кВ (НН) | G143: =nerr(SUM(G144:G145)-G144) -> 0 | H143: 0 | I143: 0 | J143: 0 | K143: 0 | L143: 0 | M143: 0 | N143: 0 | O143: 0 | P143: 0 | Q143: 0 | R143: 0 | S143: 0 | T143: 0 | U143: 0 | V143: 0 | W143: 0 | X143: =nerr(W143/H143*100) -> 0 | Y143: =nerr(SUM(Y144:Y145)-Y144) -> 0 | Z143: =nerr(SUM(Z144:Z145)-Z144) -> 0
D144: 1.6.1.2.4.0 | H144: =nerr(J144+L144+N144+P144) -> 0 | I144: =nerr(K144+M144+O144+Q144) -> 0 | W144: =H144-I144 -> 0 | X144: =nerr(W144/H144*100) -> 0
E145: Добавить
C146: + | D146: 1.6.2 | E146: Подстанции | G146: =G147+G150+G153 -> 0 | H146: 0 | I146: 0 | J146: 0 | K146: 0 | L146: 0 | M146: 0 | N146: 0 | O146: 0 | P146: 0 | Q146: 0 | R146: 0 | S146: 0 | T146: 0 | U146: 0 | V146: 0 | W146: 0 | X146: =nerr(W146/H146*100) -> 0 | Y146: =Y147+Y150+Y153 -> 0 | Z146: =Z147+Z150+Z153 -> 0
C147: + | D147: 1.6.2.1 | E147: Уровень входящего напряжения ВН | G147: =nerr(SUM(G148:G149)-G148) -> 0 | H147: 0 | I147: 0 | J147: 0 | K147: 0 | L147: 0 | M147: 0 | N147: 0 | O147: 0 | P147: 0 | Q147: 0 | R147: 0 | S147: 0 | T147: 0 | U147: 0 | V147: 0 | W147: 0 | X147: =nerr(W147/H147*100) -> 0 | Y147: =nerr(SUM(Y148:Y149)-Y148) -> 0 | Z147: =nerr(SUM(Z148:Z149)-Z148) -> 0
D148: 1.6.2.1.0 | H148: =nerr(J148+L148+N148+P148) -> 0 | I148: =nerr(K148+M148+O148+Q148) -> 0 | W148: =H148-I148 -> 0 | X148: =nerr(W148/H148*100) -> 0
E149: Добавить
C150: + | D150: 1.6.2.2 | E150: Уровень входящего напряжения СН1 | G150: =nerr(SUM(G151:G152)-G151) -> 0 | H150: 0 | I150: 0 | J150: 0 | K150: 0 | L150: 0 | M150: 0 | N150: 0 | O150: 0 | P150: 0 | Q150: 0 | R150: 0 | S150: 0 | T150: 0 | U150: 0 | V150: 0 | W150: 0 | X150: =nerr(W150/H150*100) -> 0 | Y150: =nerr(SUM(Y151:Y152)-Y151) -> 0 | Z150: =nerr(SUM(Z151:Z152)-Z151) -> 0
D151: 1.6.2.2.0 | H151: =nerr(J151+L151+N151+P151) -> 0 | I151: =nerr(K151+M151+O151+Q151) -> 0 | W151: =H151-I151 -> 0 | X151: =nerr(W151/H151*100) -> 0
E152: Добавить
C153: + | D153: 1.6.2.3 | E153: Уровень входящего напряжения СН2 | G153: =nerr(SUM(G154:G155)-G154) -> 0 | H153: 0 | I153: 0 | J153: 0 | K153: 0 | L153: 0 | M153: 0 | N153: 0 | O153: 0 | P153: 0 | Q153: 0 | R153: 0 | S153: 0 | T153: 0 | U153: 0 | V153: 0 | W153: 0 | X153: =nerr(W153/H153*100) -> 0 | Y153: =nerr(SUM(Y154:Y155)-Y154) -> 0 | Z153: =nerr(SUM(Z154:Z155)-Z154) -> 0
D154: 1.6.2.3.0 | H154: =nerr(J154+L154+N154+P154) -> 0 | I154: =nerr(K154+M154+O154+Q154) -> 0 | W154: =H154-I154 -> 0 | X154: =nerr(W154/H154*100) -> 0
E155: Добавить
C156: + | D156: 1.6.3 | E156: Прочие электросетевые объекты | G156: =nerr(SUM(G157:G158)-G157) -> 0 | H156: 0 | I156: 0 | J156: 0 | K156: 0 | L156: 0 | M156: 0 | N156: 0 | O156: 0 | P156: 0 | Q156: 0 | R156: 0 | S156: 0 | T156: 0 | U156: 0 | V156: 0 | W156: 0 | X156: =nerr(W156/H156*100) -> 0 | Y156: =nerr(SUM(Y157:Y158)-Y157) -> 0 | Z156: =nerr(SUM(Z157:Z158)-Z157) -> 0
D157: 1.6.3.0 | H157: =nerr(J157+L157+N157+P157) -> 0 | I157: =nerr(K157+M157+O157+Q157) -> 0 | W157: =H157-I157 -> 0 | X157: =nerr(W157/H157*100) -> 0
E158: Добавить
D159: 2 | E159: Новое строительство | G159: =G160+G201+G242 -> 0 | H159: 0 | I159: 0 | J159: 0 | K159: 0 | L159: 0 | M159: 0 | N159: 0 | O159: 0 | P159: 0 | Q159: 0 | R159: 0 | S159: 0 | T159: 0 | U159: 0 | V159: 0 | W159: 0 | X159: =nerr(W159/H159*100) -> 0 | Y159: =Y160+Y201+Y242 -> 0 | Z159: =Z160+Z201+Z242 -> 0
C160: + | D160: 2.1 | E160: Энергосбережение и повышение энергетической эффективности | G160: =G161+G188+G198 -> 0 | H160: 0 | I160: 0 | J160: 0 | K160: 0 | L160: 0 | M160: 0 | N160: 0 | O160: 0 | P160: 0 | Q160: 0 | R160: 0 | S160: 0 | T160: 0 | U160: 0 | V160: 0 | W160: =W161+W188+W198 -> 0 | X160: 0 | Y160: =Y161+Y188+Y198 -> 0 | Z160: =Z161+Z188+Z198 -> 0
C161: + | D161: 2.1.1 | E161: Электрические линии | G161: =G162+G175 -> 0 | H161: 0 | I161: 0 | J161: 0 | K161: 0 | L161: 0 | M161: 0 | N161: 0 | O161: 0 | P161: 0 | Q161: 0 | R161: 0 | S161: 0 | T161: 0 | U161: 0 | V161: 0 | W161: =W162+W175 -> 0 | X161: 0 | Y161: =Y162+Y175 -> 0 | Z161: =Z162+Z175 -> 0
C162: + | D162: 2.1.1.1 | E162: Воздушные линии | G162: =G163+G166+G169+G172 -> 0 | H162: 0 | I162: 0 | J162: 0 | K162: 0 | L162: 0 | M162: 0 | N162: 0 | O162: 0 | P162: 0 | Q162: 0 | R162: 0 | S162: 0 | T162: 0 | U162: 0 | V162: 0 | W162: =W163+W166+W169+W172 -> 0 | X162: 0 | Y162: =Y163+Y166+Y169+Y172 -> 0 | Z162: =Z163+Z166+Z169+Z172 -> 0
C163: + | D163: 2.1.1.1.1 | E163: ВЛЭП 110-220 кВ (ВН) | G163: =nerr(SUM(G164:G165)-G164) -> 0 | H163: 0 | I163: 0 | J163: 0 | K163: 0 | L163: 0 | M163: 0 | N163: 0 | O163: 0 | P163: 0 | Q163: 0 | R163: 0 | S163: 0 | T163: 0 | U163: 0 | V163: 0 | W163: =nerr(SUM(W164:W165)-W164) -> 0 | X163: 0 | Y163: =nerr(SUM(Y164:Y165)-Y164) -> 0 | Z163: =nerr(SUM(Z164:Z165)-Z164) -> 0
D164: 2.1.1.1.1.0 | H164: =nerr(J164+L164+N164+P164) -> 0 | I164: =nerr(K164+M164+O164+Q164) -> 0 | W164: =H164-I164 -> 0 | X164: 0
E165: Добавить
C166: + | D166: 2.1.1.1.2 | E166: ВЛЭП 35 кВ (СН1) | G166: =nerr(SUM(G167:G168)-G167) -> 0 | H166: 0 | I166: 0 | J166: 0 | K166: 0 | L166: 0 | M166: 0 | N166: 0 | O166: 0 | P166: 0 | Q166: 0 | R166: 0 | S166: 0 | T166: 0 | U166: 0 | V166: 0 | W166: 0 | X166: =nerr(W166/H166*100) -> 0 | Y166: =nerr(SUM(Y167:Y168)-Y167) -> 0 | Z166: =nerr(SUM(Z167:Z168)-Z167) -> 0
D167: 2.1.1.1.2.0 | H167: =nerr(J167+L167+N167+P167) -> 0 | I167: =nerr(K167+M167+O167+Q167) -> 0 | W167: =H167-I167 -> 0 | X167: =nerr(W167/H167*100) -> 0
E168: Добавить
C169: + | D169: 2.1.1.1.3 | E169: ВЛЭП 1-20 кВ (СН2) | G169: =nerr(SUM(G170:G171)-G170) -> 0 | H169: 0 | I169: 0 | J169: 0 | K169: 0 | L169: 0 | M169: 0 | N169: 0 | O169: 0 | P169: 0 | Q169: 0 | R169: 0 | S169: 0 | T169: 0 | U169: 0 | V169: 0 | W169: 0 | X169: =nerr(W169/H169*100) -> 0 | Y169: =nerr(SUM(Y170:Y171)-Y170) -> 0 | Z169: =nerr(SUM(Z170:Z171)-Z170) -> 0
D170: 2.1.1.1.3.0 | H170: =nerr(J170+L170+N170+P170) -> 0 | I170: =nerr(K170+M170+O170+Q170) -> 0 | W170: =H170-I170 -> 0 | X170: =nerr(W170/H170*100) -> 0
E171: Добавить
C172: + | D172: 2.1.1.1.4 | E172: ВЛЭП 0,4 кВ (НН) | G172: =nerr(SUM(G173:G174)-G173) -> 0 | H172: 0 | I172: 0 | J172: 0 | K172: 0 | L172: 0 | M172: 0 | N172: 0 | O172: 0 | P172: 0 | Q172: 0 | R172: 0 | S172: 0 | T172: 0 | U172: 0 | V172: 0 | W172: 0 | X172: =nerr(W172/H172*100) -> 0 | Y172: =nerr(SUM(Y173:Y174)-Y173) -> 0 | Z172: =nerr(SUM(Z173:Z174)-Z173) -> 0
D173: 2.1.1.1.4.0 | H173: =nerr(J173+L173+N173+P173) -> 0 | I173: =nerr(K173+M173+O173+Q173) -> 0 | W173: =H173-I173 -> 0 | X173: =nerr(W173/H173*100) -> 0
E174: Добавить
C175: + | D175: 2.1.1.2 | E175: Кабельные линии | G175: =G176+G179+G182+G185 -> 0 | H175: 0 | I175: 0 | J175: 0 | K175: 0 | L175: 0 | M175: 0 | N175: 0 | O175: 0 | P175: 0 | Q175: 0 | R175: 0 | S175: 0 | T175: 0 | U175: 0 | V175: 0 | W175: 0 | X175: =nerr(W175/H175*100) -> 0 | Y175: =Y176+Y179+Y182+Y185 -> 0 | Z175: =Z176+Z179+Z182+Z185 -> 0
C176: + | D176: 2.1.1.2.1 | E176: КЛЭП 110 кВ (ВН) | G176: =nerr(SUM(G177:G178)-G177) -> 0 | H176: 0 | I176: 0 | J176: 0 | K176: 0 | L176: 0 | M176: 0 | N176: 0 | O176: 0 | P176: 0 | Q176: 0 | R176: 0 | S176: 0 | T176: 0 | U176: 0 | V176: 0 | W176: 0 | X176: =nerr(W176/H176*100) -> 0 | Y176: =nerr(SUM(Y177:Y178)-Y177) -> 0 | Z176: =nerr(SUM(Z177:Z178)-Z177) -> 0
D177: 2.1.1.2.1.0 | H177: =nerr(J177+L177+N177+P177) -> 0 | I177: =nerr(K177+M177+O177+Q177) -> 0 | W177: =H177-I177 -> 0 | X177: =nerr(W177/H177*100) -> 0
E178: Добавить
C179: + | D179: 2.1.1.2.2 | E179: КЛЭП 20-35 кВ (СН1) | G179: =nerr(SUM(G180:G181)-G180) -> 0 | H179: 0 | I179: 0 | J179: 0 | K179: 0 | L179: 0 | M179: 0 | N179: 0 | O179: 0 | P179: 0 | Q179: 0 | R179: 0 | S179: 0 | T179: 0 | U179: 0 | V179: 0 | W179: 0 | X179: =nerr(W179/H179*100) -> 0 | Y179: =nerr(SUM(Y180:Y181)-Y180) -> 0 | Z179: =nerr(SUM(Z180:Z181)-Z180) -> 0
D180: 2.1.1.2.2.0 | H180: =nerr(J180+L180+N180+P180) -> 0 | I180: =nerr(K180+M180+O180+Q180) -> 0 | W180: =H180-I180 -> 0 | X180: =nerr(W180/H180*100) -> 0
E181: Добавить
C182: + | D182: 2.1.1.2.3 | E182: КЛЭП 3-10 кВ (СН2) | G182: =nerr(SUM(G183:G184)-G183) -> 0 | H182: 0 | I182: 0 | J182: 0 | K182: 0 | L182: 0 | M182: 0 | N182: 0 | O182: 0 | P182: 0 | Q182: 0 | R182: 0 | S182: 0 | T182: 0 | U182: 0 | V182: 0 | W182: 0 | X182: =nerr(W182/H182*100) -> 0 | Y182: =nerr(SUM(Y183:Y184)-Y183) -> 0 | Z182: =nerr(SUM(Z183:Z184)-Z183) -> 0
D183: 2.1.1.2.3.0 | H183: =nerr(J183+L183+N183+P183) -> 0 | I183: =nerr(K183+M183+O183+Q183) -> 0 | W183: =H183-I183 -> 0 | X183: =nerr(W183/H183*100) -> 0
E184: Добавить
C185: + | D185: 2.1.1.2.4 | E185: КЛЭП до 1 кВ (НН) | G185: =nerr(SUM(G186:G187)-G186) -> 0 | H185: 0 | I185: 0 | J185: 0 | K185: 0 | L185: 0 | M185: 0 | N185: 0 | O185: 0 | P185: 0 | Q185: 0 | R185: 0 | S185: 0 | T185: 0 | U185: 0 | V185: 0 | W185: 0 | X185: =nerr(W185/H185*100) -> 0 | Y185: =nerr(SUM(Y186:Y187)-Y186) -> 0 | Z185: =nerr(SUM(Z186:Z187)-Z186) -> 0
D186: 2.1.1.2.4.0 | H186: =nerr(J186+L186+N186+P186) -> 0 | I186: =nerr(K186+M186+O186+Q186) -> 0 | W186: =H186-I186 -> 0 | X186: =nerr(W186/H186*100) -> 0
E187: Добавить
C188: + | D188: 2.1.2 | E188: Подстанции | G188: =G189+G192+G195 -> 0 | H188: 0 | I188: 0 | J188: 0 | K188: 0 | L188: 0 | M188: 0 | N188: 0 | O188: 0 | P188: 0 | Q188: 0 | R188: 0 | S188: 0 | T188: 0 | U188: 0 | V188: 0 | W188: 0 | X188: =nerr(W188/H188*100) -> 0 | Y188: =Y189+Y192+Y195 -> 0 | Z188: =Z189+Z192+Z195 -> 0
C189: + | D189: 2.1.2.1 | E189: Уровень входящего напряжения ВН | G189: =nerr(SUM(G190:G191)-G190) -> 0 | H189: 0 | I189: 0 | J189: 0 | K189: 0 | L189: 0 | M189: 0 | N189: 0 | O189: 0 | P189: 0 | Q189: 0 | R189: 0 | S189: 0 | T189: 0 | U189: 0 | V189: 0 | W189: 0 | X189: =nerr(W189/H189*100) -> 0 | Y189: =nerr(SUM(Y190:Y191)-Y190) -> 0 | Z189: =nerr(SUM(Z190:Z191)-Z190) -> 0
D190: 2.1.2.1.0 | H190: =nerr(J190+L190+N190+P190) -> 0 | I190: =nerr(K190+M190+O190+Q190) -> 0 | W190: =H190-I190 -> 0 | X190: =nerr(W190/H190*100) -> 0
E191: Добавить
C192: + | D192: 2.1.2.2 | E192: Уровень входящего напряжения СН1 | G192: =nerr(SUM(G193:G194)-G193) -> 0 | H192: 0 | I192: 0 | J192: 0 | K192: 0 | L192: 0 | M192: 0 | N192: 0 | O192: 0 | P192: 0 | Q192: 0 | R192: 0 | S192: 0 | T192: 0 | U192: 0 | V192: 0 | W192: 0 | X192: =nerr(W192/H192*100) -> 0 | Y192: =nerr(SUM(Y193:Y194)-Y193) -> 0 | Z192: =nerr(SUM(Z193:Z194)-Z193) -> 0
D193: 2.1.2.2.0 | H193: =nerr(J193+L193+N193+P193) -> 0 | I193: =nerr(K193+M193+O193+Q193) -> 0 | W193: =H193-I193 -> 0 | X193: =nerr(W193/H193*100) -> 0
E194: Добавить
C195: + | D195: 2.1.2.3 | E195: Уровень входящего напряжения СН2 | G195: =nerr(SUM(G196:G197)-G196) -> 0 | H195: 0 | I195: 0 | J195: 0 | K195: 0 | L195: 0 | M195: 0 | N195: 0 | O195: 0 | P195: 0 | Q195: 0 | R195: 0 | S195: 0 | T195: 0 | U195: 0 | V195: 0 | W195: 0 | X195: =nerr(W195/H195*100) -> 0 | Y195: =nerr(SUM(Y196:Y197)-Y196) -> 0 | Z195: =nerr(SUM(Z196:Z197)-Z196) -> 0
D196: 2.1.2.3.0 | H196: =nerr(J196+L196+N196+P196) -> 0 | I196: =nerr(K196+M196+O196+Q196) -> 0 | W196: =H196-I196 -> 0 | X196: =nerr(W196/H196*100) -> 0
E197: Добавить
C198: + | D198: 2.1.3 | E198: Прочие электросетевые объекты | G198: =nerr(SUM(G199:G200)-G199) -> 0 | H198: 0 | I198: 0 | J198: 0 | K198: 0 | L198: 0 | M198: 0 | N198: 0 | O198: 0 | P198: 0 | Q198: 0 | R198: 0 | S198: 0 | T198: 0 | U198: 0 | V198: 0 | W198: 0 | X198: =nerr(W198/H198*100) -> 0 | Y198: =nerr(SUM(Y199:Y200)-Y199) -> 0 | Z198: =nerr(SUM(Z199:Z200)-Z199) -> 0
D199: 2.1.3.0 | H199: =nerr(J199+L199+N199+P199) -> 0 | I199: =nerr(K199+M199+O199+Q199) -> 0 | W199: =H199-I199 -> 0 | X199: =nerr(W199/H199*100) -> 0
E200: Добавить
C201: + | D201: 2.2 | E201: Исполнение договоров технологического присоединения | G201: =G202+G229+G239 -> 0 | H201: 0 | I201: 0 | J201: 0 | K201: 0 | L201: 0 | M201: 0 | N201: 0 | O201: 0 | P201: 0 | Q201: 0 | R201: 0 | S201: 0 | T201: 0 | U201: 0 | V201: 0 | W201: =W202+W229+W239 -> 0 | X201: =nerr(W201/H201*100) -> 0 | Y201: =Y202+Y229+Y239 -> 0 | Z201: =Z202+Z229+Z239 -> 0
C202: + | D202: 2.2.1 | E202: Электрические линии | G202: =G203+G216 -> 0 | H202: 0 | I202: 0 | J202: 0 | K202: 0 | L202: 0 | M202: 0 | N202: 0 | O202: 0 | P202: 0 | Q202: 0 | R202: 0 | S202: 0 | T202: 0 | U202: 0 | V202: 0 | W202: =W203+W216 -> 0 | X202: =nerr(W202/H202*100) -> 0 | Y202: =Y203+Y216 -> 0 | Z202: =Z203+Z216 -> 0
C203: + | D203: 2.2.1.1 | E203: Воздушные линии | G203: =G204+G207+G210+G213 -> 0 | H203: 0 | I203: 0 | J203: 0 | K203: 0 | L203: 0 | M203: 0 | N203: 0 | O203: 0 | P203: 0 | Q203: 0 | R203: 0 | S203: 0 | T203: 0 | U203: 0 | V203: 0 | W203: =W204+W207+W210+W213 -> 0 | X203: =nerr(W203/H203*100) -> 0 | Y203: =Y204+Y207+Y210+Y213 -> 0 | Z203: =Z204+Z207+Z210+Z213 -> 0
C204: + | D204: 2.2.1.1.1 | E204: ВЛЭП 110-220 кВ (ВН) | G204: =nerr(SUM(G205:G206)-G205) -> 0 | H204: 0 | I204: 0 | J204: 0 | K204: 0 | L204: 0 | M204: 0 | N204: 0 | O204: 0 | P204: 0 | Q204: 0 | R204: 0 | S204: 0 | T204: 0 | U204: 0 | V204: 0 | W204: =nerr(SUM(W205:W206)-W205) -> 0 | X204: =nerr(W204/H204*100) -> 0 | Y204: =nerr(SUM(Y205:Y206)-Y205) -> 0 | Z204: =nerr(SUM(Z205:Z206)-Z205) -> 0
D205: 2.2.1.1.1.0 | H205: =nerr(J205+L205+N205+P205) -> 0 | I205: =nerr(K205+M205+O205+Q205) -> 0 | W205: =H205-I205 -> 0 | X205: =nerr(W205/H205*100) -> 0
E206: Добавить
... 47 more rows

Sheet Ф.7.2
A1: 2
C6: Список листов | AL6: Приложение № 7.2 к Приказу Минэнерго России от 24.03.2010 № 114
AL7: Утверждаю руководитель организации
AL9: (подпись)
AL10: "___" _____________ 20__ года
AL11: М.П.
D12: ="Отчет об исполнении основных этапов работ по реализации инвестиционной программы компании в " & otchet_god & " году (представляется ежеквартально)" -> Отчет об исполнении основных этапов работ по реализации инвестиционной программы компании в 2016 году (представляется ежеквартально)
D13: =org & ", Факт за " & otchet_god & " г. " & kvartal -> ООО "Красноярский жилищно-коммунальный комплекс", Факт за 2016 г. IV квартал
D15: № п/п | E15: Наименование объекта * | F15: Плановой объем финансирования, млн. руб. * | K15: Фактически профинансировано, млн. руб. | P15: Отклонение фактической стоимости работ по плановой стоимости, млн. руб. | U15: Фактически освоено (закрыто актами выполненных работ), млн. руб. | Z15: Технические характеристики созданных объектов
Z16: Генерирующие объекты | AD16: Подстанции | AH16: Линии электропередачи | AM16: Иные объекты
F17: Всего | G17: ПИР | H17: СМР | I17: Оборудо- вание и мате- риалы | J17: Прочие | K17: Всего | L17: ПИР | M17: СМР | N17: Оборудо- вание и мате- риалы | O17: Прочие | P17: Всего | Q17: ПИР | R17: СМР | S17: Оборудо- вание и мате- риалы | T17: Прочие | U17: Всего | V17: ПИР | W17: СМР | X17: Оборудо- вание и мате- риалы | Y17: Прочие | Z17: Год ввода в эксплуа- тацию | AA17: Норма- тивный срок службы, лет | AB17: Мощность, МВт | AC17: Тепловая энергия, Гкал/час | AD17: Год ввода в эксплуа- тацию | AE17: Норма- тивный срок службы, лет | AF17: Количество и марка силовых трансформаторов | AG17: Мощность, МВА | AH17: Год ввода в эксплуа- тацию | AI17: Норма- тивный срок службы, лет | AJ17: Тип опор | AK17: Марка кабеля | AL17: Протя- жен- ность, км
D18: 1 | E18: 2 | F18: 3 | G18: 4 | H18: 5 | I18: 6 | J18: 7 | K18: 8 | L18: 9 | M18: 10 | N18: 11 | O18: 12 | P18: 13 | Q18: 14 | R18: 15 | S18: 16 | T18: 17 | U18: 18 | V18: 19 | W18: 20 | X18: 21 | Y18: 22 | Z18: 23 | AA18: 24 | AB18: 25 | AC18: 26 | AD18: 27 | AE18: 28 | AF18: 29 | AG18: 30 | AH18: 31 | AI18: 32 | AJ18: 33 | AK18: 34 | AL18: 35 | AM18: 36
E19: ВСЕГО | F19: =nerr(F20+F159) -> 34.757 | G19: 0 | H19: 22.963 | I19: 8.614 | J19: 3.18 | K19: 0 | L19: 0 | M19: 0 | N19: 0 | O19: 0 | P19: 34.757 | Q19: 0 | R19: 22.963 | S19: 8.614 | T19: 3.18 | U19: 0 | V19: 0 | W19: 0 | X19: 0 | Y19: 0 | AB19: =nerr(AB20+AB159) -> 0 | AC19: =nerr(AC20+AC159) -> 0 | AG19: =nerr(AG20+AG159) -> 0 | AL19: =nerr(AL20+AL159) -> 0
D20: 1 | E20: Техническое перевооружение и реконструкция | F20: =F21+F62+F109+F112+F115+F118 -> 34.757 | G20: 0 | H20: 22.963 | I20: 8.614 | J20: 3.18 | K20: 0 | L20: 0 | M20: 0 | N20: 0 | O20: 0 | P20: 34.757 | Q20: 0 | R20: 22.963 | S20: 8.614 | T20: 3.18 | U20: 0 | V20: 0 | W20: 0 | X20: 0 | Y20: 0 | AB20: =AB21+AB62+AB109+AB112+AB115+AB118 -> 0 | AC20: =AC21+AC62+AC109+AC112+AC115+AC118 -> 0 | AG20: =AG21+AG62+AG109+AG112+AG115+AG118 -> 0 | AL20: =AL21+AL62+AL109+AL112+AL115+AL118 -> 0
C21: - | D21: 1.1 | E21: Реконструкция | F21: =F22+F49+F59 -> 0 | G21: 0 | H21: 0 | I21: 0 | J21: 0 | K21: 0 | L21: 0 | M21: 0 | N21: 0 | O21: 0 | P21: 0 | Q21: 0 | R21: 0 | S21: 0 | T21: 0 | U21: 0 | V21: 0 | W21: 0 | X21: 0 | Y21: 0 | AB21: =AB22+AB49+AB59 -> 0 | AC21: =AC22+AC49+AC59 -> 0 | AG21: =AG22+AG49+AG59 -> 0 | AL21: =AL22+AL49+AL59 -> 0
C22: - | D22: 1.1.1 | E22: Электрические линии | F22: =F23+F36 -> 0 | G22: 0 | H22: 0 | I22: 0 | J22: 0 | K22: 0 | L22: 0 | M22: 0 | N22: 0 | O22: 0 | P22: 0 | Q22: 0 | R22: 0 | S22: 0 | T22: 0 | U22: 0 | V22: 0 | W22: 0 | X22: 0 | Y22: 0 | AB22: =AB23+AB36 -> 0 | AC22: =AC23+AC36 -> 0 | AG22: =AG23+AG36 -> 0 | AL22: =AL23+AL36 -> 0
C23: - | D23: 1.1.1.1 | E23: Воздушные линии | F23: =F24+F27+F30+F33 -> 0 | G23: 0 | H23: 0 | I23: 0 | J23: 0 | K23: 0 | L23: 0 | M23: 0 | N23: 0 | O23: 0 | P23: 0 | Q23: 0 | R23: 0 | S23: 0 | T23: 0 | U23: 0 | V23: 0 | W23: 0 | X23: 0 | Y23: 0 | AB23: =AB24+AB27+AB30+AB33 -> 0 | AC23: =AC24+AC27+AC30+AC33 -> 0 | AG23: =AG24+AG27+AG30+AG33 -> 0 | AL23: =AL24+AL27+AL30+AL33 -> 0
C24: - | D24: 1.1.1.1.1 | E24: ВЛЭП 110-220 кВ (ВН) | F24: =nerr(SUM(F25:F26)-F25) -> 0 | G24: 0 | H24: 0 | I24: 0 | J24: 0 | K24: 0 | L24: 0 | M24: 0 | N24: 0 | O24: 0 | P24: 0 | Q24: 0 | R24: 0 | S24: 0 | T24: 0 | U24: 0 | V24: 0 | W24: 0 | X24: 0 | Y24: 0 | AB24: =nerr(SUM(AB25:AB26)-AB25) -> 0 | AC24: =nerr(SUM(AC25:AC26)-AC25) -> 0 | AG24: =nerr(SUM(AG25:AG26)-AG25) -> 0 | AL24: =nerr(SUM(AL25:AL26)-AL25) -> 0
D25: 1.1.1.1.1.0 | F25: =nerr(SUM(G25:J25)) -> 0 | K25: =nerr(SUM(L25:O25)) -> 0 | P25: =nerr(SUM(Q25:T25)) -> 0 | U25: =nerr(SUM(V25:Y25)) -> 0
C27: - | D27: 1.1.1.1.2 | E27: ВЛЭП 35 кВ (СН1) | F27: =nerr(SUM(F28:F29)-F28) -> 0 | G27: 0 | H27: 0 | I27: 0 | J27: 0 | K27: 0 | L27: 0 | M27: 0 | N27: 0 | O27: 0 | P27: 0 | Q27: 0 | R27: 0 | S27: 0 | T27: 0 | U27: 0 | V27: 0 | W27: 0 | X27: 0 | Y27: 0 | AB27: =nerr(SUM(AB28:AB29)-AB28) -> 0 | AC27: =nerr(SUM(AC28:AC29)-AC28) -> 0 | AG27: =nerr(SUM(AG28:AG29)-AG28) -> 0 | AL27: =nerr(SUM(AL28:AL29)-AL28) -> 0
D28: 1.1.1.1.2.0 | F28: =nerr(SUM(G28:J28)) -> 0 | K28: =nerr(SUM(L28:O28)) -> 0 | P28: =nerr(SUM(Q28:T28)) -> 0 | U28: =nerr(SUM(V28:Y28)) -> 0
C30: - | D30: 1.1.1.1.3 | E30: ВЛЭП 1-20 кВ (СН2) | F30: =nerr(SUM(F31:F32)-F31) -> 0 | G30: 0 | H30: 0 | I30: 0 | J30: 0 | K30: 0 | L30: 0 | M30: 0 | N30: 0 | O30: 0 | P30: 0 | Q30: 0 | R30: 0 | S30: 0 | T30: 0 | U30: 0 | V30: 0 | W30: 0 | X30: 0 | Y30: 0 | AB30: =nerr(SUM(AB31:AB32)-AB31) -> 0 | AC30: =nerr(SUM(AC31:AC32)-AC31) -> 0 | AG30: =nerr(SUM(AG31:AG32)-AG31) -> 0 | AL30: =nerr(SUM(AL31:AL32)-AL31) -> 0
D31: 1.1.1.1.3.0 | F31: =nerr(SUM(G31:J31)) -> 0 | K31: =nerr(SUM(L31:O31)) -> 0 | P31: =nerr(SUM(Q31:T31)) -> 0 | U31: =nerr(SUM(V31:Y31)) -> 0
C33: - | D33: 1.1.1.1.4 | E33: ВЛЭП 0,4 кВ (НН) | F33: =nerr(SUM(F34:F35)-F34) -> 0 | G33: 0 | H33: 0 | I33: 0 | J33: 0 | K33: 0 | L33: 0 | M33: 0 | N33: 0 | O33: 0 | P33: 0 | Q33: 0 | R33: 0 | S33: 0 | T33: 0 | U33: 0 | V33: 0 | W33: 0 | X33: 0 | Y33: 0 | AB33: =nerr(SUM(AB34:AB35)-AB34) -> 0 | AC33: =nerr(SUM(AC34:AC35)-AC34) -> 0 | AG33: =nerr(SUM(AG34:AG35)-AG34) -> 0 | AL33: =nerr(SUM(AL34:AL35)-AL34) -> 0
D34: 1.1.1.1.4.0 | F34: =nerr(SUM(G34:J34)) -> 0 | K34: =nerr(SUM(L34:O34)) -> 0 | P34: =nerr(SUM(Q34:T34)) -> 0 | U34: =nerr(SUM(V34:Y34)) -> 0
C36: - | D36: 1.1.1.2 | E36: Кабельные линии | F36: =F37+F40+F43+F46 -> 0 | G36: 0 | H36: 0 | I36: 0 | J36: 0 | K36: 0 | L36: 0 | M36: 0 | N36: 0 | O36: 0 | P36: 0 | Q36: 0 | R36: 0 | S36: 0 | T36: 0 | U36: 0 | V36: 0 | W36: 0 | X36: 0 | Y36: 0 | AB36: =AB37+AB40+AB43+AB46 -> 0 | AC36: =AC37+AC40+AC43+AC46 -> 0 | AG36: =AG37+AG40+AG43+AG46 -> 0 | AL36: =AL37+AL40+AL43+AL46 -> 0
C37: - | D37: 1.1.1.2.1 | E37: КЛЭП 110 кВ (ВН) | F37: =nerr(SUM(F38:F39)-F38) -> 0 | G37: 0 | H37: 0 | I37: 0 | J37: 0 | K37: 0 | L37: 0 | M37: 0 | N37: 0 | O37: 0 | P37: 0 | Q37: 0 | R37: 0 | S37: 0 | T37: 0 | U37: 0 | V37: 0 | W37: 0 | X37: 0 | Y37: 0 | AB37: =nerr(SUM(AB38:AB39)-AB38) -> 0 | AC37: =nerr(SUM(AC38:AC39)-AC38) -> 0 | AG37: =nerr(SUM(AG38:AG39)-AG38) -> 0 | AL37: =nerr(SUM(AL38:AL39)-AL38) -> 0
D38: 1.1.1.2.1.0 | F38: =nerr(SUM(G38:J38)) -> 0 | K38: =nerr(SUM(L38:O38)) -> 0 | P38: =nerr(SUM(Q38:T38)) -> 0 | U38: =nerr(SUM(V38:Y38)) -> 0
C40: - | D40: 1.1.1.2.2 | E40: КЛЭП 20-35 кВ (СН1) | F40: =nerr(SUM(F41:F42)-F41) -> 0 | G40: 0 | H40: 0 | I40: 0 | J40: 0 | K40: 0 | L40: 0 | M40: 0 | N40: 0 | O40: 0 | P40: 0 | Q40: 0 | R40: 0 | S40: 0 | T40: 0 | U40: 0 | V40: 0 | W40: 0 | X40: 0 | Y40: 0 | AB40: =nerr(SUM(AB41:AB42)-AB41) -> 0 | AC40: =nerr(SUM(AC41:AC42)-AC41) -> 0 | AG40: =nerr(SUM(AG41:AG42)-AG41) -> 0 | AL40: =nerr(SUM(AL41:AL42)-AL41) -> 0
D41: 1.1.1.2.2.0 | F41: =nerr(SUM(G41:J41)) -> 0 | K41: =nerr(SUM(L41:O41)) -> 0 | P41: =nerr(SUM(Q41:T41)) -> 0 | U41: =nerr(SUM(V41:Y41)) -> 0
C43: - | D43: 1.1.1.2.3 | E43: КЛЭП 3-10 кВ (СН2) | F43: =nerr(SUM(F44:F45)-F44) -> 0 | G43: 0 | H43: 0 | I43: 0 | J43: 0 | K43: 0 | L43: 0 | M43: 0 | N43: 0 | O43: 0 | P43: 0 | Q43: 0 | R43: 0 | S43: 0 | T43: 0 | U43: 0 | V43: 0 | W43: 0 | X43: 0 | Y43: 0 | AB43: =nerr(SUM(AB44:AB45)-AB44) -> 0 | AC43: =nerr(SUM(AC44:AC45)-AC44) -> 0 | AG43: =nerr(SUM(AG44:AG45)-AG44) -> 0 | AL43: =nerr(SUM(AL44:AL45)-AL44) -> 0
D44: 1.1.1.2.3.0 | F44: =nerr(SUM(G44:J44)) -> 0 | K44: =nerr(SUM(L44:O44)) -> 0 | P44: =nerr(SUM(Q44:T44)) -> 0 | U44: =nerr(SUM(V44:Y44)) -> 0
C46: - | D46: 1.1.1.2.4 | E46: КЛЭП до 1 кВ (НН) | F46: =nerr(SUM(F47:F48)-F47) -> 0 | G46: 0 | H46: 0 | I46: 0 | J46: 0 | K46: 0 | L46: 0 | M46: 0 | N46: 0 | O46: 0 | P46: 0 | Q46: 0 | R46: 0 | S46: 0 | T46: 0 | U46: 0 | V46: 0 | W46: 0 | X46: 0 | Y46: 0 | AB46: =nerr(SUM(AB47:AB48)-AB47) -> 0 | AC46: =nerr(SUM(AC47:AC48)-AC47) -> 0 | AG46: =nerr(SUM(AG47:AG48)-AG47) -> 0 | AL46: =nerr(SUM(AL47:AL48)-AL47) -> 0
D47: 1.1.1.2.4.0 | F47: =nerr(SUM(G47:J47)) -> 0 | K47: =nerr(SUM(L47:O47)) -> 0 | P47: =nerr(SUM(Q47:T47)) -> 0 | U47: =nerr(SUM(V47:Y47)) -> 0
C49: - | D49: 1.1.2 | E49: Подстанции | F49: =F50+F53+F56 -> 0 | G49: 0 | H49: 0 | I49: 0 | J49: 0 | K49: 0 | L49: 0 | M49: 0 | N49: 0 | O49: 0 | P49: 0 | Q49: 0 | R49: 0 | S49: 0 | T49: 0 | U49: 0 | V49: 0 | W49: 0 | X49: 0 | Y49: 0 | AB49: =AB50+AB53+AB56 -> 0 | AC49: =AC50+AC53+AC56 -> 0 | AG49: =AG50+AG53+AG56 -> 0 | AL49: =AL50+AL53+AL56 -> 0
C50: - | D50: 1.1.2.1 | E50: Уровень входящего напряжения ВН | F50: =nerr(SUM(F51:F52)-F51) -> 0 | G50: 0 | H50: 0 | I50: 0 | J50: 0 | K50: 0 | L50: 0 | M50: 0 | N50: 0 | O50: 0 | P50: 0 | Q50: 0 | R50: 0 | S50: 0 | T50: 0 | U50: 0 | V50: 0 | W50: 0 | X50: 0 | Y50: 0 | AB50: =nerr(SUM(AB51:AB52)-AB51) -> 0 | AC50: =nerr(SUM(AC51:AC52)-AC51) -> 0 | AG50: =nerr(SUM(AG51:AG52)-AG51) -> 0 | AL50: =nerr(SUM(AL51:AL52)-AL51) -> 0
D51: 1.1.2.1.0 | F51: =nerr(SUM(G51:J51)) -> 0 | K51: =nerr(SUM(L51:O51)) -> 0 | P51: =nerr(SUM(Q51:T51)) -> 0 | U51: =nerr(SUM(V51:Y51)) -> 0
C53: - | D53: 1.1.2.2 | E53: Уровень входящего напряжения СН1 | F53: =nerr(SUM(F54:F55)-F54) -> 0 | G53: 0 | H53: 0 | I53: 0 | J53: 0 | K53: 0 | L53: 0 | M53: 0 | N53: 0 | O53: 0 | P53: 0 | Q53: 0 | R53: 0 | S53: 0 | T53: 0 | U53: 0 | V53: 0 | W53: 0 | X53: 0 | Y53: 0 | AB53: =nerr(SUM(AB54:AB55)-AB54) -> 0 | AC53: =nerr(SUM(AC54:AC55)-AC54) -> 0 | AG53: =nerr(SUM(AG54:AG55)-AG54) -> 0 | AL53: =nerr(SUM(AL54:AL55)-AL54) -> 0
D54: 1.1.2.2.0 | F54: =nerr(SUM(G54:J54)) -> 0 | K54: =nerr(SUM(L54:O54)) -> 0 | P54: =nerr(SUM(Q54:T54)) -> 0 | U54: =nerr(SUM(V54:Y54)) -> 0
C56: - | D56: 1.1.2.3 | E56: Уровень входящего напряжения СН2 | F56: =nerr(SUM(F57:F58)-F57) -> 0 | G56: 0 | H56: 0 | I56: 0 | J56: 0 | K56: 0 | L56: 0 | M56: 0 | N56: 0 | O56: 0 | P56: 0 | Q56: 0 | R56: 0 | S56: 0 | T56: 0 | U56: 0 | V56: 0 | W56: 0 | X56: 0 | Y56: 0 | AB56: =nerr(SUM(AB57:AB58)-AB57) -> 0 | AC56: =nerr(SUM(AC57:AC58)-AC57) -> 0 | AG56: =nerr(SUM(AG57:AG58)-AG57) -> 0 | AL56: =nerr(SUM(AL57:AL58)-AL57) -> 0
D57: 1.1.2.3.0 | F57: =nerr(SUM(G57:J57)) -> 0 | K57: =nerr(SUM(L57:O57)) -> 0 | P57: =nerr(SUM(Q57:T57)) -> 0 | U57: =nerr(SUM(V57:Y57)) -> 0
C59: - | D59: 1.1.3 | E59: Прочие электросетевые объекты | F59: =nerr(SUM(F60:F61)-F60) -> 0 | G59: 0 | H59: 0 | I59: 0 | J59: 0 | K59: 0 | L59: 0 | M59: 0 | N59: 0 | O59: 0 | P59: 0 | Q59: 0 | R59: 0 | S59: 0 | T59: 0 | U59: 0 | V59: 0 | W59: 0 | X59: 0 | Y59: 0 | AB59: =nerr(SUM(AB60:AB61)-AB60) -> 0 | AC59: =nerr(SUM(AC60:AC61)-AC60) -> 0 | AG59: =nerr(SUM(AG60:AG61)-AG60) -> 0 | AL59: =nerr(SUM(AL60:AL61)-AL60) -> 0
D60: 1.1.3.0 | F60: =nerr(SUM(G60:J60)) -> 0 | K60: =nerr(SUM(L60:O60)) -> 0 | P60: =nerr(SUM(Q60:T60)) -> 0 | U60: =nerr(SUM(V60:Y60)) -> 0
C62: - | D62: 1.2 | E62: Энергосбережение и повышение энергетической эффективности | F62: =F63+F90+F106 -> 34.757 | G62: 0 | H62: 22.963 | I62: 8.614 | J62: 3.18 | K62: 0 | L62: 0 | M62: 0 | N62: 0 | O62: 0 | P62: 34.757 | Q62: 0 | R62: 22.963 | S62: 8.614 | T62: 3.18 | U62: 0 | V62: 0 | W62: 0 | X62: 0 | Y62: 0 | AB62: =AB63+AB90+AB106 -> 0 | AC62: =AC63+AC90+AC106 -> 0 | AG62: =AG63+AG90+AG106 -> 0 | AL62: =AL63+AL90+AL106 -> 0
C63: - | D63: 1.2.1 | E63: Электрические линии | F63: =F64+F77 -> 0 | G63: 0 | H63: 0 | I63: 0 | J63: 0 | K63: 0 | L63: 0 | M63: 0 | N63: 0 | O63: 0 | P63: 0 | Q63: 0 | R63: 0 | S63: 0 | T63: 0 | U63: 0 | V63: 0 | W63: 0 | X63: 0 | Y63: 0 | AB63: =AB64+AB77 -> 0 | AC63: =AC64+AC77 -> 0 | AG63: =AG64+AG77 -> 0 | AL63: =AL64+AL77 -> 0
C64: - | D64: 1.2.1.1 | E64: Воздушные линии | F64: =F65+F68+F71+F74 -> 0 | G64: 0 | H64: 0 | I64: 0 | J64: 0 | K64: 0 | L64: 0 | M64: 0 | N64: 0 | O64: 0 | P64: 0 | Q64: 0 | R64: 0 | S64: 0 | T64: 0 | U64: 0 | V64: 0 | W64: 0 | X64: 0 | Y64: 0 | AB64: =AB65+AB68+AB71+AB74 -> 0 | AC64: =AC65+AC68+AC71+AC74 -> 0 | AG64: =AG65+AG68+AG71+AG74 -> 0 | AL64: =AL65+AL68+AL71+AL74 -> 0
C65: - | D65: 1.2.1.1.1 | E65: ВЛЭП 110-220 кВ (ВН) | F65: =nerr(SUM(F66:F67)-F66) -> 0 | G65: 0 | H65: 0 | I65: 0 | J65: 0 | K65: 0 | L65: 0 | M65: 0 | N65: 0 | O65: 0 | P65: 0 | Q65: 0 | R65: 0 | S65: 0 | T65: 0 | U65: 0 | V65: 0 | W65: 0 | X65: 0 | Y65: 0 | AB65: =nerr(SUM(AB66:AB67)-AB66) -> 0 | AC65: =nerr(SUM(AC66:AC67)-AC66) -> 0 | AG65: =nerr(SUM(AG66:AG67)-AG66) -> 0 | AL65: =nerr(SUM(AL66:AL67)-AL66) -> 0
D66: 1.2.1.1.1.0 | F66: =nerr(SUM(G66:J66)) -> 0 | K66: =nerr(SUM(L66:O66)) -> 0 | P66: =nerr(SUM(Q66:T66)) -> 0 | U66: =nerr(SUM(V66:Y66)) -> 0
C68: - | D68: 1.2.1.1.2 | E68: ВЛЭП 35 кВ (СН1) | F68: =nerr(SUM(F69:F70)-F69) -> 0 | G68: 0 | H68: 0 | I68: 0 | J68: 0 | K68: 0 | L68: 0 | M68: 0 | N68: 0 | O68: 0 | P68: 0 | Q68: 0 | R68: 0 | S68: 0 | T68: 0 | U68: 0 | V68: 0 | W68: 0 | X68: 0 | Y68: 0 | AB68: =nerr(SUM(AB69:AB70)-AB69) -> 0 | AC68: =nerr(SUM(AC69:AC70)-AC69) -> 0 | AG68: =nerr(SUM(AG69:AG70)-AG69) -> 0 | AL68: =nerr(SUM(AL69:AL70)-AL69) -> 0
D69: 1.2.1.1.2.0 | F69: =nerr(SUM(G69:J69)) -> 0 | K69: =nerr(SUM(L69:O69)) -> 0 | P69: =nerr(SUM(Q69:T69)) -> 0 | U69: =nerr(SUM(V69:Y69)) -> 0
C71: - | D71: 1.2.1.1.3 | E71: ВЛЭП 1-20 кВ (СН2) | F71: =nerr(SUM(F72:F73)-F72) -> 0 | G71: 0 | H71: 0 | I71: 0 | J71: 0 | K71: 0 | L71: 0 | M71: 0 | N71: 0 | O71: 0 | P71: 0 | Q71: 0 | R71: 0 | S71: 0 | T71: 0 | U71: 0 | V71: 0 | W71: 0 | X71: 0 | Y71: 0 | AB71: =nerr(SUM(AB72:AB73)-AB72) -> 0 | AC71: =nerr(SUM(AC72:AC73)-AC72) -> 0 | AG71: =nerr(SUM(AG72:AG73)-AG72) -> 0 | AL71: =nerr(SUM(AL72:AL73)-AL72) -> 0
D72: 1.2.1.1.3.0 | F72: =nerr(SUM(G72:J72)) -> 0 | K72: =nerr(SUM(L72:O72)) -> 0 | P72: =nerr(SUM(Q72:T72)) -> 0 | U72: =nerr(SUM(V72:Y72)) -> 0
C74: - | D74: 1.2.1.1.4 | E74: ВЛЭП 0,4 кВ (НН) | F74: =nerr(SUM(F75:F76)-F75) -> 0 | G74: 0 | H74: 0 | I74: 0 | J74: 0 | K74: 0 | L74: 0 | M74: 0 | N74: 0 | O74: 0 | P74: 0 | Q74: 0 | R74: 0 | S74: 0 | T74: 0 | U74: 0 | V74: 0 | W74: 0 | X74: 0 | Y74: 0 | AB74: =nerr(SUM(AB75:AB76)-AB75) -> 0 | AC74: =nerr(SUM(AC75:AC76)-AC75) -> 0 | AG74: =nerr(SUM(AG75:AG76)-AG75) -> 0 | AL74: =nerr(SUM(AL75:AL76)-AL75) -> 0
D75: 1.2.1.1.4.0 | F75: =nerr(SUM(G75:J75)) -> 0 | K75: =nerr(SUM(L75:O75)) -> 0 | P75: =nerr(SUM(Q75:T75)) -> 0 | U75: =nerr(SUM(V75:Y75)) -> 0
C77: - | D77: 1.2.1.2 | E77: Кабельные линии | F77: =F78+F81+F84+F87 -> 0 | G77: 0 | H77: 0 | I77: 0 | J77: 0 | K77: 0 | L77: 0 | M77: 0 | N77: 0 | O77: 0 | P77: 0 | Q77: 0 | R77: 0 | S77: 0 | T77: 0 | U77: 0 | V77: 0 | W77: 0 | X77: 0 | Y77: 0 | AB77: =AB78+AB81+AB84+AB87 -> 0 | AC77: =AC78+AC81+AC84+AC87 -> 0 | AG77: =AG78+AG81+AG84+AG87 -> 0 | AL77: =AL78+AL81+AL84+AL87 -> 0
C78: - | D78: 1.2.1.2.1 | E78: КЛЭП 110 кВ (ВН) | F78: =nerr(SUM(F79:F80)-F79) -> 0 | G78: 0 | H78: 0 | I78: 0 | J78: 0 | K78: 0 | L78: 0 | M78: 0 | N78: 0 | O78: 0 | P78: 0 | Q78: 0 | R78: 0 | S78: 0 | T78: 0 | U78: 0 | V78: 0 | W78: 0 | X78: 0 | Y78: 0 | AB78: =nerr(SUM(AB79:AB80)-AB79) -> 0 | AC78: =nerr(SUM(AC79:AC80)-AC79) -> 0 | AG78: =nerr(SUM(AG79:AG80)-AG79) -> 0 | AL78: =nerr(SUM(AL79:AL80)-AL79) -> 0
D79: 1.2.1.2.1.0 | F79: =nerr(SUM(G79:J79)) -> 0 | K79: =nerr(SUM(L79:O79)) -> 0 | P79: =nerr(SUM(Q79:T79)) -> 0 | U79: =nerr(SUM(V79:Y79)) -> 0
C81: - | D81: 1.2.1.2.2 | E81: КЛЭП 20-35 кВ (СН1) | F81: =nerr(SUM(F82:F83)-F82) -> 0 | G81: 0 | H81: 0 | I81: 0 | J81: 0 | K81: 0 | L81: 0 | M81: 0 | N81: 0 | O81: 0 | P81: 0 | Q81: 0 | R81: 0 | S81: 0 | T81: 0 | U81: 0 | V81: 0 | W81: 0 | X81: 0 | Y81: 0 | AB81: =nerr(SUM(AB82:AB83)-AB82) -> 0 | AC81: =nerr(SUM(AC82:AC83)-AC82) -> 0 | AG81: =nerr(SUM(AG82:AG83)-AG82) -> 0 | AL81: =nerr(SUM(AL82:AL83)-AL82) -> 0
D82: 1.2.1.2.2.0 | F82: =nerr(SUM(G82:J82)) -> 0 | K82: =nerr(SUM(L82:O82)) -> 0 | P82: =nerr(SUM(Q82:T82)) -> 0 | U82: =nerr(SUM(V82:Y82)) -> 0
C84: - | D84: 1.2.1.2.3 | E84: КЛЭП 3-10 кВ (СН2) | F84: =nerr(SUM(F85:F86)-F85) -> 0 | G84: 0 | H84: 0 | I84: 0 | J84: 0 | K84: 0 | L84: 0 | M84: 0 | N84: 0 | O84: 0 | P84: 0 | Q84: 0 | R84: 0 | S84: 0 | T84: 0 | U84: 0 | V84: 0 | W84: 0 | X84: 0 | Y84: 0 | AB84: =nerr(SUM(AB85:AB86)-AB85) -> 0 | AC84: =nerr(SUM(AC85:AC86)-AC85) -> 0 | AG84: =nerr(SUM(AG85:AG86)-AG85) -> 0 | AL84: =nerr(SUM(AL85:AL86)-AL85) -> 0
D85: 1.2.1.2.3.0 | F85: =nerr(SUM(G85:J85)) -> 0 | K85: =nerr(SUM(L85:O85)) -> 0 | P85: =nerr(SUM(Q85:T85)) -> 0 | U85: =nerr(SUM(V85:Y85)) -> 0
C87: - | D87: 1.2.1.2.4 | E87: КЛЭП до 1 кВ (НН) | F87: =nerr(SUM(F88:F89)-F88) -> 0 | G87: 0 | H87: 0 | I87: 0 | J87: 0 | K87: 0 | L87: 0 | M87: 0 | N87: 0 | O87: 0 | P87: 0 | Q87: 0 | R87: 0 | S87: 0 | T87: 0 | U87: 0 | V87: 0 | W87: 0 | X87: 0 | Y87: 0 | AB87: =nerr(SUM(AB88:AB89)-AB88) -> 0 | AC87: =nerr(SUM(AC88:AC89)-AC88) -> 0 | AG87: =nerr(SUM(AG88:AG89)-AG88) -> 0 | AL87: =nerr(SUM(AL88:AL89)-AL88) -> 0
D88: 1.2.1.2.4.0 | F88: =nerr(SUM(G88:J88)) -> 0 | K88: =nerr(SUM(L88:O88)) -> 0 | P88: =nerr(SUM(Q88:T88)) -> 0 | U88: =nerr(SUM(V88:Y88)) -> 0
C90: - | D90: 1.2.2 | E90: Подстанции | F90: =F91+F94+F97 -> 34.757 | G90: 0 | H90: 22.963 | I90: 8.614 | J90: 3.18 | K90: 0 | L90: 0 | M90: 0 | N90: 0 | O90: 0 | P90: 34.757 | Q90: 0 | R90: 22.963 | S90: 8.614 | T90: 3.18 | U90: 0 | V90: 0 | W90: 0 | X90: 0 | Y90: 0 | AB90: =AB91+AB94+AB97 -> 0 | AC90: =AC91+AC94+AC97 -> 0 | AG90: =AG91+AG94+AG97 -> 0 | AL90: =AL91+AL94+AL97 -> 0
C91: - | D91: 1.2.2.1 | E91: Уровень входящего напряжения ВН | F91: =nerr(SUM(F92:F93)-F92) -> 0 | G91: 0 | H91: 0 | I91: 0 | J91: 0 | K91: 0 | L91: 0 | M91: 0 | N91: 0 | O91: 0 | P91: 0 | Q91: 0 | R91: 0 | S91: 0 | T91: 0 | U91: 0 | V91: 0 | W91: 0 | X91: 0 | Y91: 0 | AB91: =nerr(SUM(AB92:AB93)-AB92) -> 0 | AC91: =nerr(SUM(AC92:AC93)-AC92) -> 0 | AG91: =nerr(SUM(AG92:AG93)-AG92) -> 0 | AL91: =nerr(SUM(AL92:AL93)-AL92) -> 0
D92: 1.2.2.1.0 | F92: =nerr(SUM(G92:J92)) -> 0 | K92: =nerr(SUM(L92:O92)) -> 0 | P92: =nerr(SUM(Q92:T92)) -> 0 | U92: =nerr(SUM(V92:Y92)) -> 0
C94: - | D94: 1.2.2.2 | E94: Уровень входящего напряжения СН1 | F94: =nerr(SUM(F95:F96)-F95) -> 0 | G94: 0 | H94: 0 | I94: 0 | J94: 0 | K94: 0 | L94: 0 | M94: 0 | N94: 0 | O94: 0 | P94: 0 | Q94: 0 | R94: 0 | S94: 0 | T94: 0 | U94: 0 | V94: 0 | W94: 0 | X94: 0 | Y94: 0 | AB94: =nerr(SUM(AB95:AB96)-AB95) -> 0 | AC94: =nerr(SUM(AC95:AC96)-AC95) -> 0 | AG94: =nerr(SUM(AG95:AG96)-AG95) -> 0 | AL94: =nerr(SUM(AL95:AL96)-AL95) -> 0
D95: 1.2.2.2.0 | F95: =nerr(SUM(G95:J95)) -> 0 | K95: =nerr(SUM(L95:O95)) -> 0 | P95: =nerr(SUM(Q95:T95)) -> 0 | U95: =nerr(SUM(V95:Y95)) -> 0
C97: - | D97: 1.2.2.3 | E97: Уровень входящего напряжения СН2 | F97: =nerr(SUM(F98:F105)-F98) -> 34.757 | G97: 0 | H97: 22.963 | I97: 8.614 | J97: 3.18 | K97: 0 | L97: 0 | M97: 0 | N97: 0 | O97: 0 | P97: 34.757 | Q97: 0 | R97: 22.963 | S97: 8.614 | T97: 3.18 | U97: 0 | V97: 0 | W97: 0 | X97: 0 | Y97: 0 | AB97: =nerr(SUM(AB98:AB105)-AB98) -> 0 | AC97: =nerr(SUM(AC98:AC105)-AC98) -> 0 | AG97: =nerr(SUM(AG98:AG105)-AG98) -> 0 | AL97: =nerr(SUM(AL98:AL105)-AL98) -> 0
D98: 1.2.2.3.0 | F98: =nerr(SUM(G98:J98)) -> 0 | K98: =nerr(SUM(L98:O98)) -> 0 | P98: =nerr(SUM(Q98:T98)) -> 0 | U98: =nerr(SUM(V98:Y98)) -> 0
D99: 1.2.2.3.1 | E99: =Ф.7.1!$E$99 -> Модернизация оборудования трансформаторной подстанции № 685, находящейся по ул. Глинки, 13г | F99: 3.593 | G99: =B99 -> 0 | H99: 2.482 | I99: 1.098 | J99: 0.013 | K99: 0 | L99: 0 | M99: 0 | N99: 0 | O99: 0 | P99: 3.593 | Q99: =G99-L99 -> 0 | R99: =H99-M99 -> 2.482 | S99: 1.098 | T99: 0.013 | U99: 0 | V99: =L99 -> 0 | W99: 0 | X99: 0 | Y99: 0
D100: 1.2.2.3.2 | E100: =Ф.7.1!$E$100 -> Модернизация оборудования трансформаторной подстанции № 783, находящейся по ул. Парковая, 10 а | F100: 6.952 | G100: =B100 -> 0 | H100: 4.808 | I100: 2.119 | J100: 0.025 | K100: 0 | L100: 0 | M100: 0 | N100: 0 | O100: 0 | P100: 6.952 | Q100: =G100-L100 -> 0 | R100: =H100-M100 -> 4.808 | S100: =I100-N100 -> 2.119 | T100: =J100-O100 -> 0.025 | U100: 0 | V100: =L100 -> 0 | W100: 0 | X100: 0 | Y100: 0
D101: 1.2.2.3.3 | E101: =Ф.7.1!$E$101 -> Модернизация распределительного устройства напряжением 6 кВ в распределительной подстанции № 127, находящейся по ул. Пограничников, 7 д | F101: =nerr(SUM(G101:J101)) -> 9.637 | G101: 0 | H101: 5.606 | I101: 0.94 | J101: 3.091 | K101: =nerr(SUM(L101:O101)) -> 0 | L101: 0 | M101: 0 | N101: 0 | O101: 0 | P101: =nerr(SUM(Q101:T101)) -> 9.637 | Q101: 0 | R101: 5.606 | S101: 0.94 | T101: 3.091 | U101: =nerr(SUM(V101:Y101)) -> 0 | V101: 0 | W101: 0 | X101: 0 | Y101: 0
D102: 1.2.2.3.4 | E102: =Ф.7.1!$E$102 -> Модернизация оборудования трансформаторной подстанции № 508, находящейся по ул. Армейская, 21 г | F102: 7.389 | G102: 0 | H102: 5.103 | I102: 2.261 | J102: 0.025 | K102: 0 | L102: 0 | M102: 0 | N102: 0 | O102: 0 | P102: 7.389 | Q102: 0 | R102: 5.103 | S102: 2.261 | T102: 0.025 | U102: 0 | V102: 0 | W102: 0 | X102: 0 | Y102: 0
D103: 1.2.2.3.5 | E103: =Ф.7.1!$E$103 -> Модернизация оборудования трансформаторной подстанции № 686, находящейся по ул. Глинки, 7г | F103: 3.593 | G103: 0 | H103: 2.482 | I103: 1.098 | J103: 0.013 | K103: 0 | L103: 0 | M103: 0 | N103: 0 | O103: 0 | P103: 3.593 | Q103: 0 | R103: 2.482 | S103: 1.098 | T103: 0.013 | U103: 0 | V103: 0 | W103: 0 | X103: 0 | Y103: 0
D104: 1.2.2.3.6 | E104: =Ф.7.1!$E$104 -> Модернизация оборудования трансформаторной подстанции № 581, находящейся по ул. Малиновского, 4г | F104: 3.593 | G104: 0 | H104: 2.482 | I104: 1.098 | J104: 0.013 | K104: 0 | L104: 0 | M104: 0 | N104: 0 | O104: 0 | P104: 3.593 | Q104: 0 | R104: 2.482 | S104: 1.098 | T104: 0.013 | U104: 0 | V104: 0 | W104: 0 | X104: 0 | Y104: 0
C106: - | D106: 1.2.3 | E106: Прочие электросетевые объекты | F106: =nerr(SUM(F107:F108)-F107) -> 0 | G106: 0 | H106: 0 | I106: 0 | J106: 0 | K106: 0 | L106: 0 | M106: 0 | N106: 0 | O106: 0 | P106: 0 | Q106: 0 | R106: 0 | S106: 0 | T106: 0 | U106: 0 | V106: 0 | W106: 0 | X106: 0 | Y106: 0 | AB106: =nerr(SUM(AB107:AB108)-AB107) -> 0 | AC106: =nerr(SUM(AC107:AC108)-AC107) -> 0 | AG106: =nerr(SUM(AG107:AG108)-AG107) -> 0 | AL106: =nerr(SUM(AL107:AL108)-AL107) -> 0
D107: 1.2.3.0 | F107: =nerr(SUM(G107:J107)) -> 0 | K107: =nerr(SUM(L107:O107)) -> 0 | P107: =nerr(SUM(Q107:T107)) -> 0 | U107: =nerr(SUM(V107:Y107)) -> 0
C109: - | D109: 1.3 | E109: Создание систем противоаварийной и режимной автоматики | F109: =nerr(SUM(F110:F111)-F110) -> 0 | G109: 0 | H109: 0 | I109: 0 | J109: 0 | K109: 0 | L109: 0 | M109: 0 | N109: 0 | O109: 0 | P109: 0 | Q109: 0 | R109: 0 | S109: 0 | T109: 0 | U109: 0 | V109: 0 | W109: 0 | X109: 0 | Y109: 0 | AB109: =nerr(SUM(AB110:AB111)-AB110) -> 0 | AC109: =nerr(SUM(AC110:AC111)-AC110) -> 0 | AG109: =nerr(SUM(AG110:AG111)-AG110) -> 0 | AL109: =nerr(SUM(AL110:AL111)-AL110) -> 0
D110: 1.3.0 | F110: =nerr(SUM(G110:J110)) -> 0 | K110: =nerr(SUM(L110:O110)) -> 0 | P110: =nerr(SUM(Q110:T110)) -> 0 | U110: =nerr(SUM(V110:Y110)) -> 0
C112: - | D112: 1.4 | E112: Создание систем телемеханики и связи | F112: =nerr(SUM(F113:F114)-F113) -> 0 | G112: 0 | H112: 0 | I112: 0 | J112: 0 | K112: 0 | L112: 0 | M112: 0 | N112: 0 | O112: 0 | P112: 0 | Q112: 0 | R112: 0 | S112: 0 | T112: 0 | U112: 0 | V112: 0 | W112: 0 | X112: 0 | Y112: 0 | AB112: =nerr(SUM(AB113:AB114)-AB113) -> 0 | AC112: =nerr(SUM(AC113:AC114)-AC113) -> 0 | AG112: =nerr(SUM(AG113:AG114)-AG113) -> 0 | AL112: =nerr(SUM(AL113:AL114)-AL113) -> 0
D113: 1.4.0 | F113: =nerr(SUM(G113:J113)) -> 0 | K113: =nerr(SUM(L113:O113)) -> 0 | P113: =nerr(SUM(Q113:T113)) -> 0 | U113: =nerr(SUM(V113:Y113)) -> 0
C115: - | D115: 1.5 | E115: Установка устройств регулирования напряжения и компенсации реактивной мощности | F115: =nerr(SUM(F116:F117)-F116) -> 0 | G115: 0 | H115: 0 | I115: 0 | J115: 0 | K115: 0 | L115: 0 | M115: 0 | N115: 0 | O115: 0 | P115: 0 | Q115: 0 | R115: 0 | S115: 0 | T115: 0 | U115: 0 | V115: 0 | W115: 0 | X115: 0 | Y115: 0 | AB115: =nerr(SUM(AB116:AB117)-AB116) -> 0 | AC115: =nerr(SUM(AC116:AC117)-AC116) -> 0 | AG115: =nerr(SUM(AG116:AG117)-AG116) -> 0 | AL115: =nerr(SUM(AL116:AL117)-AL116) -> 0
D116: 1.5.0 | F116: =nerr(SUM(G116:J116)) -> 0 | K116: =nerr(SUM(L116:O116)) -> 0 | P116: =nerr(SUM(Q116:T116)) -> 0 | U116: =nerr(SUM(V116:Y116)) -> 0
C118: - | D118: 1.6 | E118: Исполнение договоров технологического присоединения | F118: =F119+F146+F156 -> 0 | G118: 0 | H118: 0 | I118: 0 | J118: 0 | K118: 0 | L118: 0 | M118: 0 | N118: 0 | O118: 0 | P118: 0 | Q118: 0 | R118: 0 | S118: 0 | T118: 0 | U118: 0 | V118: 0 | W118: 0 | X118: 0 | Y118: 0 | AB118: =AB119+AB146+AB156 -> 0 | AC118: =AC119+AC146+AC156 -> 0 | AG118: =AG119+AG146+AG156 -> 0 | AL118: =AL119+AL146+AL156 -> 0
C119: - | D119: 1.6.1 | E119: Электрические линии | F119: =F120+F133 -> 0 | G119: 0 | H119: 0 | I119: 0 | J119: 0 | K119: 0 | L119: 0 | M119: 0 | N119: 0 | O119: 0 | P119: 0 | Q119: 0 | R119: 0 | S119: 0 | T119: 0 | U119: 0 | V119: 0 | W119: 0 | X119: 0 | Y119: 0 | AB119: =AB120+AB133 -> 0 | AC119: =AC120+AC133 -> 0 | AG119: =AG120+AG133 -> 0 | AL119: =AL120+AL133 -> 0
C120: - | D120: 1.6.1.1 | E120: Воздушные линии | F120: =F121+F124+F127+F130 -> 0 | G120: 0 | H120: 0 | I120: 0 | J120: 0 | K120: 0 | L120: 0 | M120: 0 | N120: 0 | O120: 0 | P120: 0 | Q120: 0 | R120: 0 | S120: 0 | T120: 0 | U120: 0 | V120: 0 | W120: 0 | X120: 0 | Y120: 0 | AB120: =AB121+AB124+AB127+AB130 -> 0 | AC120: =AC121+AC124+AC127+AC130 -> 0 | AG120: =AG121+AG124+AG127+AG130 -> 0 | AL120: =AL121+AL124+AL127+AL130 -> 0
C121: - | D121: 1.6.1.1.1 | E121: ВЛЭП 110-220 кВ (ВН) | F121: =nerr(SUM(F122:F123)-F122) -> 0 | G121: 0 | H121: 0 | I121: 0 | J121: 0 | K121: 0 | L121: 0 | M121: 0 | N121: 0 | O121: 0 | P121: 0 | Q121: 0 | R121: 0 | S121: 0 | T121: 0 | U121: 0 | V121: 0 | W121: 0 | X121: 0 | Y121: 0 | AB121: =nerr(SUM(AB122:AB123)-AB122) -> 0 | AC121: =nerr(SUM(AC122:AC123)-AC122) -> 0 | AG121: =nerr(SUM(AG122:AG123)-AG122) -> 0 | AL121: =nerr(SUM(AL122:AL123)-AL122) -> 0
D122: 1.6.1.1.1.0 | F122: =nerr(SUM(G122:J122)) -> 0 | K122: =nerr(SUM(L122:O122)) -> 0 | P122: =nerr(SUM(Q122:T122)) -> 0 | U122: =nerr(SUM(V122:Y122)) -> 0
C124: - | D124: 1.6.1.1.2 | E124: ВЛЭП 35 кВ (СН1) | F124: =nerr(SUM(F125:F126)-F125) -> 0 | G124: 0 | H124: 0 | I124: 0 | J124: 0 | K124: 0 | L124: 0 | M124: 0 | N124: 0 | O124: 0 | P124: 0 | Q124: 0 | R124: 0 | S124: 0 | T124: 0 | U124: 0 | V124: 0 | W124: 0 | X124: 0 | Y124: 0 | AB124: =nerr(SUM(AB125:AB126)-AB125) -> 0 | AC124: =nerr(SUM(AC125:AC126)-AC125) -> 0 | AG124: =nerr(SUM(AG125:AG126)-AG125) -> 0 | AL124: =nerr(SUM(AL125:AL126)-AL125) -> 0
D125: 1.6.1.1.2.0 | F125: =nerr(SUM(G125:J125)) -> 0 | K125: =nerr(SUM(L125:O125)) -> 0 | P125: =nerr(SUM(Q125:T125)) -> 0 | U125: =nerr(SUM(V125:Y125)) -> 0
C127: - | D127: 1.6.1.1.3 | E127: ВЛЭП 1-20 кВ (СН2) | F127: =nerr(SUM(F128:F129)-F128) -> 0 | G127: 0 | H127: 0 | I127: 0 | J127: 0 | K127: 0 | L127: 0 | M127: 0 | N127: 0 | O127: 0 | P127: 0 | Q127: 0 | R127: 0 | S127: 0 | T127: 0 | U127: 0 | V127: 0 | W127: 0 | X127: 0 | Y127: 0 | AB127: =nerr(SUM(AB128:AB129)-AB128) -> 0 | AC127: =nerr(SUM(AC128:AC129)-AC128) -> 0 | AG127: =nerr(SUM(AG128:AG129)-AG128) -> 0 | AL127: =nerr(SUM(AL128:AL129)-AL128) -> 0
D128: 1.6.1.1.3.0 | F128: =nerr(SUM(G128:J128)) -> 0 | K128: =nerr(SUM(L128:O128)) -> 0 | P128: =nerr(SUM(Q128:T128)) -> 0 | U128: =nerr(SUM(V128:Y128)) -> 0
C130: - | D130: 1.6.1.1.4 | E130: ВЛЭП 0,4 кВ (НН) | F130: =nerr(SUM(F131:F132)-F131) -> 0 | G130: 0 | H130: 0 | I130: 0 | J130: 0 | K130: 0 | L130: 0 | M130: 0 | N130: 0 | O130: 0 | P130: 0 | Q130: 0 | R130: 0 | S130: 0 | T130: 0 | U130: 0 | V130: 0 | W130: 0 | X130: 0 | Y130: 0 | AB130: =nerr(SUM(AB131:AB132)-AB131) -> 0 | AC130: =nerr(SUM(AC131:AC132)-AC131) -> 0 | AG130: =nerr(SUM(AG131:AG132)-AG131) -> 0 | AL130: =nerr(SUM(AL131:AL132)-AL131) -> 0
D131: 1.6.1.1.4.0 | F131: =nerr(SUM(G131:J131)) -> 0 | K131: =nerr(SUM(L131:O131)) -> 0 | P131: =nerr(SUM(Q131:T131)) -> 0 | U131: =nerr(SUM(V131:Y131)) -> 0
C133: - | D133: 1.6.1.2 | E133: Кабельные линии | F133: =F134+F137+F140+F143 -> 0 | G133: 0 | H133: 0 | I133: 0 | J133: 0 | K133: 0 | L133: 0 | M133: 0 | N133: 0 | O133: 0 | P133: 0 | Q133: 0 | R133: 0 | S133: 0 | T133: 0 | U133: 0 | V133: 0 | W133: 0 | X133: 0 | Y133: 0 | AB133: =AB134+AB137+AB140+AB143 -> 0 | AC133: =AC134+AC137+AC140+AC143 -> 0 | AG133: =AG134+AG137+AG140+AG143 -> 0 | AL133: =AL134+AL137+AL140+AL143 -> 0
C134: - | D134: 1.6.1.2.1 | E134: КЛЭП 110 кВ (ВН) | F134: =nerr(SUM(F135:F136)-F135) -> 0 | G134: 0 | H134: 0 | I134: 0 | J134: 0 | K134: 0 | L134: 0 | M134: 0 | N134: 0 | O134: 0 | P134: 0 | Q134: 0 | R134: 0 | S134: 0 | T134: 0 | U134: 0 | V134: 0 | W134: 0 | X134: 0 | Y134: 0 | AB134: =nerr(SUM(AB135:AB136)-AB135) -> 0 | AC134: =nerr(SUM(AC135:AC136)-AC135) -> 0 | AG134: =nerr(SUM(AG135:AG136)-AG135) -> 0 | AL134: =nerr(SUM(AL135:AL136)-AL135) -> 0
D135: 1.6.1.2.1.0 | F135: =nerr(SUM(G135:J135)) -> 0 | K135: =nerr(SUM(L135:O135)) -> 0 | P135: =nerr(SUM(Q135:T135)) -> 0 | U135: =nerr(SUM(V135:Y135)) -> 0
C137: - | D137: 1.6.1.2.2 | E137: КЛЭП 20-35 кВ (СН1) | F137: =nerr(SUM(F138:F139)-F138) -> 0 | G137: 0 | H137: 0 | I137: 0 | J137: 0 | K137: 0 | L137: 0 | M137: 0 | N137: 0 | O137: 0 | P137: 0 | Q137: 0 | R137: 0 | S137: 0 | T137: 0 | U137: 0 | V137: 0 | W137: 0 | X137: 0 | Y137: 0 | AB137: =nerr(SUM(AB138:AB139)-AB138) -> 0 | AC137: =nerr(SUM(AC138:AC139)-AC138) -> 0 | AG137: =nerr(SUM(AG138:AG139)-AG138) -> 0 | AL137: =nerr(SUM(AL138:AL139)-AL138) -> 0
D138: 1.6.1.2.2.0 | F138: =nerr(SUM(G138:J138)) -> 0 | K138: =nerr(SUM(L138:O138)) -> 0 | P138: =nerr(SUM(Q138:T138)) -> 0 | U138: =nerr(SUM(V138:Y138)) -> 0
C140: - | D140: 1.6.1.2.3 | E140: КЛЭП 3-10 кВ (СН2) | F140: =nerr(SUM(F141:F142)-F141) -> 0 | G140: 0 | H140: 0 | I140: 0 | J140: 0 | K140: 0 | L140: 0 | M140: 0 | N140: 0 | O140: 0 | P140: 0 | Q140: 0 | R140: 0 | S140: 0 | T140: 0 | U140: 0 | V140: 0 | W140: 0 | X140: 0 | Y140: 0 | AB140: =nerr(SUM(AB141:AB142)-AB141) -> 0 | AC140: =nerr(SUM(AC141:AC142)-AC141) -> 0 | AG140: =nerr(SUM(AG141:AG142)-AG141) -> 0 | AL140: =nerr(SUM(AL141:AL142)-AL141) -> 0
D141: 1.6.1.2.3.0 | F141: =nerr(SUM(G141:J141)) -> 0 | K141: =nerr(SUM(L141:O141)) -> 0 | P141: =nerr(SUM(Q141:T141)) -> 0 | U141: =nerr(SUM(V141:Y141)) -> 0
C143: - | D143: 1.6.1.2.4 | E143: КЛЭП до 1 кВ (НН) | F143: =nerr(SUM(F144:F145)-F144) -> 0 | G143: 0 | H143: 0 | I143: 0 | J143: 0 | K143: 0 | L143: 0 | M143: 0 | N143: 0 | O143: 0 | P143: 0 | Q143: 0 | R143: 0 | S143: 0 | T143: 0 | U143: 0 | V143: 0 | W143: 0 | X143: 0 | Y143: 0 | AB143: =nerr(SUM(AB144:AB145)-AB144) -> 0 | AC143: =nerr(SUM(AC144:AC145)-AC144) -> 0 | AG143: =nerr(SUM(AG144:AG145)-AG144) -> 0 | AL143: =nerr(SUM(AL144:AL145)-AL144) -> 0
D144: 1.6.1.2.4.0 | F144: =nerr(SUM(G144:J144)) -> 0 | K144: =nerr(SUM(L144:O144)) -> 0 | P144: =nerr(SUM(Q144:T144)) -> 0 | U144: =nerr(SUM(V144:Y144)) -> 0
C146: - | D146: 1.6.2 | E146: Подстанции | F146: =F147+F150+F153 -> 0 | G146: 0 | H146: 0 | I146: 0 | J146: 0 | K146: 0 | L146: 0 | M146: 0 | N146: 0 | O146: 0 | P146: 0 | Q146: 0 | R146: 0 | S146: 0 | T146: 0 | U146: 0 | V146: 0 | W146: 0 | X146: 0 | Y146: 0 | AB146: =AB147+AB150+AB153 -> 0 | AC146: =AC147+AC150+AC153 -> 0 | AG146: =AG147+AG150+AG153 -> 0 | AL146: =AL147+AL150+AL153 -> 0
C147: - | D147: 1.6.2.1 | E147: Уровень входящего напряжения ВН | F147: =nerr(SUM(F148:F149)-F148) -> 0 | G147: 0 | H147: 0 | I147: 0 | J147: 0 | K147: 0 | L147: 0 | M147: 0 | N147: 0 | O147: 0 | P147: 0 | Q147: 0 | R147: 0 | S147: 0 | T147: 0 | U147: 0 | V147: 0 | W147: 0 | X147: 0 | Y147: 0 | AB147: =nerr(SUM(AB148:AB149)-AB148) -> 0 | AC147: =nerr(SUM(AC148:AC149)-AC148) -> 0 | AG147: =nerr(SUM(AG148:AG149)-AG148) -> 0 | AL147: =nerr(SUM(AL148:AL149)-AL148) -> 0
D148: 1.6.2.1.0 | F148: =nerr(SUM(G148:J148)) -> 0 | K148: =nerr(SUM(L148:O148)) -> 0 | P148: =nerr(SUM(Q148:T148)) -> 0 | U148: =nerr(SUM(V148:Y148)) -> 0
C150: - | D150: 1.6.2.2 | E150: Уровень входящего напряжения СН1 | F150: =nerr(SUM(F151:F152)-F151) -> 0 | G150: 0 | H150: 0 | I150: 0 | J150: 0 | K150: 0 | L150: 0 | M150: 0 | N150: 0 | O150: 0 | P150: 0 | Q150: 0 | R150: 0 | S150: 0 | T150: 0 | U150: 0 | V150: 0 | W150: 0 | X150: 0 | Y150: 0 | AB150: =nerr(SUM(AB151:AB152)-AB151) -> 0 | AC150: =nerr(SUM(AC151:AC152)-AC151) -> 0 | AG150: =nerr(SUM(AG151:AG152)-AG151) -> 0 | AL150: =nerr(SUM(AL151:AL152)-AL151) -> 0
D151: 1.6.2.2.0 | F151: =nerr(SUM(G151:J151)) -> 0 | K151: =nerr(SUM(L151:O151)) -> 0 | P151: =nerr(SUM(Q151:T151)) -> 0 | U151: =nerr(SUM(V151:Y151)) -> 0
C153: - | D153: 1.6.2.3 | E153: Уровень входящего напряжения СН2 | F153: =nerr(SUM(F154:F155)-F154) -> 0 | G153: 0 | H153: 0 | I153: 0 | J153: 0 | K153: 0 | L153: 0 | M153: 0 | N153: 0 | O153: 0 | P153: 0 | Q153: 0 | R153: 0 | S153: 0 | T153: 0 | U153: 0 | V153: 0 | W153: 0 | X153: 0 | Y153: 0 | AB153: =nerr(SUM(AB154:AB155)-AB154) -> 0 | AC153: =nerr(SUM(AC154:AC155)-AC154) -> 0 | AG153: =nerr(SUM(AG154:AG155)-AG154) -> 0 | AL153: =nerr(SUM(AL154:AL155)-AL154) -> 0
D154: 1.6.2.3.0 | F154: =nerr(SUM(G154:J154)) -> 0 | K154: =nerr(SUM(L154:O154)) -> 0 | P154: =nerr(SUM(Q154:T154)) -> 0 | U154: =nerr(SUM(V154:Y154)) -> 0
C156: - | D156: 1.6.3 | E156: Прочие электросетевые объекты | F156: =nerr(SUM(F157:F158)-F157) -> 0 | G156: 0 | H156: 0 | I156: 0 | J156: 0 | K156: 0 | L156: 0 | M156: 0 | N156: 0 | O156: 0 | P156: 0 | Q156: 0 | R156: 0 | S156: 0 | T156: 0 | U156: 0 | V156: 0 | W156: 0 | X156: 0 | Y156: 0 | AB156: =nerr(SUM(AB157:AB158)-AB157) -> 0 | AC156: =nerr(SUM(AC157:AC158)-AC157) -> 0 | AG156: =nerr(SUM(AG157:AG158)-AG157) -> 0 | AL156: =nerr(SUM(AL157:AL158)-AL157) -> 0
D157: 1.6.3.0 | F157: =nerr(SUM(G157:J157)) -> 0 | K157: =nerr(SUM(L157:O157)) -> 0 | P157: =nerr(SUM(Q157:T157)) -> 0 | U157: =nerr(SUM(V157:Y157)) -> 0
D159: 2 | E159: Новое строительство | F159: =F160+F201+F242 -> 0 | G159: 0 | H159: 0 | I159: 0 | J159: 0 | K159: 0 | L159: 0 | M159: 0 | N159: 0 | O159: 0 | P159: 0 | Q159: 0 | R159: 0 | S159: 0 | T159: 0 | U159: 0 | V159: 0 | W159: 0 | X159: 0 | Y159: 0 | AB159: =AB160+AB201+AB242 -> 0 | AC159: =AC160+AC201+AC242 -> 0 | AG159: =AG160+AG201+AG242 -> 0 | AL159: =AL160+AL201+AL242 -> 0
C160: - | D160: 2.1 | E160: Энергосбережение и повышение энергетической эффективности | F160: =F161+F188+F198 -> 0 | G160: 0 | H160: 0 | I160: 0 | J160: 0 | K160: 0 | L160: 0 | M160: 0 | N160: 0 | O160: 0 | P160: 0 | Q160: 0 | R160: 0 | S160: 0 | T160: 0 | U160: 0 | V160: 0 | W160: 0 | X160: 0 | Y160: 0 | AB160: =AB161+AB188+AB198 -> 0 | AC160: =AC161+AC188+AC198 -> 0 | AG160: =AG161+AG188+AG198 -> 0 | AL160: =AL161+AL188+AL198 -> 0
C161: - | D161: 2.1.1 | E161: Электрические линии | F161: =F162+F175 -> 0 | G161: 0 | H161: 0 | I161: 0 | J161: 0 | K161: 0 | L161: 0 | M161: 0 | N161: 0 | O161: 0 | P161: 0 | Q161: 0 | R161: 0 | S161: 0 | T161: 0 | U161: 0 | V161: 0 | W161: 0 | X161: 0 | Y161: 0 | AB161: =AB162+AB175 -> 0 | AC161: =AC162+AC175 -> 0 | AG161: =AG162+AG175 -> 0 | AL161: =AL162+AL175 -> 0
C162: - | D162: 2.1.1.1 | E162: Воздушные линии | F162: =F163+F166+F169+F172 -> 0 | G162: 0 | H162: 0 | I162: 0 | J162: 0 | K162: 0 | L162: 0 | M162: 0 | N162: 0 | O162: 0 | P162: 0 | Q162: 0 | R162: 0 | S162: 0 | T162: 0 | U162: 0 | V162: 0 | W162: 0 | X162: 0 | Y162: 0 | AB162: =AB163+AB166+AB169+AB172 -> 0 | AC162: =AC163+AC166+AC169+AC172 -> 0 | AG162: =AG163+AG166+AG169+AG172 -> 0 | AL162: =AL163+AL166+AL169+AL172 -> 0
C163: - | D163: 2.1.1.1.1 | E163: ВЛЭП 110-220 кВ (ВН) | F163: =nerr(SUM(F164:F165)-F164) -> 0 | G163: 0 | H163: 0 | I163: 0 | J163: 0 | K163: 0 | L163: 0 | M163: 0 | N163: 0 | O163: 0 | P163: 0 | Q163: 0 | R163: 0 | S163: 0 | T163: 0 | U163: 0 | V163: 0 | W163: 0 | X163: 0 | Y163: 0 | AB163: =nerr(SUM(AB164:AB165)-AB164) -> 0 | AC163: =nerr(SUM(AC164:AC165)-AC164) -> 0 | AG163: =nerr(SUM(AG164:AG165)-AG164) -> 0 | AL163: =nerr(SUM(AL164:AL165)-AL164) -> 0
D164: 2.1.1.1.1.0 | F164: =nerr(SUM(G164:J164)) -> 0 | K164: =nerr(SUM(L164:O164)) -> 0 | P164: =nerr(SUM(Q164:T164)) -> 0 | U164: =nerr(SUM(V164:Y164)) -> 0
C166: - | D166: 2.1.1.1.2 | E166: ВЛЭП 35 кВ (СН1) | F166: =nerr(SUM(F167:F168)-F167) -> 0 | G166: 0 | H166: 0 | I166: 0 | J166: 0 | K166: 0 | L166: 0 | M166: 0 | N166: 0 | O166: 0 | P166: 0 | Q166: 0 | R166: 0 | S166: 0 | T166: 0 | U166: 0 | V166: 0 | W166: 0 | X166: 0 | Y166: 0 | AB166: =nerr(SUM(AB167:AB168)-AB167) -> 0 | AC166: =nerr(SUM(AC167:AC168)-AC167) -> 0 | AG166: =nerr(SUM(AG167:AG168)-AG167) -> 0 | AL166: =nerr(SUM(AL167:AL168)-AL167) -> 0
D167: 2.1.1.1.2.0 | F167: =nerr(SUM(G167:J167)) -> 0 | K167: =nerr(SUM(L167:O167)) -> 0 | P167: =nerr(SUM(Q167:T167)) -> 0 | U167: =nerr(SUM(V167:Y167)) -> 0
C169: - | D169: 2.1.1.1.3 | E169: ВЛЭП 1-20 кВ (СН2) | F169: =nerr(SUM(F170:F171)-F170) -> 0 | G169: 0 | H169: 0 | I169: 0 | J169: 0 | K169: 0 | L169: 0 | M169: 0 | N169: 0 | O169: 0 | P169: 0 | Q169: 0 | R169: 0 | S169: 0 | T169: 0 | U169: 0 | V169: 0 | W169: 0 | X169: 0 | Y169: 0 | AB169: =nerr(SUM(AB170:AB171)-AB170) -> 0 | AC169: =nerr(SUM(AC170:AC171)-AC170) -> 0 | AG169: =nerr(SUM(AG170:AG171)-AG170) -> 0 | AL169: =nerr(SUM(AL170:AL171)-AL170) -> 0
D170: 2.1.1.1.3.0 | F170: =nerr(SUM(G170:J170)) -> 0 | K170: =nerr(SUM(L170:O170)) -> 0 | P170: =nerr(SUM(Q170:T170)) -> 0 | U170: =nerr(SUM(V170:Y170)) -> 0
C172: - | D172: 2.1.1.1.4 | E172: ВЛЭП 0,4 кВ (НН) | F172: =nerr(SUM(F173:F174)-F173) -> 0 | G172: 0 | H172: 0 | I172: 0 | J172: 0 | K172: 0 | L172: 0 | M172: 0 | N172: 0 | O172: 0 | P172: 0 | Q172: 0 | R172: 0 | S172: 0 | T172: 0 | U172: 0 | V172: 0 | W172: 0 | X172: 0 | Y172: 0 | AB172: =nerr(SUM(AB173:AB174)-AB173) -> 0 | AC172: =nerr(SUM(AC173:AC174)-AC173) -> 0 | AG172: =nerr(SUM(AG173:AG174)-AG173) -> 0 | AL172: =nerr(SUM(AL173:AL174)-AL173) -> 0
D173: 2.1.1.1.4.0 | F173: =nerr(SUM(G173:J173)) -> 0 | K173: =nerr(SUM(L173:O173)) -> 0 | P173: =nerr(SUM(Q173:T173)) -> 0 | U173: =nerr(SUM(V173:Y173)) -> 0
C175: - | D175: 2.1.1.2 | E175: Кабельные линии | F175: =F176+F179+F182+F185 -> 0 | G175: 0 | H175: 0 | I175: 0 | J175: 0 | K175: 0 | L175: 0 | M175: 0 | N175: 0 | O175: 0 | P175: 0 | Q175: 0 | R175: 0 | S175: 0 | T175: 0 | U175: 0 | V175: 0 | W175: 0 | X175: 0 | Y175: 0 | AB175: =AB176+AB179+AB182+AB185 -> 0 | AC175: =AC176+AC179+AC182+AC185 -> 0 | AG175: =AG176+AG179+AG182+AG185 -> 0 | AL175: =AL176+AL179+AL182+AL185 -> 0
C176: - | D176: 2.1.1.2.1 | E176: КЛЭП 110 кВ (ВН) | F176: =nerr(SUM(F177:F178)-F177) -> 0 | G176: 0 | H176: 0 | I176: 0 | J176: 0 | K176: 0 | L176: 0 | M176: 0 | N176: 0 | O176: 0 | P176: 0 | Q176: 0 | R176: 0 | S176: 0 | T176: 0 | U176: 0 | V176: 0 | W176: 0 | X176: 0 | Y176: 0 | AB176: =nerr(SUM(AB177:AB178)-AB177) -> 0 | AC176: =nerr(SUM(AC177:AC178)-AC177) -> 0 | AG176: =nerr(SUM(AG177:AG178)-AG177) -> 0 | AL176: =nerr(SUM(AL177:AL178)-AL177) -> 0
D177: 2.1.1.2.1.0 | F177: =nerr(SUM(G177:J177)) -> 0 | K177: =nerr(SUM(L177:O177)) -> 0 | P177: =nerr(SUM(Q177:T177)) -> 0 | U177: =nerr(SUM(V177:Y177)) -> 0
C179: - | D179: 2.1.1.2.2 | E179: КЛЭП 20-35 кВ (СН1) | F179: =nerr(SUM(F180:F181)-F180) -> 0 | G179: 0 | H179: 0 | I179: 0 | J179: 0 | K179: 0 | L179: 0 | M179: 0 | N179: 0 | O179: 0 | P179: 0 | Q179: 0 | R179: 0 | S179: 0 | T179: 0 | U179: 0 | V179: 0 | W179: 0 | X179: 0 | Y179: 0 | AB179: =nerr(SUM(AB180:AB181)-AB180) -> 0 | AC179: =nerr(SUM(AC180:AC181)-AC180) -> 0 | AG179: =nerr(SUM(AG180:AG181)-AG180) -> 0 | AL179: =nerr(SUM(AL180:AL181)-AL180) -> 0
D180: 2.1.1.2.2.0 | F180: =nerr(SUM(G180:J180)) -> 0 | K180: =nerr(SUM(L180:O180)) -> 0 | P180: =nerr(SUM(Q180:T180)) -> 0 | U180: =nerr(SUM(V180:Y180)) -> 0
C182: - | D182: 2.1.1.2.3 | E182: КЛЭП 3-10 кВ (СН2) | F182: =nerr(SUM(F183:F184)-F183) -> 0 | G182: 0 | H182: 0 | I182: 0 | J182: 0 | K182: 0 | L182: 0 | M182: 0 | N182: 0 | O182: 0 | P182: 0 | Q182: 0 | R182: 0 | S182: 0 | T182: 0 | U182: 0 | V182: 0 | W182: 0 | X182: 0 | Y182: 0 | AB182: =nerr(SUM(AB183:AB184)-AB183) -> 0 | AC182: =nerr(SUM(AC183:AC184)-AC183) -> 0 | AG182: =nerr(SUM(AG183:AG184)-AG183) -> 0 | AL182: =nerr(SUM(AL183:AL184)-AL183) -> 0
D183: 2.1.1.2.3.0 | F183: =nerr(SUM(G183:J183)) -> 0 | K183: =nerr(SUM(L183:O183)) -> 0 | P183: =nerr(SUM(Q183:T183)) -> 0 | U183: =nerr(SUM(V183:Y183)) -> 0
C185: - | D185: 2.1.1.2.4 | E185: КЛЭП до 1 кВ (НН) | F185: =nerr(SUM(F186:F187)-F186) -> 0 | G185: 0 | H185: 0 | I185: 0 | J185: 0 | K185: 0 | L185: 0 | M185: 0 | N185: 0 | O185: 0 | P185: 0 | Q185: 0 | R185: 0 | S185: 0 | T185: 0 | U185: 0 | V185: 0 | W185: 0 | X185: 0 | Y185: 0 | AB185: =nerr(SUM(AB186:AB187)-AB186) -> 0 | AC185: =nerr(SUM(AC186:AC187)-AC186) -> 0 | AG185: =nerr(SUM(AG186:AG187)-AG186) -> 0 | AL185: =nerr(SUM(AL186:AL187)-AL186) -> 0
D186: 2.1.1.2.4.0 | F186: =nerr(SUM(G186:J186)) -> 0 | K186: =nerr(SUM(L186:O186)) -> 0 | P186: =nerr(SUM(Q186:T186)) -> 0 | U186: =nerr(SUM(V186:Y186)) -> 0
C188: - | D188: 2.1.2 | E188: Подстанции | F188: =F189+F192+F195 -> 0 | G188: 0 | H188: 0 | I188: 0 | J188: 0 | K188: 0 | L188: 0 | M188: 0 | N188: 0 | O188: 0 | P188: 0 | Q188: 0 | R188: 0 | S188: 0 | T188: 0 | U188: 0 | V188: 0 | W188: 0 | X188: 0 | Y188: 0 | AB188: =AB189+AB192+AB195 -> 0 | AC188: =AC189+AC192+AC195 -> 0 | AG188: =AG189+AG192+AG195 -> 0 | AL188: =AL189+AL192+AL195 -> 0
C189: - | D189: 2.1.2.1 | E189: Уровень входящего напряжения ВН | F189: =nerr(SUM(F190:F191)-F190) -> 0 | G189: 0 | H189: 0 | I189: 0 | J189: 0 | K189: 0 | L189: 0 | M189: 0 | N189: 0 | O189: 0 | P189: 0 | Q189: 0 | R189: 0 | S189: 0 | T189: 0 | U189: 0 | V189: 0 | W189: 0 | X189: 0 | Y189: 0 | AB189: =nerr(SUM(AB190:AB191)-AB190) -> 0 | AC189: =nerr(SUM(AC190:AC191)-AC190) -> 0 | AG189: =nerr(SUM(AG190:AG191)-AG190) -> 0 | AL189: =nerr(SUM(AL190:AL191)-AL190) -> 0
D190: 2.1.2.1.0 | F190: =nerr(SUM(G190:J190)) -> 0 | K190: =nerr(SUM(L190:O190)) -> 0 | P190: =nerr(SUM(Q190:T190)) -> 0 | U190: =nerr(SUM(V190:Y190)) -> 0
C192: - | D192: 2.1.2.2 | E192: Уровень входящего напряжения СН1 | F192: =nerr(SUM(F193:F194)-F193) -> 0 | G192: 0 | H192: 0 | I192: 0 | J192: 0 | K192: 0 | L192: 0 | M192: 0 | N192: 0 | O192: 0 | P192: 0 | Q192: 0 | R192: 0 | S192: 0 | T192: 0 | U192: 0 | V192: 0 | W192: 0 | X192: 0 | Y192: 0 | AB192: =nerr(SUM(AB193:AB194)-AB193) -> 0 | AC192: =nerr(SUM(AC193:AC194)-AC193) -> 0 | AG192: =nerr(SUM(AG193:AG194)-AG193) -> 0 | AL192: =nerr(SUM(AL193:AL194)-AL193) -> 0
D193: 2.1.2.2.0 | F193: =nerr(SUM(G193:J193)) -> 0 | K193: =nerr(SUM(L193:O193)) -> 0 | P193: =nerr(SUM(Q193:T193)) -> 0 | U193: =nerr(SUM(V193:Y193)) -> 0
C195: - | D195: 2.1.2.3 | E195: Уровень входящего напряжения СН2 | F195: =nerr(SUM(F196:F197)-F196) -> 0 | G195: 0 | H195: 0 | I195: 0 | J195: 0 | K195: 0 | L195: 0 | M195: 0 | N195: 0 | O195: 0 | P195: 0 | Q195: 0 | R195: 0 | S195: 0 | T195: 0 | U195: 0 | V195: 0 | W195: 0 | X195: 0 | Y195: 0 | AB195: =nerr(SUM(AB196:AB197)-AB196) -> 0 | AC195: =nerr(SUM(AC196:AC197)-AC196) -> 0 | AG195: =nerr(SUM(AG196:AG197)-AG196) -> 0 | AL195: =nerr(SUM(AL196:AL197)-AL196) -> 0
D196: 2.1.2.3.0 | F196: =nerr(SUM(G196:J196)) -> 0 | K196: =nerr(SUM(L196:O196)) -> 0 | P196: =nerr(SUM(Q196:T196)) -> 0 | U196: =nerr(SUM(V196:Y196)) -> 0
C198: - | D198: 2.1.3 | E198: Прочие электросетевые объекты | F198: =nerr(SUM(F199:F200)-F199) -> 0 | G198: 0 | H198: 0 | I198: 0 | J198: 0 | K198: 0 | L198: 0 | M198: 0 | N198: 0 | O198: 0 | P198: 0 | Q198: 0 | R198: 0 | S198: 0 | T198: 0 | U198: 0 | V198: 0 | W198: 0 | X198: 0 | Y198: 0 | AB198: =nerr(SUM(AB199:AB200)-AB199) -> 0 | AC198: =nerr(SUM(AC199:AC200)-AC199) -> 0 | AG198: =nerr(SUM(AG199:AG200)-AG199) -> 0 | AL198: =nerr(SUM(AL199:AL200)-AL199) -> 0
D199: 2.1.3.0 | F199: =nerr(SUM(G199:J199)) -> 0 | K199: =nerr(SUM(L199:O199)) -> 0 | P199: =nerr(SUM(Q199:T199)) -> 0 | U199: =nerr(SUM(V199:Y199)) -> 0
C201: - | D201: 2.2 | E201: Исполнение договоров технологического присоединения | F201: =F202+F229+F239 -> 0 | G201: 0 | H201: 0 | I201: 0 | J201: 0 | K201: 0 | L201: 0 | M201: 0 | N201: 0 | O201: 0 | P201: 0 | Q201: 0 | R201: 0 | S201: 0 | T201: 0 | U201: 0 | V201: 0 | W201: 0 | X201: 0 | Y201: 0 | AB201: =AB202+AB229+AB239 -> 0 | AC201: =AC202+AC229+AC239 -> 0 | AG201: =AG202+AG229+AG239 -> 0 | AL201: =AL202+AL229+AL239 -> 0
C202: - | D202: 2.2.1 | E202: Электрические линии | F202: =F203+F216 -> 0 | G202: 0 | H202: 0 | I202: 0 | J202: 0 | K202: 0 | L202: 0 | M202: 0 | N202: 0 | O202: 0 | P202: 0 | Q202: 0 | R202: 0 | S202: 0 | T202: 0 | U202: 0 | V202: 0 | W202: 0 | X202: 0 | Y202: 0 | AB202: =AB203+AB216 -> 0 | AC202: =AC203+AC216 -> 0 | AG202: =AG203+AG216 -> 0 | AL202: =AL203+AL216 -> 0
C203: - | D203: 2.2.1.1 | E203: Воздушные линии | F203: =F204+F207+F210+F213 -> 0 | G203: 0 | H203: 0 | I203: 0 | J203: 0 | K203: 0 | L203: 0 | M203: 0 | N203: 0 | O203: 0 | P203: 0 | Q203: 0 | R203: 0 | S203: 0 | T203: 0 | U203: 0 | V203: 0 | W203: 0 | X203: 0 | Y203: 0 | AB203: =AB204+AB207+AB210+AB213 -> 0 | AC203: =AC204+AC207+AC210+AC213 -> 0 | AG203: =AG204+AG207+AG210+AG213 -> 0 | AL203: =AL204+AL207+AL210+AL213 -> 0
C204: - | D204: 2.2.1.1.1 | E204: ВЛЭП 110-220 кВ (ВН) | F204: =nerr(SUM(F205:F206)-F205) -> 0 | G204: 0 | H204: 0 | I204: 0 | J204: 0 | K204: 0 | L204: 0 | M204: 0 | N204: 0 | O204: 0 | P204: 0 | Q204: 0 | R204: 0 | S204: 0 | T204: 0 | U204: 0 | V204: 0 | W204: 0 | X204: 0 | Y204: 0 | AB204: =nerr(SUM(AB205:AB206)-AB205) -> 0 | AC204: =nerr(SUM(AC205:AC206)-AC205) -> 0 | AG204: =nerr(SUM(AG205:AG206)-AG205) -> 0 | AL204: =nerr(SUM(AL205:AL206)-AL205) -> 0
D205: 2.2.1.1.1.0 | F205: =nerr(SUM(G205:J205)) -> 0 | K205: =nerr(SUM(L205:O205)) -> 0 | P205: =nerr(SUM(Q205:T205)) -> 0 | U205: =nerr(SUM(V205:Y205)) -> 0
C207: - | D207: 2.2.1.1.2 | E207: ВЛЭП 35 кВ (СН1) | F207: =nerr(SUM(F208:F209)-F208) -> 0 | G207: 0 | H207: 0 | I207: 0 | J207: 0 | K207: 0 | L207: 0 | M207: 0 | N207: 0 | O207: 0 | P207: 0 | Q207: 0 | R207: 0 | S207: 0 | T207: 0 | U207: 0 | V207: 0 | W207: 0 | X207: 0 | Y207: 0 | AB207: =nerr(SUM(AB208:AB209)-AB208) -> 0 | AC207: =nerr(SUM(AC208:AC209)-AC208) -> 0 | AG207: =nerr(SUM(AG208:AG209)-AG208) -> 0 | AL207: =nerr(SUM(AL208:AL209)-AL208) -> 0
D208: 2.2.1.1.2.0 | F208: =nerr(SUM(G208:J208)) -> 0 | K208: =nerr(SUM(L208:O208)) -> 0 | P208: =nerr(SUM(Q208:T208)) -> 0 | U208: =nerr(SUM(V208:Y208)) -> 0
C210: - | D210: 2.2.1.1.3 | E210: ВЛЭП 1-20 кВ (СН2) | F210: =nerr(SUM(F211:F212)-F211) -> 0 | G210: 0 | H210: 0 | I210: 0 | J210: 0 | K210: 0 | L210: 0 | M210: 0 | N210: 0 | O210: 0 | P210: 0 | Q210: 0 | R210: 0 | S210: 0 | T210: 0 | U210: 0 | V210: 0 | W210: 0 | X210: 0 | Y210: 0 | AB210: =nerr(SUM(AB211:AB212)-AB211) -> 0 | AC210: =nerr(SUM(AC211:AC212)-AC211) -> 0 | AG210: =nerr(SUM(AG211:AG212)-AG211) -> 0 | AL210: =nerr(SUM(AL211:AL212)-AL211) -> 0
D211: 2.2.1.1.3.0 | F211: =nerr(SUM(G211:J211)) -> 0 | K211: =nerr(SUM(L211:O211)) -> 0 | P211: =nerr(SUM(Q211:T211)) -> 0 | U211: =nerr(SUM(V211:Y211)) -> 0
C213: - | D213: 2.2.1.1.4 | E213: ВЛЭП 0,4 кВ (НН) | F213: =nerr(SUM(F214:F215)-F214) -> 0 | G213: 0 | H213: 0 | I213: 0 | J213: 0 | K213: 0 | L213: 0 | M213: 0 | N213: 0 | O213: 0 | P213: 0 | Q213: 0 | R213: 0 | S213: 0 | T213: 0 | U213: 0 | V213: 0 | W213: 0 | X213: 0 | Y213: 0 | AB213: =nerr(SUM(AB214:AB215)-AB214) -> 0 | AC213: =nerr(SUM(AC214:AC215)-AC214) -> 0 | AG213: =nerr(SUM(AG214:AG215)-AG214) -> 0 | AL213: =nerr(SUM(AL214:AL215)-AL214) -> 0
D214: 2.2.1.1.4.0 | F214: =nerr(SUM(G214:J214)) -> 0 | K214: =nerr(SUM(L214:O214)) -> 0 | P214: =nerr(SUM(Q214:T214)) -> 0 | U214: =nerr(SUM(V214:Y214)) -> 0
C216: - | D216: 2.2.1.2 | E216: Кабельные линии | F216: =F217+F220+F223+F226 -> 0 | G216: 0 | H216: 0 | I216: 0 | J216: 0 | K216: 0 | L216: 0 | M216: 0 | N216: 0 | O216: 0 | P216: 0 | Q216: 0 | R216: 0 | S216: 0 | T216: 0 | U216: 0 | V216: 0 | W216: 0 | X216: 0 | Y216: 0 | AB216: =AB217+AB220+AB223+AB226 -> 0 | AC216: =AC217+AC220+AC223+AC226 -> 0 | AG216: =AG217+AG220+AG223+AG226 -> 0 | AL216: =AL217+AL220+AL223+AL226 -> 0
C217: - | D217: 2.2.1.2.1 | E217: КЛЭП 110 кВ (ВН) | F217: =nerr(SUM(F218:F219)-F218) -> 0 | G217: 0 | H217: 0 | I217: 0 | J217: 0 | K217: 0 | L217: 0 | M217: 0 | N217: 0 | O217: 0 | P217: 0 | Q217: 0 | R217: 0 | S217: 0 | T217: 0 | U217: 0 | V217: 0 | W217: 0 | X217: 0 | Y217: 0 | AB217: =nerr(SUM(AB218:AB219)-AB218) -> 0 | AC217: =nerr(SUM(AC218:AC219)-AC218) -> 0 | AG217: =nerr(SUM(AG218:AG219)-AG218) -> 0 | AL217: =nerr(SUM(AL218:AL219)-AL218) -> 0
D218: 2.2.1.2.1.0 | F218: =nerr(SUM(G218:J218)) -> 0 | K218: =nerr(SUM(L218:O218)) -> 0 | P218: =nerr(SUM(Q218:T218)) -> 0 | U218: =nerr(SUM(V218:Y218)) -> 0
C220: - | D220: 2.2.1.2.2 | E220: КЛЭП 20-35 кВ (СН1) | F220: =nerr(SUM(F221:F222)-F221) -> 0 | G220: 0 | H220: 0 | I220: 0 | J220: 0 | K220: 0 | L220: 0 | M220: 0 | N220: 0 | O220: 0 | P220: 0 | Q220: 0 | R220: 0 | S220: 0 | T220: 0 | U220: 0 | V220: 0 | W220: 0 | X220: 0 | Y220: 0 | AB220: =nerr(SUM(AB221:AB222)-AB221) -> 0 | AC220: =nerr(SUM(AC221:AC222)-AC221) -> 0 | AG220: =nerr(SUM(AG221:AG222)-AG221) -> 0 | AL220: =nerr(SUM(AL221:AL222)-AL221) -> 0
D221: 2.2.1.2.2.0 | F221: =nerr(SUM(G221:J221)) -> 0 | K221: =nerr(SUM(L221:O221)) -> 0 | P221: =nerr(SUM(Q221:T221)) -> 0 | U221: =nerr(SUM(V221:Y221)) -> 0
C223: - | D223: 2.2.1.2.3 | E223: КЛЭП 3-10 кВ (СН2) | F223: =nerr(SUM(F224:F225)-F224) -> 0 | G223: 0 | H223: 0 | I223: 0 | J223: 0 | K223: 0 | L223: 0 | M223: 0 | N223: 0 | O223: 0 | P223: 0 | Q223: 0 | R223: 0 | S223: 0 | T223: 0 | U223: 0 | V223: 0 | W223: 0 | X223: 0 | Y223: 0 | AB223: =nerr(SUM(AB224:AB225)-AB224) -> 0 | AC223: =nerr(SUM(AC224:AC225)-AC224) -> 0 | AG223: =nerr(SUM(AG224:AG225)-AG224) -> 0 | AL223: =nerr(SUM(AL224:AL225)-AL224) -> 0
D224: 2.2.1.2.3.0 | F224: =nerr(SUM(G224:J224)) -> 0 | K224: =nerr(SUM(L224:O224)) -> 0 | P224: =nerr(SUM(Q224:T224)) -> 0 | U224: =nerr(SUM(V224:Y224)) -> 0
C226: - | D226: 2.2.1.2.4 | E226: КЛЭП до 1 кВ (НН) | F226: =nerr(SUM(F227:F228)-F227) -> 0 | G226: 0 | H226: 0 | I226: 0 | J226: 0 | K226: 0 | L226: 0 | M226: 0 | N226: 0 | O226: 0 | P226: 0 | Q226: 0 | R226: 0 | S226: 0 | T226: 0 | U226: 0 | V226: 0 | W226: 0 | X226: 0 | Y226: 0 | AB226: =nerr(SUM(AB227:AB228)-AB227) -> 0 | AC226: =nerr(SUM(AC227:AC228)-AC227) -> 0 | AG226: =nerr(SUM(AG227:AG228)-AG227) -> 0 | AL226: =nerr(SUM(AL227:AL228)-AL227) -> 0
D227: 2.2.1.2.4.0 | F227: =nerr(SUM(G227:J227)) -> 0 | K227: =nerr(SUM(L227:O227)) -> 0 | P227: =nerr(SUM(Q227:T227)) -> 0 | U227: =nerr(SUM(V227:Y227)) -> 0
C229: - | D229: 2.2.2 | E229: Подстанции | F229: =F230+F233+F236 -> 0 | G229: 0 | H229: 0 | I229: 0 | J229: 0 | K229: 0 | L229: 0 | M229: 0 | N229: 0 | O229: 0 | P229: 0 | Q229: 0 | R229: 0 | S229: 0 | T229: 0 | U229: 0 | V229: 0 | W229: 0 | X229: 0 | Y229: 0 | AB229: =AB230+AB233+AB236 -> 0 | AC229: =AC230+AC233+AC236 -> 0 | AG229: =AG230+AG233+AG236 -> 0 | AL229: =AL230+AL233+AL236 -> 0
C230: - | D230: 2.2.2.1 | E230: Уровень входящего напряжения ВН | F230: =nerr(SUM(F231:F232)-F231) -> 0 | G230: 0 | H230: 0 | I230: 0 | J230: 0 | K230: 0 | L230: 0 | M230: 0 | N230: 0 | O230: 0 | P230: 0 | Q230: 0 | R230: 0 | S230: 0 | T230: 0 | U230: 0 | V230: 0 | W230: 0 | X230: 0 | Y230: 0 | AB230: =nerr(SUM(AB231:AB232)-AB231) -> 0 | AC230: =nerr(SUM(AC231:AC232)-AC231) -> 0 | AG230: =nerr(SUM(AG231:AG232)-AG231) -> 0 | AL230: =nerr(SUM(AL231:AL232)-AL231) -> 0
D231: 2.2.2.1.0 | F231: =nerr(SUM(G231:J231)) -> 0 | K231: =nerr(SUM(L231:O231)) -> 0 | P231: =nerr(SUM(Q231:T231)) -> 0 | U231: =nerr(SUM(V231:Y231)) -> 0
C233: - | D233: 2.2.2.2 | E233: Уровень входящего напряжения СН1 | F233: =nerr(SUM(F234:F235)-F234) -> 0 | G233: 0 | H233: 0 | I233: 0 | J233: 0 | K233: 0 | L233: 0 | M233: 0 | N233: 0 | O233: 0 | P233: 0 | Q233: 0 | R233: 0 | S233: 0 | T233: 0 | U233: 0 | V233: 0 | W233: 0 | X233: 0 | Y233: 0 | AB233: =nerr(SUM(AB234:AB235)-AB234) -> 0 | AC233: =nerr(SUM(AC234:AC235)-AC234) -> 0 | AG233: =nerr(SUM(AG234:AG235)-AG234) -> 0 | AL233: =nerr(SUM(AL234:AL235)-AL234) -> 0
D234: 2.2.2.2.0 | F234: =nerr(SUM(G234:J234)) -> 0 | K234: =nerr(SUM(L234:O234)) -> 0 | P234: =nerr(SUM(Q234:T234)) -> 0 | U234: =nerr(SUM(V234:Y234)) -> 0
C236: - | D236: 2.2.2.3 | E236: Уровень входящего напряжения СН2 | F236: =nerr(SUM(F237:F238)-F237) -> 0 | G236: 0 | H236: 0 | I236: 0 | J236: 0 | K236: 0 | L236: 0 | M236: 0 | N236: 0 | O236: 0 | P236: 0 | Q236: 0 | R236: 0 | S236: 0 | T236: 0 | U236: 0 | V236: 0 | W236: 0 | X236: 0 | Y236: 0 | AB236: =nerr(SUM(AB237:AB238)-AB237) -> 0 | AC236: =nerr(SUM(AC237:AC238)-AC237) -> 0 | AG236: =nerr(SUM(AG237:AG238)-AG237) -> 0 | AL236: =nerr(SUM(AL237:AL238)-AL237) -> 0
D237: 2.2.2.3.0 | F237: =nerr(SUM(G237:J237)) -> 0 | K237: =nerr(SUM(L237:O237)) -> 0 | P237: =nerr(SUM(Q237:T237)) -> 0 | U237: =nerr(SUM(V237:Y237)) -> 0
C239: - | D239: 2.2.3 | E239: Прочие электросетевые объекты | F239: =nerr(SUM(F240:F241)-F240) -> 0 | G239: 0 | H239: 0 | I239: 0 | J239: 0 | K239: 0 | L239: 0 | M239: 0 | N239: 0 | O239: 0 | P239: 0 | Q239: 0 | R239: 0 | S239: 0 | T239: 0 | U239: 0 | V239: 0 | W239: 0 | X239: 0 | Y239: 0 | AB239: =nerr(SUM(AB240:AB241)-AB240) -> 0 | AC239: =nerr(SUM(AC240:AC241)-AC240) -> 0 | AG239: =nerr(SUM(AG240:AG241)-AG240) -> 0 | AL239: =nerr(SUM(AL240:AL241)-AL240) -> 0
D240: 2.2.3.0 | F240: =nerr(SUM(G240:J240)) -> 0 | K240: =nerr(SUM(L240:O240)) -> 0 | P240: =nerr(SUM(Q240:T240)) -> 0 | U240: =nerr(SUM(V240:Y240)) -> 0
C242: - | D242: 2.3 | E242: Прочее новое строительство | F242: =nerr(SUMIF($AN243:$AN245,"=I",F243:F245)-F243) -> 0 | G242: 0 | H242: 0 | I242: 0 | J242: 0 | K242: 0 | L242: 0 | M242: 0 | N242: 0 | O242: 0 | P242: 0 | Q242: 0 | R242: 0 | S242: 0 | T242: 0 | U242: 0 | V242: 0 | W242: 0 | X242: 0 | Y242: 0 | AB242: =nerr(SUMIF($AN243:$AN245,"=I",AB243:AB245)-AB243) -> 0 | AC242: =nerr(SUMIF($AN243:$AN245,"=I",AC243:AC245)-AC243) -> 0 | AG242: =nerr(SUMIF($AN243:$AN245,"=I",AG243:AG245)-AG243) -> 0 | AL242: =nerr(SUMIF($AN243:$AN245,"=I",AL243:AL245)-AL243) -> 0
D243: 2.3.0 | F243: =nerr(SUM(G243:J243)) -> 0 | K243: =nerr(SUM(L243:O243)) -> 0 | P243: =nerr(SUM(Q243:T243)) -> 0 | U243: =nerr(SUM(V243:Y243)) -> 0 | AN243: I
D244: =D243&".1" -> 2.3.0.1 | E244: в том числе ПТП | F244: =nerr(SUM(G244:J244)) -> 0 | K244: =nerr(SUM(L244:O244)) -> 0 | P244: =nerr(SUM(Q244:T244)) -> 0 | U244: =nerr(SUM(V244:Y244)) -> 0
D246: Справочно:
C247: - | D247: 3 | E247: Оплата процентов за привлеченные кредитные ресурсы | F247: =nerr(SUM(F248:F249)-F248) -> 0 | G247: 0 | H247: 0 | I247: 0 | J247: 0 | K247: 0 | L247: 0 | M247: 0 | N247: 0 | O247: 0 | P247: 0 | Q247: 0 | R247: 0 | S247: 0 | T247: 0 | U247: 0 | V247: 0 | W247: 0 | X247: 0 | Y247: 0 | AB247: =nerr(SUM(AB248:AB249)-AB248) -> 0 | AC247: =nerr(SUM(AC248:AC249)-AC248) -> 0 | AG247: =nerr(SUM(AG248:AG249)-AG248) -> 0 | AL247: =nerr(SUM(AL248:AL249)-AL248) -> 0
D248: 3.0 | F248: =nerr(SUM(G248:J248)) -> 0 | K248: =nerr(SUM(L248:O248)) -> 0 | P248: =nerr(SUM(Q248:T248)) -> 0 | U248: =nerr(SUM(V248:Y248)) -> 0
E251: * | F251: С разделением объектов на ПС, ВЛ и КЛ с указанием уровня напряжения.
E252: ** | F252: Согласно проектно-сметной документации с учетом перевода в прогнозные цены планируемого периода (с НДС).

Sheet Ф.8
J1: 2 | K1: 2 | L1: 3 | M1: 3 | N1: 4 | O1: 4
C6: Список листов | P6: Приложение № 8 к Приказу Минэнерго России от 24.03.2010 № 114
P7: Утверждаю руководитель организации
P9: (подпись)
P10: "___" _____________ 20__ года
P11: М.П.
D12: Отчет об источниках финансирования инвестиционных программ, млн. рублей (представляется ежеквартально)
D13: =org & ", Факт за " & otchet_god & " г. " & kvartal -> ООО "Красноярский жилищно-коммунальный комплекс", Факт за 2016 г. IV квартал
D15: № п/п | E15: Источник финансирования | F15: ="Объем финансирования ("& otchet_god & " год)" -> Объем финансирования (2016 год) | P15: Причины отклонений
F16: Всего | H16: I кв. | J16: II кв. | L16: III кв. | N16: IV кв.
F17: План* | G17: Факт** | H17: План | I17: Факт | J17: План | K17: Факт | L17: План | M17: Факт | N17: План | O17: Факт
D18: 1 | E18: 2 | F18: 3 | G18: 4 | H18: 5 | I18: 6 | J18: 7 | K18: 8 | L18: 9 | M18: 10 | N18: 11 | O18: 12 | P18: 13
D19: 1 | E19: Собственные средства | F19: =nerr(F20+F27+F31+F32+F34) -> 34.76 | G19: 0 | H19: 0 | I19: 0 | J19: 0 | K19: 0 | L19: 0 | M19: 0 | N19: 34.76 | O19: 0
D20: 1.1 | E20: Прибыль, направляемая на инвестиции: | F20: =nerr(F21+F22+F23+F26) -> 12.36 | G20: 0 | H20: 0 | I20: 0 | J20: 0 | K20: 0 | L20: 0 | M20: 0 | N20: 12.36 | O20: 0
D21: 1.1.1 | E21: в т.ч. инвестиционная составляющая в тарифе | F21: =nerr(H21+J21+L21+N21) -> 12.36 | G21: =nerr(I21+K21+M21+O21) -> 0 | H21: 0 | I21: 0 | J21: 0 | K21: 0 | L21: 0 | M21: 0 | N21: 12.36 | O21: 0
D22: 1.1.2 | E22: в т.ч. прибыль со свободного сектора | F22: =nerr(H22+J22+L22+N22) -> 0 | G22: =nerr(I22+K22+M22+O22) -> 0
D23: 1.1.3 | E23: в т.ч. от технологического присоединения (для электросетевых компаний) | F23: =nerr(F24+F25) -> 0 | G23: 0 | H23: 0 | I23: 0 | J23: 0 | K23: 0 | L23: 0 | M23: 0 | N23: 0 | O23: 0
D24: 1.1.3.1 | E24: в т.ч. от технологического присоединения генерации | F24: =nerr(H24+J24+L24+N24) -> 0 | G24: 0
D25: 1.1.3.2 | E25: в т.ч. от технологического присоединения потребителей | F25: 0 | G25: 0
D26: 1.1.4 | E26: Прочая прибыль | F26: 0 | G26: 0
D27: 1.2 | E27: Амортизация | F27: =nerr(F28+F29+F30) -> 22.4 | G27: 0 | H27: 0 | I27: 0 | J27: 0 | K27: 0 | L27: 0 | M27: 0 | N27: 22.4 | O27: 0
D28: 1.2.1 | E28: Амортизация, учтенная в тарифе | F28: =nerr(H28+J28+L28+N28) -> 4.82 | G28: 0 | H28: 0 | I28: 0 | J28: 0 | K28: 0 | L28: 0 | M28: 0 | N28: 4.82 | O28: 0
D29: 1.2.2 | E29: Прочая амортизация | F29: 17.58 | G29: 0 | H29: 0 | I29: 0 | J29: 0 | K29: 0 | L29: 0 | M29: 0 | N29: 17.58 | O29: 0
D30: 1.2.3 | E30: Недоиспользованная амортизация прошлых лет | F30: 0 | G30: 0
D31: 1.3 | E31: Возврат НДС | F31: 0 | G31: 0
D32: 1.4 | E32: Прочие собственные средства | F32: 0 | G32: 0
D33: 1.4.1 | E33: в т.ч. средства допэмиссии | F33: 0 | G33: 0
D34: 1.5 | E34: Остаток собственных средств на начало года | F34: 0 | G34: 0
D35: 2 | E35: Привлеченные средства, в т.ч.: | F35: =nerr(SUM(F36:F42)) -> 0 | G35: 0 | H35: 0 | I35: 0 | J35: 0 | K35: 0 | L35: 0 | M35: 0 | N35: 0 | O35: 0
D36: 2.1 | E36: Кредиты | F36: =nerr(H36+J36+L36+N36) -> 0 | G36: 0
D37: 2.2 | E37: Облигационные займы | F37: 0 | G37: 0
D38: 2.3 | E38: Займы организаций | F38: 0 | G38: 0
D39: 2.4 | E39: Бюджетное финансирование | F39: 0 | G39: 0
D40: 2.5 | E40: Средства внешних инвесторов | F40: 0 | G40: 0
D41: 2.6 | E41: Использование лизинга | F41: 0 | G41: 0
D42: 2.7 | E42: Прочие привлеченные средства | F42: 0 | G42: 0
E43: ВСЕГО источников финансирования | F43: =nerr(F19+F35) -> 34.76 | G43: 0 | H43: 0 | I43: 0 | J43: 0 | K43: 0 | L43: 0 | M43: 0 | N43: 34.76 | O43: 0
E44: для ОГК/ТГК, в том числе | F44: =nerr(F45+F46) -> 0 | G44: 0 | H44: 0 | I44: 0 | J44: 0 | K44: 0 | L44: 0 | M44: 0 | N44: 0 | O44: 0
E45: ДПМ | F45: =nerr(H45+J45+L45+N45) -> 0 | G45: =nerr(I45+K45+M45+O45) -> 0
E46: вне ДПМ | F46: =nerr(H46+J46+L46+N46) -> 0 | G46: =nerr(I46+K46+M46+O46) -> 0
D48: * | E48: План в соответствии с утвержденной инвестиционной программой.
D49: ** | E49: Накопленным итогом за год.

Sheet Ф.9
G1: 2 | H1: 3 | I1: 4 | L1: 2 | M1: 3 | N1: 4 | Q1: 2 | R1: 3 | S1: 4 | V1: 2 | W1: 3 | X1: 4 | AA1: 2 | AB1: 3 | AC1: 4 | AF1: 2 | AG1: 3 | AH1: 4 | AK1: 2 | AL1: 3 | AM1: 4 | AP1: 2 | AQ1: 3 | AR1: 4 | AU1: 2 | AV1: 3 | AW1: 4 | AZ1: 2 | BA1: 3 | BB1: 4 | BE1: 2 | BF1: 3 | BG1: 4 | BJ1: 2 | BK1: 3 | BL1: 4 | BO1: 2 | BP1: 3 | BQ1: 4 | BT1: 2 | BU1: 3 | BV1: 4 | BY1: 2 | BZ1: 3 | CA1: 4 | CD1: 2 | CE1: 3 | CF1: 4
F2: 1 | G2: 1 | H2: 1 | I2: 1 | K2: 1 | L2: 1 | M2: 1 | N2: 1 | P2: 0 | Q2: 0 | R2: 0 | S2: 0 | U2: 0 | V2: 0 | W2: 0 | X2: 0 | Z2: 1 | AA2: 1 | AB2: 1 | AC2: 1 | AE2: 1 | AF2: 1 | AG2: 1 | AH2: 1 | AJ2: 0 | AK2: 0 | AL2: 0 | AM2: 0 | AO2: 0 | AP2: 0 | AQ2: 0 | AR2: 0 | AT2: 1 | AU2: 1 | AV2: 1 | AW2: 1 | AY2: 1 | AZ2: 1 | BA2: 1 | BB2: 1 | BD2: 0 | BE2: 0 | BF2: 0 | BG2: 0 | BI2: 0 | BJ2: 0 | BK2: 0 | BL2: 0 | BN2: 1 | BO2: 1 | BP2: 1 | BQ2: 1 | BS2: 1 | BT2: 1 | BU2: 1 | BV2: 1 | BX2: 0 | BY2: 0 | BZ2: 0 | CA2: 0 | CC2: 0 | CD2: 0 | CE2: 0 | CF2: 0
C6: Список листов | CH6: Приложение № 9 к Приказу Минэнерго России от 24.03.2010 № 114
CH7: Утверждаю руководитель организации
CH9: (подпись)
CH10: "___" _____________ 20__ года
CH11: М.П.
D12: Отчет о вводах/выводах объектов (представляется ежеквартально)
D13: =org & ", Факт за " & otchet_god & " г. " & kvartal -> ООО "Красноярский жилищно-коммунальный комплекс", Факт за 2016 г. IV квартал
D15: № п/п | E15: Наименование проекта | F15: Ввод мощностей | AT15: Вывод мощностей
F16: План* | Z16: Факт | AT16: План* | BN16: Факт
F17: МВт | K17: Гкал/ч | P17: км | U17: МВА | Z17: МВт | AE17: Гкал/ч | AJ17: км | AO17: МВА | AT17: МВт | AY17: Гкал/ч | BD17: км | BI17: МВА | BN17: МВт | BS17: Гкал/ч | BX17: км | CC17: МВА
F18: I кв. | G18: II кв. | H18: III кв. | I18: IV кв. | J18: =otchet_god & " г." -> 2016 г. | K18: I кв. | L18: II кв. | M18: III кв. | N18: IV кв. | O18: =otchet_god & " г." -> 2016 г. | P18: I кв. | Q18: II кв. | R18: III кв. | S18: IV кв. | T18: =otchet_god & " г." -> 2016 г. | U18: I кв. | V18: II кв. | W18: III кв. | X18: IV кв. | Y18: =otchet_god & " г." -> 2016 г. | Z18: I кв. | AA18: II кв. | AB18: III кв. | AC18: IV кв. | AD18: =otchet_god & " г." -> 2016 г. | AE18: I кв. | AF18: II кв. | AG18: III кв. | AH18: IV кв. | AI18: =otchet_god & " г." -> 2016 г. | AJ18: I кв. | AK18: II кв. | AL18: III кв. | AM18: IV кв. | AN18: =otchet_god & " г." -> 2016 г. | AO18: I кв. | AP18: II кв. | AQ18: III кв. | AR18: IV кв. | AS18: =otchet_god & " г." -> 2016 г. | AT18: I кв. | AU18: II кв. | AV18: III кв. | AW18: IV кв. | AX18: =otchet_god & " г." -> 2016 г. | AY18: I кв. | AZ18: II кв. | BA18: III кв. | BB18: IV кв. | BC18: =otchet_god & " г." -> 2016 г. | BD18: I кв. | BE18: II кв. | BF18: III кв. | BG18: IV кв. | BH18: =otchet_god & " г." -> 2016 г. | BI18: I кв. | BJ18: II кв. | BK18: III кв. | BL18: IV кв. | BM18: =otchet_god & " г." -> 2016 г. | BN18: I кв. | BO18: II кв. | BP18: III кв. | BQ18: IV кв. | BR18: =otchet_god & " г." -> 2016 г. | BS18: I кв. | BT18: II кв. | BU18: III кв. | BV18: IV кв. | BW18: =otchet_god & " г." -> 2016 г. | BX18: I кв. | BY18: II кв. | BZ18: III кв. | CA18: IV кв. | CB18: =otchet_god & " г." -> 2016 г. | CC18: I кв. | CD18: II кв. | CE18: III кв. | CF18: IV кв. | CG18: =otchet_god & " г." -> 2016 г.
D19: 1 | E19: 2 | F19: 3 | G19: 4 | H19: 5 | I19: 6 | J19: 7 | K19: 8 | L19: 9 | M19: 10 | N19: 11 | O19: 12 | P19: 13 | Q19: 14 | R19: 15 | S19: 16 | T19: 17 | U19: 18 | V19: 19 | W19: 20 | X19: 21 | Y19: 22 | Z19: 23 | AA19: 24 | AB19: 25 | AC19: 26 | AD19: 27 | AE19: 28 | AF19: 29 | AG19: 30 | AH19: 31 | AI19: 32 | AJ19: 33 | AK19: 34 | AL19: 35 | AM19: 36 | AN19: 37 | AO19: 38 | AP19: 39 | AQ19: 40 | AR19: 41 | AS19: 42 | AT19: 43 | AU19: 44 | AV19: 45 | AW19: 46 | AX19: 47 | AY19: 48 | AZ19: 49 | BA19: 50 | BB19: 51 | BC19: 52 | BD19: 53 | BE19: 54 | BF19: 55 | BG19: 56 | BH19: 57 | BI19: 58 | BJ19: 59 | BK19: 60 | BL19: 61 | BM19: 62 | BN19: 63 | BO19: 64 | BP19: 65 | BQ19: 66 | BR19: 67 | BS19: 68 | BT19: 69 | BU19: 70 | BV19: 71 | BW19: 72 | BX19: 73 | BY19: 74 | BZ19: 75 | CA19: 76 | CB19: 77 | CC19: 78 | CD19: 79 | CE19: 80 | CF19: 81 | CG19: 82
A20: _1.1.1.1.1
A21: _1.1.1.1.2
A22: _1.1.1.1.3
A23: _1.1.1.1.4
A24: _1.1.1.2.1
A25: _1.1.1.2.2
A26: _1.1.1.2.3
A27: _1.1.1.2.4
A28: _1.1.2.1
A29: _1.1.2.2
A30: _1.1.2.3
A31: _1.1.3
A32: _1.2.1.1.1
A33: _1.2.1.1.2
A34: _1.2.1.1.3
A35: _1.2.1.1.4
A36: _1.2.1.2.1
A37: _1.2.1.2.2
A38: _1.2.1.2.3
A39: _1.2.1.2.4
A40: _1.2.2.1
A41: _1.2.2.2
C42: Удалить | D42: =Ф.7.1!$D$99 -> 1.2.2.3.1 | E42: =Ф.7.1!$E$99 -> Модернизация оборудования трансформаторной подстанции № 685, находящейся по ул. Глинки, 13г | J42: =nerr(SUM(F42:I42)) -> 0 | O42: =nerr(SUM(K42:N42)) -> 0 | P42: 0 | Q42: 0 | R42: 0 | S42: 0 | T42: =nerr(SUM(P42:S42)) -> 0 | U42: 0 | V42: 0 | W42: 0 | X42: 0.63 | Y42: =nerr(SUM(U42:X42)) -> 0.63 | AD42: =nerr(SUM(Z42:AC42)) -> 0 | AI42: =nerr(SUM(AE42:AH42)) -> 0 | AJ42: 0 | AK42: 0 | AL42: 0 | AM42: =S42 -> 0 | AN42: =nerr(SUM(AJ42:AM42)) -> 0 | AO42: 0 | AP42: 0 | AQ42: 0 | AR42: 0 | AS42: =nerr(SUM(AO42:AR42)) -> 0 | AX42: =nerr(SUM(AT42:AW42)) -> 0 | BC42: =nerr(SUM(AY42:BB42)) -> 0 | BD42: 0 | BE42: 0 | BF42: 0 | BG42: 0 | BH42: =nerr(SUM(BD42:BG42)) -> 0 | BI42: 0 | BJ42: 0 | BK42: 0 | BL42: 0.32 | BM42: =nerr(SUM(BI42:BL42)) -> 0.32 | BR42: =nerr(SUM(BN42:BQ42)) -> 0 | BW42: =nerr(SUM(BS42:BV42)) -> 0 | BX42: 0 | BY42: 0 | BZ42: 0 | CA42: =BG42 -> 0 | CB42: =nerr(SUM(BX42:CA42)) -> 0 | CC42: 0 | CD42: 0 | CE42: 0 | CF42: 0 | CG42: =nerr(SUM(CC42:CF42)) -> 0
C43: Удалить | D43: =Ф.7.1!$D$100 -> 1.2.2.3.2 | E43: =Ф.7.1!$E$100 -> Модернизация оборудования трансформаторной подстанции № 783, находящейся по ул. Парковая, 10 а | J43: 0 | O43: 0 | P43: 0 | Q43: 0 | R43: 0 | S43: 0 | T43: 0 | U43: 0 | V43: 0 | W43: 0 | X43: 0.8 | Y43: 0.8 | AD43: 0 | AI43: 0 | AJ43: 0 | AK43: 0 | AL43: 0 | AM43: =S43 -> 0 | AN43: 0 | AO43: 0 | AP43: 0 | AQ43: 0 | AR43: 0 | AS43: 0 | AX43: 0 | BC43: 0 | BD43: 0 | BE43: 0 | BF43: 0 | BG43: 0 | BH43: 0 | BI43: 0 | BJ43: 0 | BK43: 0 | BL43: 0.64 | BM43: 0.64 | BR43: 0 | BW43: 0 | BX43: 0 | BY43: 0 | BZ43: 0 | CA43: =BG43 -> 0 | CB43: 0 | CC43: 0 | CD43: 0 | CE43: 0 | CF43: 0 | CG43: 0
C44: Удалить | D44: =Ф.7.1!$D$101 -> 1.2.2.3.3 | E44: =Ф.7.1!$E$101 -> Модернизация распределительного устройства напряжением 6 кВ в распределительной подстанции № 127, находящейся по ул. Пограничников, 7 д | J44: 0 | O44: 0 | P44: 0 | Q44: 0 | R44: 0 | S44: 0 | T44: 0 | U44: 0 | V44: 0 | W44: 0 | X44: 0 | Y44: 0 | AD44: 0 | AI44: 0 | AJ44: 0 | AK44: 0 | AL44: 0 | AM44: 0 | AN44: 0 | AO44: 0 | AP44: 0 | AQ44: 0 | AR44: 0 | AS44: 0 | AX44: 0 | BC44: 0 | BD44: 0 | BE44: 0 | BF44: 0 | BG44: 0 | BH44: 0 | BI44: 0 | BJ44: 0 | BK44: =Ф.7.2!CD101 -> 0 | BL44: =Ф.7.2!CE101 -> 0 | BM44: 0 | BR44: 0 | BW44: 0 | BX44: 0 | BY44: 0 | BZ44: 0 | CA44: 0 | CB44: 0 | CC44: 0 | CD44: 0 | CE44: 0 | CF44: 0 | CG44: 0
C45: Удалить | D45: =Ф.7.1!$D$102 -> 1.2.2.3.4 | E45: =Ф.7.1!$E$102 -> Модернизация оборудования трансформаторной подстанции № 508, находящейся по ул. Армейская, 21 г | J45: 0 | O45: 0 | P45: 0 | Q45: 0 | R45: 0 | S45: 0 | T45: 0 | U45: 0 | V45: 0 | W45: 0 | X45: 0.8 | Y45: 0.8 | AD45: 0 | AI45: 0 | AJ45: 0 | AK45: 0 | AL45: 0 | AM45: 0 | AN45: 0 | AO45: 0 | AP45: 0 | AQ45: 0 | AR45: 0 | AS45: 0 | AX45: 0 | BC45: 0 | BD45: 0 | BE45: 0 | BF45: 0 | BG45: 0 | BH45: 0 | BI45: 0 | BJ45: 0 | BK45: 0 | BL45: 0.64 | BM45: 0.64 | BR45: 0 | BW45: 0 | BX45: 0 | BY45: 0 | BZ45: 0 | CA45: 0 | CB45: 0 | CC45: 0 | CD45: 0 | CE45: 0 | CF45: 0 | CG45: 0
C46: Удалить | D46: =Ф.7.1!$D$103 -> 1.2.2.3.5 | E46: =Ф.7.1!$E$103 -> Модернизация оборудования трансформаторной подстанции № 686, находящейся по ул. Глинки, 7г | J46: =nerr(SUM(F46:I46)) -> 0 | O46: =nerr(SUM(K46:N46)) -> 0 | P46: 0 | Q46: 0 | R46: 0 | S46: 0 | T46: =nerr(SUM(P46:S46)) -> 0 | U46: 0 | V46: 0 | W46: 0 | X46: 0.63 | Y46: =nerr(SUM(U46:X46)) -> 0.63 | AD46: =nerr(SUM(Z46:AC46)) -> 0 | AI46: =nerr(SUM(AE46:AH46)) -> 0 | AJ46: 0 | AK46: 0 | AL46: 0 | AM46: 0 | AN46: =nerr(SUM(AJ46:AM46)) -> 0 | AO46: 0 | AP46: 0 | AQ46: 0 | AR46: 0 | AS46: =nerr(SUM(AO46:AR46)) -> 0 | AX46: =nerr(SUM(AT46:AW46)) -> 0 | BC46: =nerr(SUM(AY46:BB46)) -> 0 | BD46: 0 | BE46: 0 | BF46: 0 | BG46: 0 | BH46: =nerr(SUM(BD46:BG46)) -> 0 | BI46: 0 | BJ46: 0 | BK46: 0 | BL46: 0.4 | BM46: =nerr(SUM(BI46:BL46)) -> 0.4 | BR46: =nerr(SUM(BN46:BQ46)) -> 0 | BW46: =nerr(SUM(BS46:BV46)) -> 0 | BX46: 0 | BY46: 0 | BZ46: 0 | CA46: 0 | CB46: =nerr(SUM(BX46:CA46)) -> 0 | CC46: 0 | CD46: 0 | CE46: 0 | CF46: =BL46 -> 0.4 | CG46: =nerr(SUM(CC46:CF46)) -> 0.4
C47: Удалить | D47: =Ф.7.1!$D$104 -> 1.2.2.3.6 | E47: =Ф.7.1!$E$104 -> Модернизация оборудования трансформаторной подстанции № 581, находящейся по ул. Малиновского, 4г | J47: 0 | O47: 0 | P47: 0 | Q47: 0 | R47: 0 | S47: 0 | T47: 0 | U47: 0 | V47: 0 | W47: 0 | X47: 0.63 | Y47: 0.63 | AD47: 0 | AI47: 0 | AJ47: 0 | AK47: 0 | AL47: 0 | AM47: 0 | AN47: 0 | AO47: 0 | AP47: 0 | AQ47: 0 | AR47: 0 | AS47: 0 | AX47: 0 | BC47: 0 | BD47: 0 | BE47: 0 | BF47: 0 | BG47: 0 | BH47: 0 | BI47: 0 | BJ47: 0 | BK47: 0 | BL47: 0.4 | BM47: 0.4 | BR47: 0 | BW47: 0 | BX47: 0 | BY47: 0 | BZ47: 0 | CA47: 0 | CB47: 0 | CC47: 0 | CD47: 0 | CE47: 0 | CF47: =BL47 -> 0.4 | CG47: 0.4
A48: _1.2.2.3
A49: _1.2.3
A50: _1.3
A51: _1.4
A52: _1.5
A53: _1.6.1.1.1
A54: _1.6.1.1.2
A55: _1.6.1.1.3
A56: _1.6.1.1.4
A57: _1.6.1.2.1
A58: _1.6.1.2.2
A59: _1.6.1.2.3
A60: _1.6.1.2.4
A61: _1.6.2.1
A62: _1.6.2.2
A63: _1.6.2.3
A64: _1.6.3
A65: _2.1.1.1.1
A66: _2.1.1.1.2
A67: _2.1.1.1.3
A68: _2.1.1.1.4
A69: _2.1.1.2.1
A70: _2.1.1.2.2
A71: _2.1.1.2.3
A72: _2.1.1.2.4
A73: _2.1.2.1
A74: _2.1.2.2
A75: _2.1.2.3
A76: _2.1.3
A77: _2.2.1.1.1
A78: _2.2.1.1.2
A79: _2.2.1.1.3
A80: _2.2.1.1.4
A81: _2.2.1.2.1
A82: _2.2.1.2.2
A83: _2.2.1.2.3
A84: _2.2.1.2.4
A85: _2.2.2.1
A86: _2.2.2.2
A87: _2.2.2.3
A88: _2.2.3
A89: _2.3
A90: _3
D94: * План в соответствии с утвержденной инвестиционной программой.

Sheet Ф.10 (hidden)
A1: 4
C6: Список листов | F6: Приложение № 10 к Приказу Минэнерго России от 24.03.2010 № 114
F7: Утверждаю руководитель организации
F9: (подпись)
F10: "___" _____________ 20__ года
F11: М.П.
D12: Отчет о ходе реализации проектов (заполняется для наиболее значимых проектов *) (представляется ежеквартально)
D13: =org & ", Факт за " & otchet_god & " г. " & kvartal -> ООО "Красноярский жилищно-коммунальный комплекс", Факт за 2016 г. IV квартал
D15: Наименование объекта | F15: Добавить объект
D16: Местоположение объекта (субъект Российской Федерации, населенный пункт)
D17: Тип проекта
D18: Вводимая мощность (в том числе прирост)
D19: Срок ввода объекта
D20: Фактическая стадия реализации проекта на отчетную дату
D21: Проектная документация
D22: 1. Кем, когда принято решение о строительстве объекта (реквизиты документа)
D23: 2. Кем, когда разработана проектная документация (разработана/не разработана (фактическое состояние), наименование проектной организации, утверждена/не утверждена, год утверждения, реквизиты документа)
D24: 3. Прохождение проектной документацией государственной экспертизы, утверждение документации (утверждена/не утверждена, наименование ведомства, проводящего экспертизу, когда выдано заключение, реквизиты документа **)
D25: Землеотвод
D26: - наличие землеотвода (кем, когда утверждено, реквизиты документа)
D27: Исходно-разрешительная документация
D28: - наличие разрешения на строительство (кем, когда выдано, реквизиты документа)
D29: Прогнозное/проектное топливо (основное и резервное)
D30: Прогнозный объем потребления топлива
D31: Топливообеспечение
D32: Технологическое присоединение объекта к электрической сети:
D33: - заключение договоров на технологическое присоединение (с указанием даты технологического присоединения к электрическим сетям)
D34: - разработка схемы выдачи мощности
D35: - получение технических условий на технологическое присоединение
D36: - договор на реализацию СВМ и график реализации СВМ
D37: ="Сметная стоимость проекта в ценах "& otchet_god &" года" -> Сметная стоимость проекта в ценах 2016 года
D38: Документ, в соответствии с которым определена стоимость проекта
D39: Стоимость по результатам проведенных закупок с НДС, млн. руб.
D40: Объем заключенных на отчетную дату договоров по проекту, млн. руб.
D41: в том числе
D42: - по договорам подряда (в разбивке по каждому подрядчику и по договорам):
D43: ="объем заключенного договора в ценах "& otchet_god &" года" -> объем заключенного договора в ценах 2016 года
D44: % от сметной стоимости проекта
D45: оплачено по договору, млн. руб.
D46: освоено по договору, млн. руб.
D47: - по договорам поставки основного оборудования (в разбивке по каждому поставщику и по договорам):
D48: ="объем заключенного договора в ценах "& otchet_god &" года" -> объем заключенного договора в ценах 2016 года
D49: % от сметной стоимости проекта
D50: оплачено по договору, млн. руб.
D51: освоено по договору, млн. руб.
D52: - по прочим договорам (в разбивке по каждому контрагенту и по договорам)
D53: ="объем заключенного договора в ценах "& otchet_god &" года" -> объем заключенного договора в ценах 2016 года
D54: % от сметной стоимости проекта
D55: оплачено по договору, млн. руб.
D56: освоено по договору, млн. руб.
D57: % законтрактованности объекта непосредственно с изготовителями и поставщиками
D58: в том числе
D59: - СМР, %
D60: - поставка основного оборудования, %
D61: - разработка проектной документации и рабочей документации, %
D62: % оплаты по объекту (предоплата)
D63: всего оплачено по объекту
D64: % освоения по объекту за отчетный период
D65: всего оплачено по объекту
D66: Участники реализации инвестиционного проекта:
D67: - заказчик-застройщик
D68: - проектно-изыскательские организации
D69: - технические агенты
D70: - подрядчики
D71: - поставщики основного оборудования
D72: Перечень субподрядных организаций, участвующих в строительстве объекта
D73: Количество строительно-монтажного персонала на площадке строительства энергообъекта
D74: в том числе
D75: - строительный персонал
D76: - монтажный персонал
D77: Основное оборудование
D78: График поставки основного оборудования
D79: - дата поставки
D80: - задержки в поставке
D81: - причины задержек
D82: Фактическое состояние реализации инвестиционного проекта в срок
D83: Факты и события, влияющие на ход реализации проекта, проблемные вопросы:
D84: - выявленные нарушения договоров подряда,
D85: - рекламации к заводам - изготовителям и поставщикам,
D86: - предписания надзорных органов,
D87: - дефицит источников финансирования и др.,
D88: - другое (расшифровать)
C90: * | D90: Если выполняется любой из нижеперечисленных критериев:
D91: 1. Проекты, финансируемые полностью или частично за счет средств федерального бюджета, и/или включенные в федеральные целевые программы.
D92: 2. Объекты выдачи мощности ТЭС, ГЭС, АЭС.
D93: 3. Генерирующие объекты мощностью свыше 100 МВт.
D94: 4. Проекты, имеющие федеральное значение (объекты энергоснабжения Олимпиады в г. Сочи, саммита АТЭС в г. Владивосток, ВСТО и др.).
D95: 5. Проекты сметной стоимостью свыше 3 млрд. руб. (в текущих ценах с НДС).
D96: 6. Объекты, предусмотренные Генеральной схемой размещения объектов электроэнергетики до 2020 года.
C97: ** | D97: Копии положительного заключения Госэкспертизы по ПСД, сводного сметного расчета необходимо представить в Минэнерго России.

Sheet Ф.11.1
A1: 2
C6: Список листов | M6: Приложение № 11.1 к Приказу Минэнерго России от 24.03.2010 № 114
M7: Утверждаю руководитель организации
M9: (подпись)
M10: "___" _____________ 20__ года
M11: М.П.
D12: Отчет об исполнении сетевых графиков строительства проектов (представляется ежеквартально)
D13: =org & ", Факт за " & otchet_god & " г. " & kvartal -> ООО "Красноярский жилищно-коммунальный комплекс", Факт за 2016 г. IV квартал
A15: _1.1.1.1.1
A16: _1.1.1.1.2
A17: _1.1.1.1.3
A18: _1.1.1.1.4
A19: _1.1.1.2.1
A20: _1.1.1.2.2
A21: _1.1.1.2.3
A22: _1.1.1.2.4
A23: _1.1.2.1
A24: _1.1.2.2
A25: _1.1.2.3
A26: _1.1.3
A27: _1.2.1.1.1
A28: _1.2.1.1.2
A29: _1.2.1.1.3
A30: _1.2.1.1.4
A31: _1.2.1.2.1
A32: _1.2.1.2.2
A33: _1.2.1.2.3
A34: _1.2.1.2.4
A35: _1.2.2.1
A36: _1.2.2.2
D37: Наименование инвестиционного проекта | F37: =Ф.7.1!$E$99 -> Модернизация оборудования трансформаторной подстанции № 685, находящейся по ул. Глинки, 13г
D39: по состоянию на | F39: 24.01.2017
D41: № пункта укрупненного сетевого графика | E41: Наименование этапов основных работ (с учетом подготовительного периода до начала строительства) по общему сетевому графику* | F41: Сроки выполнения задач по укрупненному | J41: Процент исполнения работ за весь период (%) | K41: Процент выполнения за отчетный период (%) | L41: Причины невыполнения | M41: Предложения по корректирующим мероприятиям по устранению отставания
F42: План | H42: Факт
F43: Начало | G43: Окончание | H43: Начало | I43: Окончание
D44: 1 | E44: 2 | F44: 3 | G44: 4 | H44: 5 | I44: 6 | J44: 7 | K44: 8 | L44: 9 | M44: 10
C45: Удалить | D45: 2 | E45: Организационный этап
C46: Удалить | D46: 2.1 | E46: Заключение договора подряда (допсоглашения к договору) | F46: 2016-10-01 | G46: 2016-12-31 | J46: 0 | K46: 0
C47: Удалить | D47: 3 | E47: Сетевое строительство (реконструкция) и пусконаладочные работы
C48: Удалить | D48: 3.2 | E48: Поставка основного оборудования | F48: 2016-10-01 | G48: 2016-12-31 | J48: 0 | K48: 0
C49: Удалить | D49: 3.3 | E49: Монтаж основного оборудования | F49: 2016-10-01 | G49: 2016-12-31 | J49: 0 | K49: 0
C50: Удалить | D50: 3.4 | E50: Пусконаладочные работы | F50: 2016-10-01 | G50: 2016-12-31 | J50: 0 | K50: 0
E51: Добавить
D53: Наименование инвестиционного проекта | F53: =Ф.7.1!$E$100 -> Модернизация оборудования трансформаторной подстанции № 783, находящейся по ул. Парковая, 10 а
D55: по состоянию на | F55: 24.01.2017
D57: № пункта укрупненного сетевого графика | E57: Наименование этапов основных работ (с учетом подготовительного периода до начала строительства) по общему сетевому графику* | F57: Сроки выполнения задач по укрупненному | J57: Процент исполнения работ за весь период (%) | K57: Процент выполнения за отчетный период (%) | L57: Причины невыполнения | M57: Предложения по корректирующим мероприятиям по устранению отставания
F58: План | H58: Факт
F59: Начало | G59: Окончание | H59: Начало | I59: Окончание
D60: 1 | E60: 2 | F60: 3 | G60: 4 | H60: 5 | I60: 6 | J60: 7 | K60: 8 | L60: 9 | M60: 10
C61: Удалить | D61: 2 | E61: Организационный этап
C62: Удалить | D62: 2.1 | E62: Заключение договора подряда (допсоглашения к договору) | F62: 2016-10-01 | G62: 2016-12-31 | J62: 0 | K62: 0
C63: Удалить | D63: 3 | E63: Сетевое строительство (реконструкция) и пусконаладочные работы
C64: Удалить | D64: 3.2 | E64: Поставка основного оборудования | F64: 2016-10-01 | G64: 2016-12-31 | J64: 0 | K64: 0
C65: Удалить | D65: 3.3 | E65: Монтаж основного оборудования | F65: 2016-10-01 | G65: 2016-12-31 | J65: 0 | K65: 0
C66: Удалить | D66: 3.4 | E66: Пусконаладочные работы | F66: 2016-10-01 | G66: 2016-12-31 | J66: 0 | K66: 0
E67: Добавить
D69: Наименование инвестиционного проекта | F69: =Ф.7.1!$E$101 -> Модернизация распределительного устройства напряжением 6 кВ в распределительной подстанции № 127, находящейся по ул. Пограничников, 7 д
D71: по состоянию на | F71: 24.01.2017
D73: № пункта укрупненного сетевого графика | E73: Наименование этапов основных работ (с учетом подготовительного периода до начала строительства) по общему сетевому графику* | F73: Сроки выполнения задач по укрупненному | J73: Процент исполнения работ за весь период (%) | K73: Процент выполнения за отчетный период (%) | L73: Причины невыполнения | M73: Предложения по корректирующим мероприятиям по устранению отставания
F74: План | H74: Факт
F75: Начало | G75: Окончание | H75: Начало | I75: Окончание
D76: 1 | E76: 2 | F76: 3 | G76: 4 | H76: 5 | I76: 6 | J76: 7 | K76: 8 | L76: 9 | M76: 10
C77: Удалить | D77: 2 | E77: Организационный этап
C78: Удалить | D78: 2.1 | E78: Заключение договора подряда (допсоглашения к договору) | F78: 2016-10-01 | G78: 2016-12-31 | J78: 0 | K78: 0
C79: Удалить | D79: 3 | E79: Сетевое строительство (реконструкция) и пусконаладочные работы
C80: Удалить | D80: 3.2 | E80: Поставка основного оборудования | F80: 2016-10-01 | G80: 2016-12-31 | J80: 0 | K80: 0
C81: Удалить | D81: 3.3 | E81: Монтаж основного оборудования | F81: 2016-10-01 | G81: 2016-12-31 | J81: 0 | K81: 0
C82: Удалить | D82: 3.4 | E82: Пусконаладочные работы | F82: 2016-10-01 | G82: 2016-12-31 | J82: 0 | K82: 0
E83: Добавить
D85: Наименование инвестиционного проекта | F85: =Ф.7.1!$E$102 -> Модернизация оборудования трансформаторной подстанции № 508, находящейся по ул. Армейская, 21 г
D87: по состоянию на | F87: 24.01.2017
D89: № пункта укрупненного сетевого графика | E89: Наименование этапов основных работ (с учетом подготовительного периода до начала строительства) по общему сетевому графику* | F89: Сроки выполнения задач по укрупненному | J89: Процент исполнения работ за весь период (%) | K89: Процент выполнения за отчетный период (%) | L89: Причины невыполнения | M89: Предложения по корректирующим мероприятиям по устранению отставания
F90: План | H90: Факт
F91: Начало | G91: Окончание | H91: Начало | I91: Окончание
D92: 1 | E92: 2 | F92: 3 | G92: 4 | H92: 5 | I92: 6 | J92: 7 | K92: 8 | L92: 9 | M92: 10
C93: Удалить | D93: 2 | E93: Организационный этап
C94: Удалить | D94: 2.1 | E94: Заключение договора подряда (допсоглашения к договору) | F94: 2016-10-01 | G94: 2016-12-31 | J94: 0 | K94: 0
C95: Удалить | D95: 3 | E95: Сетевое строительство (реконструкция) и пусконаладочные работы
C96: Удалить | D96: 3.2 | E96: Поставка основного оборудования | F96: 2016-10-01 | G96: 2016-12-31 | J96: 0 | K96: 0
C97: Удалить | D97: 3.3 | E97: Монтаж основного оборудования | F97: 2016-10-01 | G97: 2016-12-31 | J97: 0 | K97: 0
C98: Удалить | D98: 3.4 | E98: Пусконаладочные работы | F98: 2016-10-01 | G98: 2016-12-31 | J98: 0 | K98: 0
E99: Добавить
D101: Наименование инвестиционного проекта | F101: =Ф.7.1!$E$103 -> Модернизация оборудования трансформаторной подстанции № 686, находящейся по ул. Глинки, 7г
D103: по состоянию на | F103: 24.01.2017
D105: № пункта укрупненного сетевого графика | E105: Наименование этапов основных работ (с учетом подготовительного периода до начала строительства) по общему сетевому графику* | F105: Сроки выполнения задач по укрупненному | J105: Процент исполнения работ за весь период (%) | K105: Процент выполнения за отчетный период (%) | L105: Причины невыполнения | M105: Предложения по корректирующим мероприятиям по устранению отставания
F106: План | H106: Факт
F107: Начало | G107: Окончание | H107: Начало | I107: Окончание
D108: 1 | E108: 2 | F108: 3 | G108: 4 | H108: 5 | I108: 6 | J108: 7 | K108: 8 | L108: 9 | M108: 10
C109: Удалить | D109: 2 | E109: Организационный этап
C110: Удалить | D110: 2.1 | E110: Заключение договора подряда (допсоглашения к договору) | F110: 2016-10-01 | G110: 2016-12-31 | J110: 0 | K110: 0
C111: Удалить | D111: 3 | E111: Сетевое строительство (реконструкция) и пусконаладочные работы
C112: Удалить | D112: 3.2 | E112: Поставка основного оборудования | F112: 2016-10-01 | G112: 2016-12-31 | J112: 0 | K112: 0
C113: Удалить | D113: 3.3 | E113: Монтаж основного оборудования | F113: 2016-10-01 | G113: 2016-12-31 | J113: 0 | K113: 0
C114: Удалить | D114: 3.4 | E114: Пусконаладочные работы | F114: 2016-10-01 | G114: 2016-12-31 | J114: 0 | K114: 0
E115: Добавить
D117: Наименование инвестиционного проекта | F117: =Ф.7.1!$E$104 -> Модернизация оборудования трансформаторной подстанции № 581, находящейся по ул. Малиновского, 4г
D119: по состоянию на | F119: 24.01.2017
D121: № пункта укрупненного сетевого графика | E121: Наименование этапов основных работ (с учетом подготовительного периода до начала строительства) по общему сетевому графику* | F121: Сроки выполнения задач по укрупненному | J121: Процент исполнения работ за весь период (%) | K121: Процент выполнения за отчетный период (%) | L121: Причины невыполнения | M121: Предложения по корректирующим мероприятиям по устранению отставания
F122: План | H122: Факт
F123: Начало | G123: Окончание | H123: Начало | I123: Окончание
D124: 1 | E124: 2 | F124: 3 | G124: 4 | H124: 5 | I124: 6 | J124: 7 | K124: 8 | L124: 9 | M124: 10
C125: Удалить | D125: 2 | E125: Организационный этап
C126: Удалить | D126: 2.1 | E126: Заключение договора подряда (допсоглашения к договору) | F126: 2016-10-01 | G126: 2016-12-31 | J126: 0 | K126: 0
C127: Удалить | D127: 3 | E127: Сетевое строительство (реконструкция) и пусконаладочные работы
C128: Удалить | D128: 3.2 | E128: Поставка основного оборудования | F128: 2016-10-01 | G128: 2016-12-31 | J128: 0 | K128: 0
C129: Удалить | D129: 3.3 | E129: Монтаж основного оборудования | F129: 2016-10-01 | G129: 2016-12-31 | J129: 0 | K129: 0
C130: Удалить | D130: 3.4 | E130: Пусконаладочные работы | F130: 2016-10-01 | G130: 2016-12-31 | J130: 0 | K130: 0
E131: Добавить
A133: _1.2.2.3
A134: _1.2.3
A135: _1.3
A136: _1.4
A137: _1.5
A138: _1.6.1.1.1
A139: _1.6.1.1.2
A140: _1.6.1.1.3
A141: _1.6.1.1.4
A142: _1.6.1.2.1
A143: _1.6.1.2.2
A144: _1.6.1.2.3
A145: _1.6.1.2.4
A146: _1.6.2.1
A147: _1.6.2.2
A148: _1.6.2.3
A149: _1.6.3
A150: _2.1.1.1.1
A151: _2.1.1.1.2
A152: _2.1.1.1.3
A153: _2.1.1.1.4
A154: _2.1.1.2.1
A155: _2.1.1.2.2
A156: _2.1.1.2.3
A157: _2.1.1.2.4
A158: _2.1.2.1
A159: _2.1.2.2
A160: _2.1.2.3
A161: _2.1.3
A162: _2.2.1.1.1
A163: _2.2.1.1.2
A164: _2.2.1.1.3
A165: _2.2.1.1.4
A166: _2.2.1.2.1
A167: _2.2.1.2.2
A168: _2.2.1.2.3
A169: _2.2.1.2.4
A170: _2.2.2.1
A171: _2.2.2.2
A172: _2.2.2.3
A173: _2.2.3
A174: _2.3
A175: _3

Sheet Ф.11.2
A1: 2
C6: Список листов | G6: Приложение № 11.2 к Приказу Минэнерго России от 24.03.2010 № 114
G7: Утверждаю руководитель организации
G9: (подпись)
G10: "___" _____________ 20__ года
G11: М.П.
D12: I. Контрольные этапы реализации инвестиционного проекта для генерирующих компаний (представляется ежеквартально)
D13: =org & ", Факт за " & otchet_god & " г. " & kvartal -> ООО "Красноярский жилищно-коммунальный комплекс", Факт за 2016 г. IV квартал
D15: № п/п | E15: Наименование | F15: Тип
D16: 1 | E16: 2 | F16: 3
D17: 1 | E17: Предпроектный этап
D18: 1.1 | E18: Выбор площадки строительства | F18: событие
D19: 1.2 | E19: Проведение инженерных изысканий на выбранной площадке строительства | F19: работа
D20: 2 | E20: Проектный этап
D21: 2.1 | E21: Заключение договора на разработку ТЭО | F21: событие
D22: 2.2 | E22: Заключение договора на разработку рабочего проекта | F22: работа
D23: 2.3 | E23: Разработка и утверждение ТЭО | F23: событие
D24: 2.4 | E24: Разработка рабочего проекта | F24: работа
D25: 2.5 | E25: Получение положительного заключения государственной экспертизы на ТЭО | F25: событие
D26: 2.6 | E26: Получение разрешения на строительство | F26: событие
D27: 3 | E27: Организационный этап
D28: 3.1 | E28: Заключение договора с генеральным подрядчиком (EPC, EPCM) или договоров с основными подрядчиками | F28: событие
D29: 3.2 | E29: Получение правоустанавливающих документов на земельный участк под строительство | F29: событие
D30: 3.3 | E30: Заключение договоров на поставку основного оборудования | F30: событие
D31: 3.3.1 | E31: График поставки основного оборудования на объект | F31: событие
D32: 4 | E32: Строительные работы
D33: 4.1 | E33: Подготовка площадки строительства | F33: работа
D34: 4.2 | E34: Строительство основных сооружений (главного корпуса, гидротехнических сооружений, объектов топливного хозяйства, технического водоснабжения и др.) | F34: работа
D35: 4.3 | E35: Сдача основных сооружений под монтаж оборудования | F35: событие
D36: 4.4 | E36: Монтаж и ввод в работу грузоподъёмных механизмов для монтажа основного оборудования | F36: событие
D37: 4.5 | E37: Монтаж основного оборудования и трубопроводов | F37: работа
D38: 4.6 | E38: Монтаж электротехнического оборудования и КиП | F38: работа
D39: 5 | E39: Реализация схемы выдачи мощности (в объеме обязательств ГК)
D40: 5.1 | E40: Заявка в сетевую компанию на технологическое присоединение | F40: событие
D41: 5.2 | E41: Заключение договора с сетевой компанией на ТП. Получение и согласование ТУ и ТП | F41: событие
D42: 5.3 | E42: Разработка и согласование предпроектной внестадийной работы "Схема выдачи мощности" | F42: работа
D43: 5.4 | E43: Заключение договора на реализацию схемы выдачи мощности с согласованием графика строительства | F43: событие
D44: 5.5 | E44: Разработка рабочей документации сетевого строительства ГК (если таковое требуется для реализации СВМ) | F44: работа
D45: 5.6 | E45: Реализация сетевого строительства ГК (если таковое требуется для реализации СВМ) | F45: работа
D46: 6 | E46: Испытания и ввод в эксплуатацию
D47: 6.1 | E47: Индивидуальные испытания оборудования и функциональные испытания отдельных систем | F47: работа
D48: 6.2 | E48: Комплексное опробование оборудования | F48: работа
D49: 6.3 | E49: Готовность оборудования (ОРУ, ЗРУ) для технологического присоединения к электрическим сетям | F49: событие
D50: 6.4 | E50: Ввод объекта в эксплуатацию (получение разрешения на ввод объекта в эксплуатацию и подписание акта приемочной комиссии о приемке в эксплуатацию законченного строительством объекта). | F50: событие
D53: II. Контрольные этапы реализации инвестиционного проекта для сетевых компаний
D55: № п/п | E55: Наименование | F55: Тип
D56: 1 | E56: 2 | F56: 3
D57: 1 | E57: Предпроектный и проектный этап
D58: 1.1 | E58: Получение заявки на ТП | F58: событие
D59: 1.2 | E59: Разработка и выдача ТУ на ТП | F59: событие
D60: 1.3 | E60: Заключение договора на разработку проектной документации | F60: событие
D61: 1.4 | E61: Получение положительного заключения государственной экспертизы на проектную документацию | F61: событие
D62: 1.5 | E62: Утверждение проектной документации | F62: событие
D63: 1.6 | E63: Разработка рабочей документации | F63: работа
D64: 2 | E64: Организационный этап
D65: 2.1 | E65: Заключение договора подряда (допсоглашения к договору) | F65: событие
D66: 2.2 | E66: Получение правоустанавливающих документов для выделения земельного участка под строительство | F66: событие
D67: 2.3 | E67: Получение разрешительной документации для реализации СВМ | F67: событие
D68: 3 | E68: Сетевое строительство (реконструкция) и пусконаладочные работы
D69: 3.1 | E69: Подготовка площадки строительства для подстанций, трассы – для ЛЭП | F69: работа
D70: 3.2 | E70: Поставка основного оборудования | F70: событие
D71: 3.3 | E71: Монтаж основного оборудования | F71: работа
D72: 3.4 | E72: Пусконаладочные работы | F72: работа
D73: 3.5 | E73: Завершение строительства | F73: событие
D74: 4 | E74: Испытания и ввод в эксплуатацию
D75: 4.1 | E75: Комплексное опробование оборудования | F75: работа
D76: 4.2 | E76: Оформление (подписание) актов об осуществлении технологического присоединения к электрическим сетям | F76: событие
D77: 4.3 | E77: Получение разрешения на ввод объекта в эксплуатацию | F77: событие
D78: 4.4 | E78: Ввод в эксплуатацию объекта сетевого строительства | F78: событие

Sheet Ф.12
A1: 2
C6: Список листов | G6: Приложение № 12 к Приказу Минэнерго России от 24.03.2010 № 114
G7: Утверждаю руководитель организации
G9: (подпись)
G10: "___" _____________ 20__ года
G11: М.П.
D12: Форма представления показателей финансовой отчетности (представляется ежеквартально)
D13: =org & ", Факт за " & otchet_god & " г. " & kvartal -> ООО "Красноярский жилищно-коммунальный комплекс", Факт за 2016 г. IV квартал
E15: ="Финансовые показатели за отчетный период ("&kvartal & " квартал "& otchet_god & " года/ "&otchet_god&" год)" -> Финансовые показатели за отчетный период (IV квартал квартал 2016 года/ 2016 год)
D16: № п/п | E16: Наименование показателя | F16: на конец отчетного квартала/за отчетный квартал | G16: ="на конец "& otchet_god-1 &" года/за "&otchet_god-1&" год" -> на конец 2015 года/за 2015 год
E17: место учета
D18: 1 | E18: 2 | F18: 3 | G18: 4
D19: 1 | E19: Выручка | F19: 205.06428 | G19: 243.37
D20: 2 | E20: Чистая прибыль | F20: 62.317 | G20: 113.34
D21: 3 | E21: Направления распределения чистой прибыли: | F21: 62.317 | G21: 113.34
D22: 3.1 | E22: дивиденды
D23: 3.2 | E23: другое (расшифровать) | F23: =nerr(SUM(F24:F26)-F24) -> 62.317 | G23: =nerr(SUM(G24:G26)-G24) -> 113.34
D24: 3.2.0
C25: Удалить | D25: 3.2.1 | E25: капитальные вложения | F25: 62.317 | G25: 113.34
E26: Добавить
D27: 4 | E27: EBITDA | F27: 87.624 | G27: 145.96
D28: 5 | E28: Дебиторская задолженность, в т.ч.: | G28: 0.04
D29: 5.1 | E29: покупатели и заказчики | G29: 0.04
D30: 5.2 | E30: авансы выданные
D31: 6 | E31: Собственный капитал
D32: 7 | E32: * Заемный капитал (долгосрочные обязательства), в т.ч.: | F32: =nerr(SUM(F33:F36)) -> 0 | G32: =nerr(SUM(G33:G36)) -> 0
D33: 7.1 | E33: кредиты
D34: 7.2 | E34: облигационные займы
D35: 7.3 | E35: займы организаций
D36: 7.4 | E36: прочее
D37: 8 | E37: Краткосрочные обязательства, в т.ч.: | F37: =nerr(F38+F39) -> 0 | G37: =nerr(G38+G39) -> 0
D38: 8.1 | E38: кредиты и займы*
D39: 8.2 | E39: кредиторская задолженность, в т.ч.: | F39: =nerr(SUM(F40:F42)) -> 0 | G39: =nerr(SUM(G40:G42)) -> 0
D40: 8.2.1 | E40: по строительству
D41: 8.2.2 | E41: по ремонтам
D42: 8.2.3 | E42: по поставкам топлива
D43: 9 | E43: Сумма процентов, выплаченных по кредитам и займам
E44: Оценка обеспеченности инвестиционных программ
D45: 1 | E45: Всего потребность в финансировании инвестиционной программы | F45: 29.46 | G45: 18.58
D46: 2 | E46: Профинансировано на отчетную дату | F46: 0 | G46: 18.58
D47: 3 | E47: Обеспеченность источниками финансирования | F47: 62.317 | G47: 113.34
D48: 4 | E48: Дефицит финансирования
E49: Оценка кредитного потенциала
D50: 1 | E50: Собственная оценка кредитного потенциала: | F50: 150 | G50: 450
D51: 1.1 | E51: ="на "& otchet_god&" г." -> на 2016 г. | F51: 150 | G51: 450
D52: 1.2 | E52: ="на период " &otchet_god&" - " &otchet_god+1&" гг." -> на период 2016 - 2017 гг.
D53: 2 | E53: Пояснения по расчету кредитного потенциала
C55: * | E55: По кредитам и займам необходимо указать сумму открытых кредитных линий и сумму реально выбранных средств.

Sheet Ф.13
A1: 2
C7: Список листов | M7: Приложение № 13 к Приказу Минэнерго России от 24.03.2010 № 114
M8: Утверждаю руководитель организации
M10: (подпись)
M11: "___" _____________ 20__ года
M12: М.П.
D13: Отчет о техническом состоянии объекта (представляется ежеквартально) | P13: `
D14: =org & ", Факт за " & otchet_god & " г. " & kvartal -> ООО "Красноярский жилищно-коммунальный комплекс", Факт за 2016 г. IV квартал
D16: № п/п | E16: Наименование направления/ проекта инвестиционной программы | F16: Технические характеристики | I16: Сроки реализации проекта | K16: Наличие исходно-разрешительной документации
F17: Мощность, МВт, МВА | G17: Выработка, млн. кВт/ч | H17: Длина ВЛ, км | I17: Год начала строительства | J17: Год ввода в эксплуатацию | K17: утвержденная проектно-сметная документация (+; -) | L17: заключение Главгос- экспертизы России (+; -) | M17: оформленный в соответствии с законодательством землеотвод (+; -) | N17: разрешение на строительство (+; -)
D18: 1 | E18: 2 | F18: 3 | G18: 4 | H18: 5 | I18: 6 | J18: 7 | K18: 8 | L18: 9 | M18: 10 | N18: 11
E19: ВСЕГО
D20: 1 | E20: Техническое перевооружение и реконструкция
C21: + | D21: 1.1 | E21: Реконструкция
C22: + | D22: 1.1.1 | E22: Электрические линии
C23: - | D23: 1.1.1.1 | E23: Воздушные линии
C24: + | D24: 1.1.1.1.1 | E24: ВЛЭП 110-220 кВ (ВН)
D25: 1.1.1.1.1.0
C27: + | D27: 1.1.1.1.2 | E27: ВЛЭП 35 кВ (СН1)
D28: 1.1.1.1.2.0
C30: - | D30: 1.1.1.1.3 | E30: ВЛЭП 1-20 кВ (СН2)
D31: 1.1.1.1.3.0
C33: + | D33: 1.1.1.1.4 | E33: ВЛЭП 0,4 кВ (НН)
D34: 1.1.1.1.4.0
C36: - | D36: 1.1.1.2 | E36: Кабельные линии
C37: + | D37: 1.1.1.2.1 | E37: КЛЭП 110 кВ (ВН)
D38: 1.1.1.2.1.0
C40: + | D40: 1.1.1.2.2 | E40: КЛЭП 20-35 кВ (СН1)
D41: 1.1.1.2.2.0
C43: - | D43: 1.1.1.2.3 | E43: КЛЭП 3-10 кВ (СН2)
D44: 1.1.1.2.3.0
C46: + | D46: 1.1.1.2.4 | E46: КЛЭП до 1 кВ (НН)
D47: 1.1.1.2.4.0
C49: - | D49: 1.1.2 | E49: Подстанции
C50: - | D50: 1.1.2.1 | E50: Уровень входящего напряжения ВН
D51: 1.1.2.1.0
C53: + | D53: 1.1.2.2 | E53: Уровень входящего напряжения СН1
D54: 1.1.2.2.0
C56: + | D56: 1.1.2.3 | E56: Уровень входящего напряжения СН2
D57: 1.1.2.3.0
C59: + | D59: 1.1.3 | E59: Прочие электросетевые объекты
D60: 1.1.3.0
C62: - | D62: 1.2 | E62: Энергосбережение и повышение энергетической эффективности
C63: + | D63: 1.2.1 | E63: Электрические линии
C64: - | D64: 1.2.1.1 | E64: Воздушные линии
C65: + | D65: 1.2.1.1.1 | E65: ВЛЭП 110-220 кВ (ВН)
D66: 1.2.1.1.1.0
C68: + | D68: 1.2.1.1.2 | E68: ВЛЭП 35 кВ (СН1)
D69: 1.2.1.1.2.0
C71: - | D71: 1.2.1.1.3 | E71: ВЛЭП 1-20 кВ (СН2)
D72: 1.2.1.1.3.0
C74: + | D74: 1.2.1.1.4 | E74: ВЛЭП 0,4 кВ (НН)
D75: 1.2.1.1.4.0
C77: - | D77: 1.2.1.2 | E77: Кабельные линии
C78: + | D78: 1.2.1.2.1 | E78: КЛЭП 110 кВ (ВН)
D79: 1.2.1.2.1.0
C81: + | D81: 1.2.1.2.2 | E81: КЛЭП 20-35 кВ (СН1)
D82: 1.2.1.2.2.0
C84: - | D84: 1.2.1.2.3 | E84: КЛЭП 3-10 кВ (СН2)
D85: 1.2.1.2.3.0
C87: + | D87: 1.2.1.2.4 | E87: КЛЭП до 1 кВ (НН)
D88: 1.2.1.2.4.0
C90: - | D90: 1.2.2 | E90: Подстанции
C91: - | D91: 1.2.2.1 | E91: Уровень входящего напряжения ВН
D92: 1.2.2.1.0
C94: + | D94: 1.2.2.2 | E94: Уровень входящего напряжения СН1
D95: 1.2.2.2.0
C97: - | D97: 1.2.2.3 | E97: Уровень входящего напряжения СН2
D98: 1.2.2.3.0
D99: 1.2.2.3.1 | E99: =Ф.7.1!$E$99 -> Модернизация оборудования трансформаторной подстанции № 685, находящейся по ул. Глинки, 13г | F99: 0 | K99: -
D100: 1.2.2.3.2 | E100: =Ф.7.1!$E$100 -> Модернизация оборудования трансформаторной подстанции № 783, находящейся по ул. Парковая, 10 а | F100: 0 | K100: -
D101: 1.2.2.3.3 | E101: =Ф.7.1!$E$101 -> Модернизация распределительного устройства напряжением 6 кВ в распределительной подстанции № 127, находящейся по ул. Пограничников, 7 д | F101: 0 | K101: -
D102: 1.2.2.3.4 | E102: =Ф.7.1!$E$102 -> Модернизация оборудования трансформаторной подстанции № 508, находящейся по ул. Армейская, 21 г | F102: 0 | K102: -
D103: 1.2.2.3.5 | E103: =Ф.7.1!$E$103 -> Модернизация оборудования трансформаторной подстанции № 686, находящейся по ул. Глинки, 7г | F103: =Ф.9!AR46*0.89 -> 0 | K103: -
D104: 1.2.2.3.6 | E104: =Ф.7.1!$E$104 -> Модернизация оборудования трансформаторной подстанции № 581, находящейся по ул. Малиновского, 4г | F104: =Ф.9!AR47*0.89 -> 0 | K104: -
C106: - | D106: 1.2.3 | E106: Прочие электросетевые объекты
D107: 1.2.3.0
C109: + | D109: 1.3 | E109: Создание систем противоаварийной и режимной автоматики
D110: 1.3.0
C112: + | D112: 1.4 | E112: Создание систем телемеханики и связи
D113: 1.4.0
C115: + | D115: 1.5 | E115: Установка устройств регулирования напряжения и компенсации реактивной мощности
D116: 1.5.0
C118: + | D118: 1.6 | E118: Исполнение договоров технологического присоединения
C119: + | D119: 1.6.1 | E119: Электрические линии
C120: + | D120: 1.6.1.1 | E120: Воздушные линии
C121: + | D121: 1.6.1.1.1 | E121: ВЛЭП 110-220 кВ (ВН)
D122: 1.6.1.1.1.0
C124: + | D124: 1.6.1.1.2 | E124: ВЛЭП 35 кВ (СН1)
D125: 1.6.1.1.2.0
C127: + | D127: 1.6.1.1.3 | E127: ВЛЭП 1-20 кВ (СН2)
D128: 1.6.1.1.3.0
C130: + | D130: 1.6.1.1.4 | E130: ВЛЭП 0,4 кВ (НН)
D131: 1.6.1.1.4.0
C133: + | D133: 1.6.1.2 | E133: Кабельные линии
C134: + | D134: 1.6.1.2.1 | E134: КЛЭП 110 кВ (ВН)
D135: 1.6.1.2.1.0
C137: + | D137: 1.6.1.2.2 | E137: КЛЭП 20-35 кВ (СН1)
D138: 1.6.1.2.2.0
C140: + | D140: 1.6.1.2.3 | E140: КЛЭП 3-10 кВ (СН2)
D141: 1.6.1.2.3.0
C143: + | D143: 1.6.1.2.4 | E143: КЛЭП до 1 кВ (НН)
D144: 1.6.1.2.4.0
C146: + | D146: 1.6.2 | E146: Подстанции
C147: + | D147: 1.6.2.1 | E147: Уровень входящего напряжения ВН
D148: 1.6.2.1.0
C150: + | D150: 1.6.2.2 | E150: Уровень входящего напряжения СН1
D151: 1.6.2.2.0
C153: + | D153: 1.6.2.3 | E153: Уровень входящего напряжения СН2
D154: 1.6.2.3.0
C156: + | D156: 1.6.3 | E156: Прочие электросетевые объекты
D157: 1.6.3.0
D159: 2 | E159: Новое строительство
C160: + | D160: 2.1 | E160: Энергосбережение и повышение энергетической эффективности
C161: + | D161: 2.1.1 | E161: Электрические линии
C162: + | D162: 2.1.1.1 | E162: Воздушные линии
C163: + | D163: 2.1.1.1.1 | E163: ВЛЭП 110-220 кВ (ВН)
D164: 2.1.1.1.1.0
C166: + | D166: 2.1.1.1.2 | E166: ВЛЭП 35 кВ (СН1)
D167: 2.1.1.1.2.0
C169: + | D169: 2.1.1.1.3 | E169: ВЛЭП 1-20 кВ (СН2)
D170: 2.1.1.1.3.0
C172: + | D172: 2.1.1.1.4 | E172: ВЛЭП 0,4 кВ (НН)
D173: 2.1.1.1.4.0
C175: + | D175: 2.1.1.2 | E175: Кабельные линии
C176: + | D176: 2.1.1.2.1 | E176: КЛЭП 110 кВ (ВН)
D177: 2.1.1.2.1.0
C179: + | D179: 2.1.1.2.2 | E179: КЛЭП 20-35 кВ (СН1)
D180: 2.1.1.2.2.0
C182: + | D182: 2.1.1.2.3 | E182: КЛЭП 3-10 кВ (СН2)
D183: 2.1.1.2.3.0
C185: + | D185: 2.1.1.2.4 | E185: КЛЭП до 1 кВ (НН)
D186: 2.1.1.2.4.0
C188: + | D188: 2.1.2 | E188: Подстанции
C189: + | D189: 2.1.2.1 | E189: Уровень входящего напряжения ВН
D190: 2.1.2.1.0
C192: + | D192: 2.1.2.2 | E192: Уровень входящего напряжения СН1
D193: 2.1.2.2.0
C195: + | D195: 2.1.2.3 | E195: Уровень входящего напряжения СН2
D196: 2.1.2.3.0
C198: + | D198: 2.1.3 | E198: Прочие электросетевые объекты
D199: 2.1.3.0
C201: + | D201: 2.2 | E201: Исполнение договоров технологического присоединения
C202: + | D202: 2.2.1 | E202: Электрические линии
C203: + | D203: 2.2.1.1 | E203: Воздушные линии
C204: + | D204: 2.2.1.1.1 | E204: ВЛЭП 110-220 кВ (ВН)
D205: 2.2.1.1.1.0
C207: + | D207: 2.2.1.1.2 | E207: ВЛЭП 35 кВ (СН1)
D208: 2.2.1.1.2.0
C210: + | D210: 2.2.1.1.3 | E210: ВЛЭП 1-20 кВ (СН2)
D211: 2.2.1.1.3.0
C213: + | D213: 2.2.1.1.4 | E213: ВЛЭП 0,4 кВ (НН)
D214: 2.2.1.1.4.0
C216: + | D216: 2.2.1.2 | E216: Кабельные линии
C217: + | D217: 2.2.1.2.1 | E217: КЛЭП 110 кВ (ВН)
D218: 2.2.1.2.1.0
C220: + | D220: 2.2.1.2.2 | E220: КЛЭП 20-35 кВ (СН1)
D221: 2.2.1.2.2.0
C223: + | D223: 2.2.1.2.3 | E223: КЛЭП 3-10 кВ (СН2)
D224: 2.2.1.2.3.0
C226: + | D226: 2.2.1.2.4 | E226: КЛЭП до 1 кВ (НН)
D227: 2.2.1.2.4.0
C229: + | D229: 2.2.2 | E229: Подстанции
C230: + | D230: 2.2.2.1 | E230: Уровень входящего напряжения ВН
D231: 2.2.2.1.0
C233: + | D233: 2.2.2.2 | E233: Уровень входящего напряжения СН1
D234: 2.2.2.2.0
C236: + | D236: 2.2.2.3 | E236: Уровень входящего напряжения СН2
D237: 2.2.2.3.0
C239: + | D239: 2.2.3 | E239: Прочие электросетевые объекты
D240: 2.2.3.0
C242: + | D242: 2.3 | E242: Прочее новое строительство
D243: 2.3.0
D244: =D243&".1" -> 2.3.0.1 | E244: в том числе ПТП
D246: Справочно:
C247: + | D247: 3 | E247: Оплата процентов за привлеченные кредитные ресурсы
D248: 3.0

Sheet Комментарий
E8: Комментарии
E9: Ниже вы можете оставить свои комментарии
E11: В пп.1,2,3 формы 12 "выручка" и "чистая прибыль" указаны без учета оплаты услуг за 2015 год сетевой организации ОАО "МРСК-Сибири-"Красноярскэнерго" в части суммы, подлежащей взысканию в судебном порядке. Сумма разногласий по выставленным счетам-фактурам ориентировочно составляет 145,36 млн.руб. без учета НДС.
E12: Форма 12 заполняется без учета НДС
E13: Данные предоставлены по состоянию на 24.01.2017 г.
E14: В пп.1,2,3 формы 12 "выручка" и "чистая прибыль" указаны без учета оплаты услуг за 1 квартал 2015 года сетевой организации ОАО "МРСК-Сибири-"Красноярскэнерго" в части суммы, подлежащей взысканию в судебном порядке. Сумма разногласий ориентировочно составляет 33,326 млн.руб. без учета НДС.
E15: Стоимость мероприятий приведена с учетом НДС
E16: Проект корректировки инвестиционной программы на 2016 г принят к рассмотрению Министерством промышленности, энергетики и торговли Красноярского края 29.04.2016 г.
E17: Проект корректировки инвестиционной программы на 2016 г повторно принят к рассмотрению Министерством промышленности, энергетики и торговли Красноярского края в октябре 2016 г.
E18: Министерство промышленности, энергетики и торговли Красноярского края 11.11.2016г. (письмо исх.№ 08-3394) отказало в утверждении корректировки мероприятий 2016 г инвестиционной программы ООО "КрасКом"по развитию объектов электроснабжения г. Красноярска. Примечание: мероприятия были откорректированы в соответствии с размером средств 17,184 млн. руб. (с НДС), утвержденным в тарифе на услуги по передаче электрической энергии.
E19: Мероприятия 2016г приведены в соответствии с «Инвестиционной программой по развитию объектов, используемых в сфере электроснабжения г.Красноярска на 2012-2016годы», утвержденной Министерством промышленности и энергетики Красноярского края письмом от 21.09.2012г исх.№05-02182.

Sheet Проверка
E10: Результат проверки
E12: Ссылка | F12: Причина | G12: Статус ошибки
E13: 1 | F13: 2 | G13: 3

Sheet modHyp (hidden)
A1: et_9
C3: Удалить | J3: =nerr(SUM(F3:I3)) -> 0 | O3: =nerr(SUM(K3:N3)) -> 0 | T3: =nerr(SUM(P3:S3)) -> 0 | Y3: =nerr(SUM(U3:X3)) -> 0 | AD3: =nerr(SUM(Z3:AC3)) -> 0 | AI3: =nerr(SUM(AE3:AH3)) -> 0 | AN3: =nerr(SUM(AJ3:AM3)) -> 0 | AS3: =nerr(SUM(AO3:AR3)) -> 0 | AX3: =nerr(SUM(AT3:AW3)) -> 0 | BC3: =nerr(SUM(AY3:BB3)) -> 0 | BH3: =nerr(SUM(BD3:BG3)) -> 0 | BM3: =nerr(SUM(BI3:BL3)) -> 0 | BR3: =nerr(SUM(BN3:BQ3)) -> 0 | BW3: =nerr(SUM(BS3:BV3)) -> 0 | CB3: =nerr(SUM(BX3:CA3)) -> 0 | CG3: =nerr(SUM(CC3:CF3)) -> 0
A5: et_11_1
A9: big_et_11_1
D10: Наименование инвестиционного проекта
D12: по состоянию на
D14: № пункта укрупненного сетевого графика | E14: Наименование этапов основных работ (с учетом подготовительного периода до начала строительства) по общему сетевому графику* | F14: Сроки выполнения задач по укрупненному | J14: Процент исполнения работ за весь период (%) | K14: Процент выполнения за отчетный период (%) | L14: Причины невыполнения | M14: Предложения по корректирующим мероприятиям по устранению отставания
F15: План | H15: Факт
F16: Начало | G16: Окончание | H16: Начало | I16: Окончание
D17: 1 | E17: 2 | F17: 3 | G17: 4 | H17: 5 | I17: 6 | J17: 7 | K17: 8 | L17: 9 | M17: 10
E18: Добавить
A22: et_10
C31: Удалить объект

Sheet modUpdTemplMain (hidden)

Sheet modHypShowHide (hidden)

Sheet modChange (hidden)

Sheet TEHSHEET (hidden)
A1: Алтайский край | K1: Vdet_list | L1: period_list
A2: Амурская область | B2: logical | D2: year_list | F2: month_range | H2: curr_period | I2: obj_num | K2: Региональная генерация | L2: 1 год
A3: Архангельская область | B3: + | D3: 2007 | F3: январь | H3: 1 | I3: 63 | K3: Сбытовая компания | L3: 2 года
A4: Астраханская область | B4: - | D4: 2008 | F4: февраль | K4: ЭСО | L4: 3 года
A5: Белгородская область | D5: 2009 | F5: март | K5: Станция - поставщик ЭЭ | L5: 4 года
A6: Брянская область | D6: 2010 | F6: апрель | K6: Сетевая компания | L6: 5 лет
A7: Владимирская область | D7: 2011 | F7: май
A8: Волгоградская область | D8: 2012 | F8: июнь
A9: Вологодская область | D9: 2013 | F9: июль
A10: Воронежская область | D10: 2014 | F10: август
A11: г.Байконур | D11: 2015 | F11: сентябрь
A12: г. Москва | D12: 2016 | F12: октябрь
A13: г.Санкт-Петербург | D13: 2017 | F13: ноябрь
A14: Еврейская автономная область | D14: 2018 | F14: декабрь
A15: Забайкальский край | D15: 2019
A16: Ивановская область | D16: 2020
A17: Иркутская область
A18: Кабардино-Балкарская республика | B18: Стадии реализации | D18: kvartal_list | F18: SphereActivity
A19: Калининградская область | B19: С | D19: I квартал | F19: Теплоснабжение
A20: Калужская область | B20: П | D20: II квартал | F20: Электроэнергетика
A21: Камчатский край | D21: III квартал
A22: Карачаево-Черкесская республика | D22: IV квартал
A23: Кемеровская область | B23: TYPE_PROJECT
A24: Кировская область | B24: модернизация
A25: Костромская область | B25: реконструкция
A26: Краснодарский край | B26: новое строительство
A27: Красноярский край | B27: расширение
A28: Курганская область
A29: Курская область | B29: STAGE_REALIZ
A30: Ленинградская область | B30: проектирование
A31: Липецкая область | B31: строительство
A32: Магаданская область | B32: незавершенное строительство - приостановлено
A33: Московская область | B33: законсервировано
A34: Мурманская область
A35: Ненецкий автономный округ
A36: Нижегородская область
A37: Новгородская область | B37: XML_ORG_LIST_TAG_NAMES
A38: Новосибирская область | B38: NSRF
A39: Омская область | B39: MR_NAME
A40: Оренбургская область | B40: OKTMO_MR_NAME
A41: Орловская область | B41: MO_NAME
A42: Пензенская область | B42: OKTMO_NAME
A43: Пермский край | B43: ORG_NAME
A44: Приморский край | B44: INN_NAME
A45: Псковская область | B45: KPP_NAME
A46: Республика Адыгея | B46: VDET_NAME
A47: Республика Алтай
A48: Республика Башкортостан
A49: Республика Бурятия
A50: Республика Дагестан
A51: Республика Ингушетия
A52: Республика Калмыкия
A53: Республика Карелия
A54: Республика Коми
A55: Республика Марий Эл
A56: Республика Мордовия
A57: Республика Саха (Якутия)
A58: Республика Северная Осетия-Алания
A59: Республика Татарстан
A60: Республика Тыва
A61: Республика Хакасия
A62: Ростовская область
A63: Рязанская область
A64: Самарская область
A65: Саратовская область
A66: Сахалинская область
A67: Свердловская область
A68: Смоленская область
A69: Ставропольский край
A70: Тамбовская область
A71: Тверская область
A72: Томская область
A73: Тульская область
A74: Тюменская область
A75: Удмуртская республика
A76: Ульяновская область
A77: Хабаровский край
A78: Ханты-Мансийский автономный округ
A79: Челябинская область
A80: Чеченская республика
A81: Чувашская республика
A82: Чукотский автономный округ
A83: Ямало-Ненецкий автономный округ
A84: Ярославская область

Sheet REESTR_ORG (hidden)
A1: № | B1: ОРГАНИЗАЦИЯ | C1: ИНН | D1: КПП | E1: ВИД ДЕЯТЕЛЬНОСТИ
A2: 1 | B2: ООО "Промбытжилсервис" | C2: 2401002496 | D2: 240101001 | E2: Региональная генерация
A3: 2 | B3: ООО "Промбытжилсервис" | C3: 2401002496 | D3: 240101001 | E3: ЭСО
A4: 3 | B4: АО «Транснефть - Западная Сибирь» | C4: 5502020634 | D4: 246603001 | E4: Сетевая компания
A5: 4 | B5: ООО ЖКХ "Приморье" | C5: 2403007059 | D5: 240301001 | E5: Региональная генерация
A6: 5 | B6: ООО ЖКХ "Приморье" | C6: 2403007059 | D6: 240301001 | E6: Сбытовая компания
A7: 6 | B7: ДЭС Изолированных территорий | C7: 2466070303 | D7: 246501001 | E7: Региональная генерация
A8: 7 | B8: ООО ЖКХ "Приморье" | C8: 2403007059 | D8: 240301001 | E8: Региональная генерация
A9: 8 | B9: ООО ЖКХ "Приморье" | C9: 2403007059 | D9: 240301001 | E9: Сбытовая компания
A10: 9 | B10: АО "Красноярская региональная энергетическая компания" | C10: 2460087269 | D10: 246001001 | E10: Региональная генерация
A11: 10 | B11: АО "Красноярская региональная энергетическая компания" | C11: 2460087269 | D11: 246001001 | E11: Сетевая компания
A12: 11 | B12: АО "Красноярская региональная энергетическая компания" | C12: 2460087269 | D12: 246001001 | E12: ЭСО
A13: 12 | B13: МУП "Жилкомсервис" г. Сосновоборск | C13: 2458008862 | D13: 245801001 | E13: Сетевая компания
A14: 13 | B14: ООО "Зыковская сетевая компания" | C14: 2404013827 | D14: 240401001 | E14: Сетевая компания
A15: 14 | B15: ООО "Зыковская сетевая компания" | C15: 2404013827 | D15: 240401001 | E15: Сетевая компания
A16: 15 | B16: АО "Енисейская ТГК (ТГК-13)" | C16: 1901067718 | D16: 246750001 | E16: Станция - поставщик ЭЭ
A17: 16 | B17: АО "Енисейская ТГК (ТГК-13)" | C17: 1901067718 | D17: 246750001 | E17: Региональная генерация
A18: 17 | B18: АО "Енисейская ТГК (ТГК-13)" | C18: 1901067718 | D18: 246750001 | E18: Сбытовая компания
A19: 18 | B19: АО "Красноярская ТЭЦ-1" | C19: 2460237926 | D19: 246750001 | E19: Региональная генерация
A20: 19 | B20: АО "Красноярская ТЭЦ-1" | C20: 2460237926 | D20: 246750001 | E20: Станция - поставщик ЭЭ
A21: 20 | B21: ООО "Торговый дом" п. Березовка | C21: 2404011185 | D21: 240401001 | E21: Сетевая компания
A22: 21 | B22: ОАО "Транссибнефть" Новосибирское РНУ | C22: 5502020634 | D22: 240201001 | E22: Сетевая компания
A23: 22 | B23: ДЭС Изолированных территорий | C23: 2466070303 | D23: 246501001 | E23: Региональная генерация
A24: 23 | B24: ЗАО "БоАЗ" | C24: 2465102746 | D24: 240701001 | E24: Сбытовая компания
A25: 24 | B25: ООО "Богучанские ЭС" | C25: 2407061515 | D25: 240701001 | E25: ЭСО
A26: 25 | B26: ООО "Богучанские ЭС" | C26: 2407061515 | D26: 240701001 | E26: Региональная генерация
A27: 26 | B27: ООО "Богучанские ЭС" | C27: 2407061515 | D27: 240701001 | E27: Сетевая компания
A28: 27 | B28: ПАО "РусГидро" | C28: 2460066195 | D28: 997450001 | E28: Станция - поставщик ЭЭ
A29: 28 | B29: ЗАО "БоАЗ" | C29: 2465102746 | D29: 246501001 | E29: Сбытовая компания
A30: 29 | B30: АО "Красноярская региональная энергетическая компания" | C30: 2460087269 | D30: 246001001 | E30: Региональная генерация
A31: 30 | B31: АО "Красноярская региональная энергетическая компания" | C31: 2460087269 | D31: 246001001 | E31: ЭСО
A32: 31 | B32: АО "Красноярская региональная энергетическая компания" | C32: 2460087269 | D32: 246001001 | E32: Сетевая компания
A33: 32 | B33: АО "Красноярская региональная энергетическая компания" | C33: 2460087269 | D33: 246001001 | E33: ЭСО
A34: 33 | B34: АО "Красноярская региональная энергетическая компания" | C34: 2460087269 | D34: 246001001 | E34: Региональная генерация
A35: 34 | B35: АО "Красноярская региональная энергетическая компания" | C35: 2460087269 | D35: 246001001 | E35: Сетевая компания
A36: 35 | B36: АО "Красноярская региональная энергетическая компания" | C36: 2460087269 | D36: 246001001 | E36: Региональная генерация
A37: 36 | B37: АО "Красноярская региональная энергетическая компания" | C37: 2460087269 | D37: 246001001 | E37: ЭСО
A38: 37 | B38: АО "Красноярская региональная энергетическая компания" | C38: 2460087269 | D38: 246001001 | E38: Сетевая компания
A39: 38 | B39: АО "Красноярская региональная энергетическая компания" | C39: 2460087269 | D39: 246001001 | E39: Региональная генерация
A40: 39 | B40: АО "Красноярская региональная энергетическая компания" | C40: 2460087269 | D40: 246001001 | E40: Сетевая компания
A41: 40 | B41: АО "Красноярская региональная энергетическая компания" | C41: 2460087269 | D41: 246001001 | E41: ЭСО
A42: 41 | B42: АО "Красноярская региональная энергетическая компания" | C42: 2460087269 | D42: 246001001 | E42: Сетевая компания
A43: 42 | B43: АО "Красноярская региональная энергетическая компания" | C43: 2460087269 | D43: 246001001 | E43: Региональная генерация
A44: 43 | B44: АО "Красноярская региональная энергетическая компания" | C44: 2460087269 | D44: 246001001 | E44: ЭСО
A45: 44 | B45: АО "Красноярская региональная энергетическая компания" | C45: 2460087269 | D45: 246001001 | E45: Региональная генерация
A46: 45 | B46: АО "Красноярская региональная энергетическая компания" | C46: 2460087269 | D46: 246001001 | E46: Сетевая компания
A47: 46 | B47: АО "Красноярская региональная энергетическая компания" | C47: 2460087269 | D47: 246001001 | E47: ЭСО
A48: 47 | B48: АО "Красноярская региональная энергетическая компания" | C48: 2460087269 | D48: 246001001 | E48: Региональная генерация
A49: 48 | B49: АО "Красноярская региональная энергетическая компания" | C49: 2460087269 | D49: 246001001 | E49: Сетевая компания
A50: 49 | B50: АО "Красноярская региональная энергетическая компания" | C50: 2460087269 | D50: 246001001 | E50: ЭСО
A51: 50 | B51: АО "Красноярская региональная энергетическая компания" | C51: 2460087269 | D51: 246001001 | E51: Сетевая компания
A52: 51 | B52: АО "Красноярская региональная энергетическая компания" | C52: 2460087269 | D52: 246001001 | E52: Региональная генерация
A53: 52 | B53: АО "Красноярская региональная энергетическая компания" | C53: 2460087269 | D53: 246001001 | E53: ЭСО
A54: 53 | B54: АО "Красноярская региональная энергетическая компания" | C54: 2460087269 | D54: 246001001 | E54: Региональная генерация
A55: 54 | B55: АО "Красноярская региональная энергетическая компания" | C55: 2460087269 | D55: 246001001 | E55: Сетевая компания
A56: 55 | B56: АО "Красноярская региональная энергетическая компания" | C56: 2460087269 | D56: 246001001 | E56: ЭСО
A57: 56 | B57: АО "Красноярская региональная энергетическая компания" | C57: 2460087269 | D57: 246001001 | E57: Региональная генерация
A58: 57 | B58: АО "Красноярская региональная энергетическая компания" | C58: 2460087269 | D58: 246001001 | E58: Сетевая компания
A59: 58 | B59: АО "Красноярская региональная энергетическая компания" | C59: 2460087269 | D59: 246001001 | E59: ЭСО
A60: 59 | B60: АО "Красноярская региональная энергетическая компания" | C60: 2460087269 | D60: 246001001 | E60: Региональная генерация
A61: 60 | B61: АО "Красноярская региональная энергетическая компания" | C61: 2460087269 | D61: 246001001 | E61: Сетевая компания
A62: 61 | B62: АО "Красноярская региональная энергетическая компания" | C62: 2460087269 | D62: 246001001 | E62: ЭСО
A63: 62 | B63: АО "Красноярская региональная энергетическая компания" | C63: 2460087269 | D63: 246001001 | E63: Региональная генерация
A64: 63 | B64: АО "Красноярская региональная энергетическая компания" | C64: 2460087269 | D64: 246001001 | E64: Сетевая компания
A65: 64 | B65: АО "Красноярская региональная энергетическая компания" | C65: 2460087269 | D65: 246001001 | E65: ЭСО
A66: 65 | B66: АО "Ачинский НПЗ ВНК" | C66: 2443000518 | D66: 244301001 | E66: Сетевая компания
A67: 66 | B67: АО "Ачинский НПЗ ВНК" | C67: 2443000518 | D67: 244301001 | E67: Региональная генерация
A68: 67 | B68: АО "Ачинский НПЗ ВНК" | C68: 2443000518 | D68: 244301001 | E68: ЭСО
A69: 68 | B69: АО "Русал Ачинск" | C69: 2443005570 | D69: 997550001 | E69: Региональная генерация
A70: 69 | B70: АО "Русал Ачинск" | C70: 2443005570 | D70: 997550001 | E70: Сетевая компания
A71: 70 | B71: АО "Русал Ачинск" | C71: 2443005570 | D71: 997550001 | E71: Станция - поставщик ЭЭ
A72: 71 | B72: ООО "Красноярский Завод Проппантов" | C72: 2443026756 | D72: 244301001 | E72: Сетевая компания
A73: 72 | B73: АО "Красноярская региональная энергетическая компания" | C73: 2460087269 | D73: 246001001 | E73: Региональная генерация
A74: 73 | B74: АО "Красноярская региональная энергетическая компания" | C74: 2460087269 | D74: 246001001 | E74: Сетевая компания
A75: 74 | B75: АО "Красноярская региональная энергетическая компания" | C75: 2460087269 | D75: 246001001 | E75: ЭСО
A76: 75 | B76: ООО "Энергия" | C76: 2411019080 | D76: 241101001 | E76: Сетевая компания
A77: 76 | B77: АО "ЕвроСибЭнерго" | C77: 7706697347 | D77: 244601001 | E77: Региональная генерация
A78: 77 | B78: АО "ЕвроСибЭнерго" | C78: 7706697347 | D78: 244601001 | E78: Станция - поставщик ЭЭ
A79: 78 | B79: АО "Енисейская ТГК (ТГК-13)" | C79: 1901067718 | D79: 246750001 | E79: Сбытовая компания
A80: 79 | B80: АО "Енисейская ТГК (ТГК-13)" | C80: 1901067718 | D80: 246750001 | E80: Станция - поставщик ЭЭ
A81: 80 | B81: АО "Енисейская ТГК (ТГК-13)" | C81: 1901067718 | D81: 246750001 | E81: Региональная генерация
A82: 81 | B82: АО "Красноярская ГЭС" | C82: 2446000322 | D82: 244601001 | E82: Региональная генерация
A83: 82 | B83: АО "Красноярская ГЭС" | C83: 2446000322 | D83: 244601001 | E83: Станция - поставщик ЭЭ
A84: 83 | B84: МУП "ЭС" г.Дивногорск | C84: 2446001206 | D84: 244601001 | E84: Сетевая компания
A85: 84 | B85: ОАО "Дивногорские тепловые сети" | C85: 2460237884 | D85: 246001001 | E85: Сбытовая компания
A86: 85 | B86: АО "Красноярская региональная энергетическая компания" | C86: 2460087269 | D86: 246001001 | E86: Региональная генерация
A87: 86 | B87: АО "Красноярская региональная энергетическая компания" | C87: 2460087269 | D87: 246001001 | E87: Сетевая компания
A88: 87 | B88: АО "Красноярская региональная энергетическая компания" | C88: 2460087269 | D88: 246001001 | E88: ЭСО
A89: 88 | B89: ЗАО "Енисейэнергоком" | C89: 2447012176 | D89: 244701001 | E89: ЭСО
A90: 89 | B90: ЗАО "Енисейэнергоком" | C90: 2447012176 | D90: 244701001 | E90: Региональная генерация
A91: 90 | B91: ООО "Енисейэнергоком" | C91: 2447012666 | D91: 244701001 | E91: ЭСО
A92: 91 | B92: ООО "Енисейэнергоком" | C92: 2447012666 | D92: 244701001 | E92: Региональная генерация
A93: 92 | B93: ООО "Енисейэнергоком" | C93: 2447012666 | D93: 244701001 | E93: Сбытовая компания
A94: 93 | B94: ООО "Енисейэнергоком" | C94: 2447012666 | D94: 244701001 | E94: Сетевая компания
A95: 94 | B95: ООО "Енисейэнергоком" | C95: 2447012666 | D95: 244701001 | E95: Станция - поставщик ЭЭ
A96: 95 | B96: ФБУ ОИУ-2 ОУХД ГУФСИН России по Красноярскому краю | C96: 2447004802 | D96: 244701001 | E96: Региональная генерация
A97: 96 | B97: АО "Енисейская ТГК (ТГК-13)" | C97: 1901067718 | D97: 246750001 | E97: Региональная генерация
A98: 97 | B98: АО "Енисейская ТГК (ТГК-13)" | C98: 1901067718 | D98: 246750001 | E98: Сбытовая компания
A99: 98 | B99: АО "Енисейская ТГК (ТГК-13)" | C99: 1901067718 | D99: 246750001 | E99: Станция - поставщик ЭЭ
A100: 99 | B100: АО "Канская ТЭЦ" | C100: 2460237891 | D100: 246050001 | E100: Региональная генерация
A101: 100 | B101: АО "Канская ТЭЦ" | C101: 2460237891 | D101: 246050001 | E101: Станция - поставщик ЭЭ
A102: 101 | B102: ООО "Генерация Т" | C102: 2464262923 | D102: 246401001 | E102: Станция - поставщик ЭЭ
A103: 102 | B103: ООО "Генерация Т" | C103: 2464262923 | D103: 246401001 | E103: Региональная генерация
A104: 103 | B104: ООО Тепло-Сбыт-Сервис | C104: 2450012842 | D104: 245001001 | E104: Станция - поставщик ЭЭ
A105: 104 | B105: ООО Тепло-Сбыт-Сервис | C105: 2450012842 | D105: 245001001 | E105: Региональная генерация
A106: 105 | B106: АО "Красноярская региональная энергетическая компания" | C106: 2460087269 | D106: 246001001 | E106: Сетевая компания
A107: 106 | B107: АО "Красноярская региональная энергетическая компания" | C107: 2460087269 | D107: 246001001 | E107: ЭСО
A108: 107 | B108: АО "Красноярская региональная энергетическая компания" | C108: 2460087269 | D108: 246001001 | E108: Региональная генерация
A109: 108 | B109: АО "Атомэнергопромсбыт" | C109: 7725828549 | D109: 772501001 | E109: Сбытовая компания
A110: 109 | B110: АО "Витимэнергосбыт" | C110: 3802010714 | D110: 380201001 | E110: Сбытовая компания
A111: 110 | B111: АО "ЕЭСнК" | C111: 7727232575 | D111: 771401001 | E111: Сбытовая компания
A112: 111 | B112: АО "Енисейская ТГК (ТГК-13)" | C112: 1901067718 | D112: 246750001 | E112: Региональная генерация
A113: 112 | B113: АО "Енисейская ТГК (ТГК-13)" | C113: 1901067718 | D113: 246750001 | E113: Станция - поставщик ЭЭ
A114: 113 | B114: АО "Енисейская ТГК (ТГК-13)" | C114: 1901067718 | D114: 246750001 | E114: Сбытовая компания
A115: 114 | B115: АО "Красмаш" | C115: 2462206345 | D115: 997850001 | E115: Сетевая компания
A116: 115 | B116: АО "Красноярская ТЭЦ-1" | C116: 2460237926 | D116: 246750001 | E116: Станция - поставщик ЭЭ
A117: 116 | B117: АО "Красноярская ТЭЦ-1" | C117: 2460237926 | D117: 246750001 | E117: Региональная генерация
A118: 117 | B118: АО "Красноярский ДОК" | C118: 2464004168 | D118: 246401001 | E118: Сетевая компания
A119: 118 | B119: АО "Оборонэнергосбыт" | C119: 7704731218 | D119: 773043001 | E119: Сбытовая компания
A120: 119 | B120: АО "СУЭК-Красноярск" | C120: 2466152267 | D120: 246750001 | E120: Сетевая компания
A121: 120 | B121: АО "Сибурэнергоменеджмент" | C121: 7727276526 | D121: 366301001 | E121: Сбытовая компания
A122: 121 | B122: АО "Улан-Удэ Энерго" | C122: 0326481003 | D122: 032601001 | E122: Сетевая компания
A123: 122 | B123: АО «Транснефть - Западная Сибирь» | C123: 5502020634 | D123: 246603001 | E123: Сетевая компания
A124: 123 | B124: ГПКК "Центр транспортной логистики" | C124: 2466083888 | D124: 246601001 | E124: Сетевая компания
A125: 124 | B125: ДЭС Изолированных территорий | C125: 2466070303 | D125: 246501001 | E125: Региональная генерация
A126: 125 | B126: ЗАО "Красный Яр АО" | C126: 7701243572 | D126: 246101001 | E126: Сетевая компания
A127: 126 | B127: ЗАО "Система" | C127: 4205173700 | D127: 420501001 | E127: Сбытовая компания
A128: 127 | B128: ЗАО "Флагман-инвест" | C128: 2465067548 | D128: 246401001 | E128: Сетевая компания
A129: 128 | B129: ЗАО Лыжный стадион "Ветлужанка" | C129: 2463011331 | D129: 246301001 | E129: Сетевая компания
A130: 129 | B130: ЗАО ТЦ "Красноярье" | C130: 2451000180 | D130: 245101001 | E130: Сетевая компания
A131: 130 | B131: ИП Старченко | C131: 190100538868 | D131: 000000000 | E131: Региональная генерация
A132: 131 | B132: Красноярский научный центр СО РАН | C132: 2463002263 | D132: 246301001 | E132: Сетевая компания
A133: 132 | B133: Красноярское отделение филиала "Сибирский" ОАО "Оборонэнергосбыт" | C133: 7704731218 | D133: 246645001 | E133: Сбытовая компания
A134: 133 | B134: ОАО "Российские железные дороги" в лице Красноярской дирекции по энергообеспечению-структурного подразделения "Трансэнерго" филиала ОАО "РЖД" | C134: 7708503727 | D134: 246045007 | E134: Сетевая компания
A135: 134 | B135: ОАО " РУСАЛ Красноярск" | C135: 2465000141 | D135: 246501001 | E135: Сетевая компания
A136: 135 | B136: ОАО " РУСАЛ Красноярск" | C136: 2465000141 | D136: 246501001 | E136: Сбытовая компания
A137: 136 | B137: ОАО "Горевский ГОК" | C137: 2426000250 | D137: 242601001 | E137: Сетевая компания
A138: 137 | B138: ОАО "ДОЗ 2 и К" | C138: 2462023422 | D138: 246201001 | E138: Сетевая компания
A139: 138 | B139: ОАО "Дивногорские тепловые сети" | C139: 2460237884 | D139: 246001001 | E139: Сбытовая компания
A140: 139 | B140: ОАО "КЗСК" | C140: 2462004363 | D140: 246750001 | E140: Сетевая компания
A141: 140 | B141: ОАО "Красноярская электрокотельная" | C141: 2460237845 | D141: 246001001 | E141: Сбытовая компания
A142: 141 | B142: ОАО "Красфарма" | C142: 2464010490 | D142: 246750001 | E142: Сетевая компания
A143: 142 | B143: ОАО "Красцветмет" | C143: 2451000818 | D143: 997550001 | E143: Сетевая компания
A144: 143 | B144: ОАО "РЖД" | C144: 7708503727 | D144: 246602001 | E144: Сетевая компания
A145: 144 | B145: ОАО "Тываэнерго" | C145: 1701029232 | D145: 170101001 | E145: Сетевая компания
A146: 145 | B146: ОАО "ХМЗ" | C146: 2464003340 | D146: 246401001 | E146: Сетевая компания
A147: 146 | B147: ОАО «ЭСК РусГидро» | C147: 7804403972 | D147: 772801001 | E147: Сбытовая компания
A148: 147 | B148: ОАО ПО "Красноярский завод комбайнов" | C148: 2460053936 | D148: 246750001 | E148: Сетевая компания
A149: 148 | B149: ООО "Аквилон электросети" | C149: 2465285722 | D149: 246501001 | E149: Сетевая компания
A150: 149 | B150: ООО "Альфа" | C150: 2460001399 | D150: 246001001 | E150: Сетевая компания
A151: 150 | B151: ООО "Вотэл" | C151: 2464206132 | D151: 246401001 | E151: Сетевая компания
A152: 151 | B152: ООО "Городские электрические сети" | C152: 1902021787 | D152: 190201001 | E152: Сетевая компания
A153: 152 | B153: ООО "Дизаж М" | C153: 7728587330 | D153: 772801001 | E153: Сбытовая компания
A154: 153 | B154: ООО "ЕнисейЭнергоСервис" | C154: 2463058587 | D154: 246301001 | E154: Сетевая компания
A155: 154 | B155: ООО "Искра-Энергосети" | C155: 2463037964 | D155: 246301001 | E155: Сетевая компания
A156: 155 | B156: ООО "КЛМ - Энерго" | C156: 2466119189 | D156: 246601001 | E156: Сетевая компания
A157: 156 | B157: ООО "Коммерц Строй" | C157: 2463050757 | D157: 781101001 | E157: Сетевая компания
A158: 157 | B158: ООО "Контакт" | C158: 2462208303 | D158: 246201001 | E158: Сетевая компания
A159: 158 | B159: ООО "Крамз" | C159: 2465043748 | D159: 246501001 | E159: Сетевая компания
A160: 159 | B160: ООО "Крамз-ТЕЛЕКОМ" | C160: 2465050054 | D160: 246501001 | E160: Сетевая компания
A161: 160 | B161: ООО "Красноярский жилищно-коммунальный комплекс" | C161: 2466114215 | D161: 246750001 | E161: Сетевая компания
A162: 161 | B162: ООО "Крассети" | C162: 2460255883 | D162: 246001001 | E162: Сетевая компания
A163: 162 | B163: ООО "ЛУКОЙЛ-ЭНЕРГОСЕРВИС" | C163: 5030040730 | D163: 503001000 | E163: Сбытовая компания
A164: 163 | B164: ООО "МАРЭМ+" | C164: 7702387915 | D164: 770201001 | E164: Сбытовая компания
A165: 164 | B165: ООО "Перспектива" | C165: 2461221421 | D165: 246101001 | E165: Сетевая компания
A166: 165 | B166: ООО "ПолюсЭнергострой" | C166: 2464121538 | D166: 246401001 | E166: Сетевая компания
A167: 166 | B167: ООО "РН-Энерго" | C167: 7706525041 | D167: 772501001 | E167: Сбытовая компания
A168: 167 | B168: ООО "РСК Сибиряк" | C168: 2465208005 | D168: 246501001 | E168: Сетевая компания
A169: 168 | B169: ООО "РСК" | C169: 2463064830 | D169: 246301001 | E169: Сетевая компания
A170: 169 | B170: ООО "РУСАЛ Энерго" | C170: 7709653059 | D170: 770901001 | E170: Сбытовая компания
A171: 170 | B171: ООО "Региональная энергосбытовая компания" (ОПП) | C171: 4633017746 | D171: 463301001 | E171: Сбытовая компания
A172: 171 | B172: ООО "Русэнергоресурс" | C172: 7706288496 | D172: 770601001 | E172: Сбытовая компания
A173: 172 | B173: ООО "Русэнергосбыт Сибирь" | C173: 2465115953 | D173: 246601001 | E173: Сбытовая компания
A174: 173 | B174: ООО "Русэнергосбыт" | C174: 7706284124 | D174: 770601001 | E174: Сбытовая компания
A175: 174 | B175: ООО "СКС" | C175: 2463212510 | D175: 246301001 | E175: Сетевая компания
A176: 175 | B176: ООО "СП-Энергосервис" | C176: 2465240697 | D176: 246501001 | E176: Сетевая компания
A177: 176 | B177: ООО "ССК" | C177: 2464118729 | D177: 246401001 | E177: Сетевая компания
A178: 177 | B178: ООО "Северный город" | C178: 2464106177 | D178: 246401001 | E178: Сетевая компания
A179: 178 | B179: ООО "Сетевая территориальная компания" | C179: 2464242162 | D179: 246401001 | E179: Сетевая компания
A180: 179 | B180: ООО "Сибирская энергетическая компания" | C180: 2463228743 | D180: 246301001 | E180: Сетевая компания
A181: 180 | B181: ООО "Сибэлектросталь" | C181: 2461206247 | D181: 246101001 | E181: Сетевая компания
A182: 181 | B182: ООО "ТЭС" | C182: 2464031718 | D182: 246401001 | E182: Сетевая компания
A183: 182 | B183: ООО "Терминал" | C183: 5406358558 | D183: 240601001 | E183: Сетевая компания
A184: 183 | B184: ООО "ТранснефтьЭлектросетьСервис" | C184: 6311049306 | D184: 631101001 | E184: Сетевая компания
A185: 184 | B185: ООО "Транснефтьэнерго" | C185: 7703552167 | D185: 772301001 | E185: Сбытовая компания
A186: 185 | B186: ООО "Трансферэнерго" | C186: 2466252462 | D186: 246601001 | E186: Сетевая компания
A187: 186 | B187: ООО "Элеком" | C187: 2464099890 | D187: 246401001 | E187: Сетевая компания
A188: 187 | B188: ООО "Электрические сети Сибири" | C188: 2460235372 | D188: 246001001 | E188: Региональная генерация
A189: 188 | B189: ООО "Электрические сети Сибири" | C189: 2460235372 | D189: 246001001 | E189: Сетевая компания
A190: 189 | B190: ООО "Энергия" | C190: 2411019080 | D190: 241101001 | E190: Сетевая компания
A191: 190 | B191: ООО "Энерготранзит" | C191: 2466152387 | D191: 246601001 | E191: Сетевая компания
A192: 191 | B192: ООО "Ярэнергосервис" | C192: 2465085699 | D192: 246501001 | E192: Сетевая компания
A193: 192 | B193: ООО «ПЕСЧАНКА ЭНЕРГО» | C193: 2466172249 | D193: 246601001 | E193: Сетевая компания
A194: 193 | B194: ООО «Песчанка Энерго» | C194: 2466258908 | D194: 246601001 | E194: Сетевая компания
A195: 194 | B195: ООО «Тепловая энергетическая компания» | C195: 2462206835 | D195: 246201001 | E195: Сетевая компания
A196: 195 | B196: ООО «Энергетическая Компания» | C196: 2465304301 | D196: 246501001 | E196: Сетевая компания
A197: 196 | B197: ООО Красэлектросервис | C197: 2464055525 | D197: 246001001 | E197: Сетевая компания
A198: 197 | B198: ООО МД | C198: 2464071943 | D198: 246401001 | E198: Сетевая компания
A199: 198 | B199: ООО ПСК "Омега" | C199: 2465012193 | D199: 246301001 | E199: Сетевая компания
A200: 199 | B200: ООО РЕД-Сибирь | C200: 2465097486 | D200: 246501001 | E200: Сетевая компания
... 981 more rows

Sheet REESTR_FILTERED (hidden)
A1: № | B1: ОРГАНИЗАЦИЯ | C1: ИНН | D1: КПП | E1: ВИД ДЕЯТЕЛЬНОСТИ
A2: 1 | B2: ООО "Красноярский Завод Проппантов" | C2: 2443026756 | D2: 244301001 | E2: Сетевая компания
A3: 2 | B3: АО "Красноярский ДОК" | C3: 2464004168 | D3: 246401001 | E3: Сетевая компания
A4: 3 | B4: Красноярский научный центр СО РАН | C4: 2463002263 | D4: 246301001 | E4: Сетевая компания
A5: 4 | B5: ОАО ПО "Красноярский завод комбайнов" | C5: 2460053936 | D5: 246750001 | E5: Сетевая компания
A6: 5 | B6: ООО "Красноярский жилищно-коммунальный комплекс" | C6: 2466114215 | D6: 246750001 | E6: Сетевая компания
A7: 6 | B7: ФГУП ПО Красноярский химический комбинат "Енисей" | C7: 2451000046 | D7: 246201001 | E7: Сетевая компания
A8: 7 | B8: Химический завод - филиал ОАО "Красноярский машиностроительный завод" | C8: 2462206345 | D8: 245243001 | E8: Сетевая компания
A9: 8 | B9: ООО "Красноярский жилищно-коммунальный комплекс" | C9: 2466114215 | D9: 246750001 | E9: Сетевая компания

Sheet modfrmReestr (hidden)

Sheet modCommandButton (hidden)

Sheet AllSheetsInThisWorkbook (hidden)
A1: Расчетные листы | B1: Скрытые листы
A2: Инструкция | B2: modHyp
A3: Выбор субъекта РФ | B3: modUpdTemplMain
A4: Обновление | B4: modHypShowHide
A5: Лог обновления | B5: modChange
A6: Титульный | B6: TEHSHEET
A7: Список листов | B7: REESTR_ORG
A8: Ф.7.1 | B8: REESTR_FILTERED
A9: Ф.7.2 | B9: modfrmReestr
A10: Ф.8 | B10: modCommandButton
A11: Ф.9 | B11: AllSheetsInThisWorkbook
A12: Ф.10 | B12: modF_7_1
A13: Ф.11.1 | B13: modF_7_2
A14: Ф.11.2 | B14: modHandler
A15: Ф.12 | B15: modProv
A16: Ф.13
A17: Комментарий
A18: Проверка

Sheet modF_7_1 (hidden)

Sheet modF_7_2 (hidden)

Sheet modHandler (hidden)
